Date of Payment,Expense Type,Expense Area,Supplier,Transaction Number,Amount,Department,Entity
28/05/2012,PLANT SPARES,FUSION,A D INSTALLATION LTD,5100275414,880.00,United Kingdom Atomic Energy Authority,United Kingdom Atomic Energy Authority
28/05/2012,PLANT SPARES,FUSION,A D INSTALLATION LTD,5100275415,"1,180.00",United Kingdom Atomic Energy Authority,United Kingdom Atomic Energy Authority
13/06/2012,PLANT SPARES,FUSION,A D INSTALLATION LTD,5100276001,"2,350.00",United Kingdom Atomic Energy Authority,United Kingdom Atomic Energy Authority
18/06/2012,PLANT SPARES,FUSION,A D INSTALLATION LTD,5100276002,"1,180.00",United Kingdom Atomic Energy Authority,United Kingdom Atomic Energy Authority
25/06/2012,PLANT & EQUIPMENT,FUSION,AALCO LIMITED,5100276442,144.50,United Kingdom Atomic Energy Authority,United Kingdom Atomic Energy Authority
20/06/2012,PLANT & EQUIPMENT,FUSION,AALCO LIMITED,5100275563,112.00,United Kingdom Atomic Energy Authority,United Kingdom Atomic Energy Authority
20/06/2012,PLANT & EQUIPMENT,FUSION,AALCO LIMITED,5100275564,35.00,United Kingdom Atomic Energy Authority,United Kingdom Atomic Energy Authority
20/06/2012,PLANT & EQUIPMENT,FUSION,AALCO LIMITED,5100275638,59.86,United Kingdom Atomic Energy Authority,United Kingdom Atomic Energy Authority
30/05/2012,PLANT & EQUIPMENT,FUSION,AALCO LIMITED,5100275695,278.40,United Kingdom Atomic Energy Authority,United Kingdom Atomic Energy Authority
18/06/2012,PLANT & EQUIPMENT,FUSION,AALCO LIMITED,5100276012,139.74,United Kingdom Atomic Energy Authority,United Kingdom Atomic Energy Authority
18/06/2012,PLANT & EQUIPMENT,FUSION,AALCO LIMITED,5100276014,59.70,United Kingdom Atomic Energy Authority,United Kingdom Atomic Energy Authority
25/06/2012,PLANT & EQUIPMENT,FUSION,AALCO LIMITED,5100276356,87.50,United Kingdom Atomic Energy Authority,United Kingdom Atomic Energy Authority
25/06/2012,PLANT & EQUIPMENT,FUSION,AALCO LIMITED,5100276359,212.00,United Kingdom Atomic Energy Authority,United Kingdom Atomic Energy Authority
25/06/2012,PLANT & EQUIPMENT,FUSION,AALCO LIMITED,5100276360,196.00,United Kingdom Atomic Energy Authority,United Kingdom Atomic Energy Authority
25/06/2012,PLANT & EQUIPMENT,FUSION,AALCO LIMITED,5100276505,218.00,United Kingdom Atomic Energy Authority,United Kingdom Atomic Energy Authority
25/06/2012,PLANT & EQUIPMENT,FUSION,AALCO LIMITED,5100276506,588.00,United Kingdom Atomic Energy Authority,United Kingdom Atomic Energy Authority
27/06/2012,PLANT & EQUIPMENT,FUSION,AALCO LIMITED,5100276597,46.90,United Kingdom Atomic Energy Authority,United Kingdom Atomic Energy Authority
27/06/2012,PLANT & EQUIPMENT,FUSION,AALCO LIMITED,5100276598,35.20,United Kingdom Atomic Energy Authority,United Kingdom Atomic Energy Authority
27/06/2012,PLANT & EQUIPMENT,FUSION,AALCO LIMITED,5100276599,28.00,United Kingdom Atomic Energy Authority,United Kingdom Atomic Energy Authority
27/06/2012,PLANT & EQUIPMENT,FUSION,AALCO LIMITED,5100276600,24.00,United Kingdom Atomic Energy Authority,United Kingdom Atomic Energy Authority
27/06/2012,PLANT & EQUIPMENT,FUSION,AALCO LIMITED,5100276601,31.80,United Kingdom Atomic Energy Authority,United Kingdom Atomic Energy Authority
27/06/2012,PLANT & EQUIPMENT,FUSION,AALCO LIMITED,5100276602,27.00,United Kingdom Atomic Energy Authority,United Kingdom Atomic Energy Authority
27/06/2012,PLANT & EQUIPMENT,FUSION,AALCO LIMITED,5100276603,22.00,United Kingdom Atomic Energy Authority,United Kingdom Atomic Energy Authority
27/06/2012,PLANT & EQUIPMENT,FUSION,AALCO LIMITED,5100276604,16.00,United Kingdom Atomic Energy Authority,United Kingdom Atomic Energy Authority
27/06/2012,PLANT & EQUIPMENT,FUSION,AALCO LIMITED,5100276605,23.00,United Kingdom Atomic Energy Authority,United Kingdom Atomic Energy Authority
27/06/2012,PLANT & EQUIPMENT,FUSION,AALCO LIMITED,5100276606,17.00,United Kingdom Atomic Energy Authority,United Kingdom Atomic Energy Authority
27/06/2012,PLANT & EQUIPMENT,FUSION,AALCO LIMITED,5100276607,39.55,United Kingdom Atomic Energy Authority,United Kingdom Atomic Energy Authority
27/06/2012,PLANT & EQUIPMENT,FUSION,AALCO LIMITED,5100276608,16.00,United Kingdom Atomic Energy Authority,United Kingdom Atomic Energy Authority
18/06/2012,PLANT & EQUIPMENT,FUSION,AALCO LIMITED,5100276013,259.60,United Kingdom Atomic Energy Authority,United Kingdom Atomic Energy Authority
11/06/2012,MATERIALS & SPARES,FUSION,ABRACLEAN LIMITED,5100275898,"1,531.00",United Kingdom Atomic Energy Authority,United Kingdom Atomic Energy Authority
20/06/2012,PLANT SPARES,FUSION,ACL ENGINEERING LTD,5100275899,"1,582.30",United Kingdom Atomic Energy Authority,United Kingdom Atomic Energy Authority
28/05/2012,MATERIALS & SPARES,FUSION,ACRONA ENGINEERING LTD,5100275400,"6,000.00",United Kingdom Atomic Energy Authority,United Kingdom Atomic Energy Authority
25/06/2012,REPAIRS & MAINTENANCE,FUSION,ADVATEK,5100276522,"3,150.00",United Kingdom Atomic Energy Authority,United Kingdom Atomic Energy Authority
25/06/2012,AUDIT FEES,SUPPORT SERVICES,AFAQ-EAQA LTD,5100276392,790.00,United Kingdom Atomic Energy Authority,United Kingdom Atomic Energy Authority
30/05/2012,SITE SUPPORT SERVICES,PROPERTY,AGILYSIS EUROPE LTD,5100275734,116.86,United Kingdom Atomic Energy Authority,United Kingdom Atomic Energy Authority
13/06/2012,SITE SUPPORT SERVICES,PROPERTY,AGILYSIS EUROPE LTD,5100275992,3.24,United Kingdom Atomic Energy Authority,United Kingdom Atomic Energy Authority
28/05/2012,GASES,FUSION,AIR PRODUCTS PLC,5100275421,17.40,United Kingdom Atomic Energy Authority,United Kingdom Atomic Energy Authority
28/05/2012,GASES,FUSION,AIR PRODUCTS PLC,5100275424,17.40,United Kingdom Atomic Energy Authority,United Kingdom Atomic Energy Authority
25/06/2012,GASES,FUSION,AIR PRODUCTS PLC,5100276371,17.98,United Kingdom Atomic Energy Authority,United Kingdom Atomic Energy Authority
28/05/2012,GASES,FUSION,AIR PRODUCTS PLC,5100275425,87.00,United Kingdom Atomic Energy Authority,United Kingdom Atomic Energy Authority
25/06/2012,GASES,FUSION,AIR PRODUCTS PLC,5100276372,89.90,United Kingdom Atomic Energy Authority,United Kingdom Atomic Energy Authority
07/06/2012,GASES,FUSION,AIR PRODUCTS PLC,5100275423,12.24,United Kingdom Atomic Energy Authority,United Kingdom Atomic Energy Authority
25/06/2012,GASES,FUSION,AIR PRODUCTS PLC,5100276351,10.54,United Kingdom Atomic Energy Authority,United Kingdom Atomic Energy Authority
07/06/2012,MATERIALS & SPARES,FUSION,ALLWELD SUPPLIES,5100275814,185.00,United Kingdom Atomic Energy Authority,United Kingdom Atomic Energy Authority
28/05/2012,MATERIALS & SPARES,FUSION,ALPHA ENGINEERING SUPPLIES,5100275619,195.00,United Kingdom Atomic Energy Authority,United Kingdom Atomic Energy Authority
28/05/2012,MATERIALS & SPARES,FUSION,ALPHA ENGINEERING SUPPLIES,5100275620,28.52,United Kingdom Atomic Energy Authority,United Kingdom Atomic Energy Authority
11/06/2012,MATERIALS & SPARES,FUSION,ALPHA ENGINEERING SUPPLIES,5100275883,142.63,United Kingdom Atomic Energy Authority,United Kingdom Atomic Energy Authority
18/06/2012,MATERIALS & SPARES,FUSION,ALPHA ENGINEERING SUPPLIES,5100276090,89.60,United Kingdom Atomic Energy Authority,United Kingdom Atomic Energy Authority
18/06/2012,MATERIALS & SPARES,FUSION,ALPHA ENGINEERING SUPPLIES,5100276095,87.55,United Kingdom Atomic Energy Authority,United Kingdom Atomic Energy Authority
18/06/2012,MATERIALS & SPARES,FUSION,ALPHA ENGINEERING SUPPLIES,5100276255,47.80,United Kingdom Atomic Energy Authority,United Kingdom Atomic Energy Authority
25/06/2012,MATERIALS & SPARES,FUSION,ALPHA ENGINEERING SUPPLIES,5100276512,52.70,United Kingdom Atomic Energy Authority,United Kingdom Atomic Energy Authority
25/06/2012,MATERIALS & SPARES,FUSION,ALPHA ENGINEERING SUPPLIES,5100276513,141.49,United Kingdom Atomic Energy Authority,United Kingdom Atomic Energy Authority
20/06/2012,MATERIALS & SPARES,FUSION,ALPHA ENGINEERING SUPPLIES,5100275958,241.39,United Kingdom Atomic Energy Authority,United Kingdom Atomic Energy Authority
25/06/2012,MATERIALS & SPARES,FUSION,ALPHA ENGINEERING SUPPLIES,5100276514,745.70,United Kingdom Atomic Energy Authority,United Kingdom Atomic Energy Authority
25/06/2012,MATERIALS & SPARES,FUSION,ALPHA ENGINEERING SUPPLIES,5100276535,424.74,United Kingdom Atomic Energy Authority,United Kingdom Atomic Energy Authority
18/06/2012,MATERIALS & SPARES,FUSION,ALPHA ENGINEERING SUPPLIES,5100275960,124.62,United Kingdom Atomic Energy Authority,United Kingdom Atomic Energy Authority
27/06/2012,PLANT & EQUIPMENT,FUSION,ALPHA LABORATORIES,5100276501,522.60,United Kingdom Atomic Energy Authority,United Kingdom Atomic Energy Authority
13/06/2012,MATERIALS & SPARES,SUPPORT SERVICES,ALPHA PACKAGING,5100276018,133.00,United Kingdom Atomic Energy Authority,United Kingdom Atomic Energy Authority
18/06/2012,MATERIALS & SPARES,SUPPORT SERVICES,ALPHA PACKAGING,5100276126,133.00,United Kingdom Atomic Energy Authority,United Kingdom Atomic Energy Authority
07/06/2012,MATERIALS & SPARES,FUSION,ALVIN KEY CLAMPS,5100275489,"1,421.80",United Kingdom Atomic Energy Authority,United Kingdom Atomic Energy Authority
07/06/2012,MATERIALS & SPARES,FUSION,ALVIN KEY CLAMPS,5100275492,110.07,United Kingdom Atomic Energy Authority,United Kingdom Atomic Energy Authority
07/06/2012,MATERIALS & SPARES,FUSION,ALVIN KEY CLAMPS,5100275488,605.55,United Kingdom Atomic Energy Authority,United Kingdom Atomic Energy Authority
20/06/2012,MATERIALS & SPARES,FUSION,ALVIN KEY CLAMPS,5100276253,287.48,United Kingdom Atomic Energy Authority,United Kingdom Atomic Energy Authority
20/06/2012,MATERIALS & SPARES,FUSION,ALVIN KEY CLAMPS,5100276254,"5,055.42",United Kingdom Atomic Energy Authority,United Kingdom Atomic Energy Authority
07/06/2012,MATERIALS & SPARES,FUSION,ALVIN KEY CLAMPS,5100275490,191.10,United Kingdom Atomic Energy Authority,United Kingdom Atomic Energy Authority
28/05/2012,PROFESSIONAL SERVICES,FUSION,AMEC NUCLEAR UK LIMITED,5100274633,"10,384.03",United Kingdom Atomic Energy Authority,United Kingdom Atomic Energy Authority
07/06/2012,PROFESSIONAL SERVICES,FUSION,AMEC NUCLEAR UK LIMITED,5100275721,"7,058.17",United Kingdom Atomic Energy Authority,United Kingdom Atomic Energy Authority
29/06/2012,ENTERTAINMENT - STAFF,SUPPORT SERVICES,Andy Nichol,1900057144,350.00,United Kingdom Atomic Energy Authority,United Kingdom Atomic Energy Authority
30/05/2012,MATERIALS & SPARES,FUSION,ANIXTER (UK) LTD,5100275682,534.00,United Kingdom Atomic Energy Authority,United Kingdom Atomic Energy Authority
11/06/2012,MATERIALS & SPARES,FUSION,ANIXTER (UK) LTD,5100275884,211.60,United Kingdom Atomic Energy Authority,United Kingdom Atomic Energy Authority
27/06/2012,MATERIALS & SPARES,FUSION,ANIXTER (UK) LTD,5100276353,927.40,United Kingdom Atomic Energy Authority,United Kingdom Atomic Energy Authority
25/06/2012,MATERIALS & SPARES,FUSION,ANIXTER (UK) LTD,5100276446,214.50,United Kingdom Atomic Energy Authority,United Kingdom Atomic Energy Authority
07/06/2012,MATERIALS & SPARES,FUSION,ANIXTER (UK) LTD,5100274268,"1,618.00",United Kingdom Atomic Energy Authority,United Kingdom Atomic Energy Authority
28/05/2012,MATERIALS & SPARES,FUSION,ANIXTER (UK) LTD,5100274627,345.00,United Kingdom Atomic Energy Authority,United Kingdom Atomic Energy Authority
13/06/2012,MATERIALS & SPARES,FUSION,ANIXTER (UK) LTD,5100275753,760.80,United Kingdom Atomic Energy Authority,United Kingdom Atomic Energy Authority
18/06/2012,OPERATING LEASE,FUSION,ANNODATA BUSINESS COMMUNICATIONS,5100276073,"9,139.89",United Kingdom Atomic Energy Authority,United Kingdom Atomic Energy Authority
30/05/2012,DELIVERY & CARRIAGE,FUSION,APPLIED WEIGHING INTERNATIONAL LTD,5100275696,327.00,United Kingdom Atomic Energy Authority,United Kingdom Atomic Energy Authority
13/06/2012,PERSONAL PROTECTIVE EQUIPMENT,FUSION,ARCO LTD,5100275938,21.18,United Kingdom Atomic Energy Authority,United Kingdom Atomic Energy Authority
28/05/2012,PERSONAL PROTECTIVE EQUIPMENT,FUSION,ARCO LTD,5100275121,"1,479.20",United Kingdom Atomic Energy Authority,United Kingdom Atomic Energy Authority
28/05/2012,PERSONAL PROTECTIVE EQUIPMENT,FUSION,ARCO LTD,5100275354,"9,695.53",United Kingdom Atomic Energy Authority,United Kingdom Atomic Energy Authority
28/05/2012,PERSONAL PROTECTIVE EQUIPMENT,FUSION,ARCO LTD,5100275355,"2,812.60",United Kingdom Atomic Energy Authority,United Kingdom Atomic Energy Authority
28/05/2012,PERSONAL PROTECTIVE EQUIPMENT,FUSION,ARCO LTD,5100275356,63.90,United Kingdom Atomic Energy Authority,United Kingdom Atomic Energy Authority
28/05/2012,PERSONAL PROTECTIVE EQUIPMENT,FUSION,ARCO LTD,5100275357,"4,419.80",United Kingdom Atomic Energy Authority,United Kingdom Atomic Energy Authority
28/05/2012,PERSONAL PROTECTIVE EQUIPMENT,FUSION,ARCO LTD,5100275359,"2,090.85",United Kingdom Atomic Energy Authority,United Kingdom Atomic Energy Authority
28/05/2012,PERSONAL PROTECTIVE EQUIPMENT,FUSION,ARCO LTD,5100275434,"1,239.76",United Kingdom Atomic Energy Authority,United Kingdom Atomic Energy Authority
28/05/2012,PERSONAL PROTECTIVE EQUIPMENT,FUSION,ARCO LTD,5100275520,-42.00,United Kingdom Atomic Energy Authority,United Kingdom Atomic Energy Authority
28/05/2012,PERSONAL PROTECTIVE EQUIPMENT,FUSION,ARCO LTD,5100275521,114.48,United Kingdom Atomic Energy Authority,United Kingdom Atomic Energy Authority
28/05/2012,PERSONAL PROTECTIVE EQUIPMENT,FUSION,ARCO LTD,5100275552,99.96,United Kingdom Atomic Energy Authority,United Kingdom Atomic Energy Authority
28/05/2012,PERSONAL PROTECTIVE EQUIPMENT,FUSION,ARCO LTD,5100275555,163.00,United Kingdom Atomic Energy Authority,United Kingdom Atomic Energy Authority
07/06/2012,PERSONAL PROTECTIVE EQUIPMENT,FUSION,ARCO LTD,5100275626,468.86,United Kingdom Atomic Energy Authority,United Kingdom Atomic Energy Authority
28/05/2012,PERSONAL PROTECTIVE EQUIPMENT,FUSION,ARCO LTD,5100275628,"-1,479.20",United Kingdom Atomic Energy Authority,United Kingdom Atomic Energy Authority
07/06/2012,PERSONAL PROTECTIVE EQUIPMENT,FUSION,ARCO LTD,5100275629,66.66,United Kingdom Atomic Energy Authority,United Kingdom Atomic Energy Authority
07/06/2012,PERSONAL PROTECTIVE EQUIPMENT,FUSION,ARCO LTD,5100275631,66.66,United Kingdom Atomic Energy Authority,United Kingdom Atomic Energy Authority
07/06/2012,PERSONAL PROTECTIVE EQUIPMENT,FUSION,ARCO LTD,5100275683,13.20,United Kingdom Atomic Energy Authority,United Kingdom Atomic Energy Authority
07/06/2012,PERSONAL PROTECTIVE EQUIPMENT,FUSION,ARCO LTD,5100275686,211.50,United Kingdom Atomic Energy Authority,United Kingdom Atomic Energy Authority
07/06/2012,PERSONAL PROTECTIVE EQUIPMENT,FUSION,ARCO LTD,5100275756,"1,641.00",United Kingdom Atomic Energy Authority,United Kingdom Atomic Energy Authority
07/06/2012,PERSONAL PROTECTIVE EQUIPMENT,FUSION,ARCO LTD,5100275757,274.32,United Kingdom Atomic Energy Authority,United Kingdom Atomic Energy Authority
07/06/2012,PERSONAL PROTECTIVE EQUIPMENT,FUSION,ARCO LTD,5100275758,437.50,United Kingdom Atomic Energy Authority,United Kingdom Atomic Energy Authority
18/06/2012,PERSONAL PROTECTIVE EQUIPMENT,FUSION,ARCO LTD,5100275934,570.00,United Kingdom Atomic Energy Authority,United Kingdom Atomic Energy Authority
18/06/2012,PERSONAL PROTECTIVE EQUIPMENT,FUSION,ARCO LTD,5100275935,206.80,United Kingdom Atomic Energy Authority,United Kingdom Atomic Energy Authority
18/06/2012,PERSONAL PROTECTIVE EQUIPMENT,FUSION,ARCO LTD,5100275936,"2,009.00",United Kingdom Atomic Energy Authority,United Kingdom Atomic Energy Authority
18/06/2012,PERSONAL PROTECTIVE EQUIPMENT,FUSION,ARCO LTD,5100275942,205.74,United Kingdom Atomic Energy Authority,United Kingdom Atomic Energy Authority
18/06/2012,PERSONAL PROTECTIVE EQUIPMENT,FUSION,ARCO LTD,5100275943,"7,450.00",United Kingdom Atomic Energy Authority,United Kingdom Atomic Energy Authority
18/06/2012,PERSONAL PROTECTIVE EQUIPMENT,FUSION,ARCO LTD,5100276204,111.17,United Kingdom Atomic Energy Authority,United Kingdom Atomic Energy Authority
18/06/2012,PERSONAL PROTECTIVE EQUIPMENT,FUSION,ARCO LTD,5100276205,608.00,United Kingdom Atomic Energy Authority,United Kingdom Atomic Energy Authority
18/06/2012,PERSONAL PROTECTIVE EQUIPMENT,FUSION,ARCO LTD,5100276208,285.00,United Kingdom Atomic Energy Authority,United Kingdom Atomic Energy Authority
18/06/2012,PERSONAL PROTECTIVE EQUIPMENT,FUSION,ARCO LTD,5100276209,-210.00,United Kingdom Atomic Energy Authority,United Kingdom Atomic Energy Authority
18/06/2012,PERSONAL PROTECTIVE EQUIPMENT,FUSION,ARCO LTD,5100276257,266.70,United Kingdom Atomic Energy Authority,United Kingdom Atomic Energy Authority
18/06/2012,PERSONAL PROTECTIVE EQUIPMENT,FUSION,ARCO LTD,5100276258,137.16,United Kingdom Atomic Energy Authority,United Kingdom Atomic Energy Authority
18/06/2012,PERSONAL PROTECTIVE EQUIPMENT,FUSION,ARCO LTD,5100276261,81.96,United Kingdom Atomic Energy Authority,United Kingdom Atomic Energy Authority
18/06/2012,PERSONAL PROTECTIVE EQUIPMENT,FUSION,ARCO LTD,5100276262,421.75,United Kingdom Atomic Energy Authority,United Kingdom Atomic Energy Authority
28/06/2012,PERSONAL PROTECTIVE EQUIPMENT,FUSION,ARCO LTD,5100276706,-35.00,United Kingdom Atomic Energy Authority,United Kingdom Atomic Energy Authority
28/06/2012,PERSONAL PROTECTIVE EQUIPMENT,FUSION,ARCO LTD,5100276708,35.00,United Kingdom Atomic Energy Authority,United Kingdom Atomic Energy Authority
30/05/2012,PERSONAL PROTECTIVE EQUIPMENT,FUSION,ARCO LTD,5100275684,2.01,United Kingdom Atomic Energy Authority,United Kingdom Atomic Energy Authority
18/06/2012,PERSONAL PROTECTIVE EQUIPMENT,FUSION,ARCO LTD,5100275941,93.05,United Kingdom Atomic Energy Authority,United Kingdom Atomic Energy Authority
18/06/2012,PERSONAL PROTECTIVE EQUIPMENT,FUSION,ARCO LTD,5100276023,36.00,United Kingdom Atomic Energy Authority,United Kingdom Atomic Energy Authority
18/06/2012,PERSONAL PROTECTIVE EQUIPMENT,FUSION,ARCO LTD,5100276159,36.29,United Kingdom Atomic Energy Authority,United Kingdom Atomic Energy Authority
20/06/2012,PERSONAL PROTECTIVE EQUIPMENT,FUSION,ARCO LTD,5100276206,50.82,United Kingdom Atomic Energy Authority,United Kingdom Atomic Energy Authority
20/06/2012,PERSONAL PROTECTIVE EQUIPMENT,FUSION,ARCO LTD,5100276374,-47.99,United Kingdom Atomic Energy Authority,United Kingdom Atomic Energy Authority
13/06/2012,PERSONAL PROTECTIVE EQUIPMENT,FUSION,ARCO WESSEX,5100275940,9.93,United Kingdom Atomic Energy Authority,United Kingdom Atomic Energy Authority
18/06/2012,PERSONAL PROTECTIVE EQUIPMENT,FUSION,ARCO WESSEX,5100276259,21.60,United Kingdom Atomic Energy Authority,United Kingdom Atomic Energy Authority
18/06/2012,PERSONAL PROTECTIVE EQUIPMENT,FUSION,ARCO WESSEX,5100276260,66.60,United Kingdom Atomic Energy Authority,United Kingdom Atomic Energy Authority
18/06/2012,PERSONAL PROTECTIVE EQUIPMENT,FUSION,ARCO WESSEX,5100276207,32.79,United Kingdom Atomic Energy Authority,United Kingdom Atomic Energy Authority
27/06/2012,PERSONAL PROTECTIVE EQUIPMENT,FUSION,ARCO WESSEX,5100276610,43.49,United Kingdom Atomic Energy Authority,United Kingdom Atomic Energy Authority
07/06/2012,PERSONAL PROTECTIVE EQUIPMENT,FUSION,ARCO WESSEX,5100275630,23.24,United Kingdom Atomic Energy Authority,United Kingdom Atomic Energy Authority
29/06/2012,TRAINING COURSE FEES,FUSION,AREVA NP,1900057150,"1,130.23",United Kingdom Atomic Energy Authority,United Kingdom Atomic Energy Authority
13/06/2012,PLANT & EQUIPMENT,FUSION,ARVAL UK LIMITED,5100275797,814.86,United Kingdom Atomic Energy Authority,United Kingdom Atomic Energy Authority
25/06/2012,PLANT SPARES,FUSION,AS SCIENTIFIC PRODUCTS LTD,5100276443,"2,975.00",United Kingdom Atomic Energy Authority,United Kingdom Atomic Energy Authority
25/06/2012,MATERIALS & SPARES,FUSION,ASTEC PRECISION ENGINEERING LTD,5100276538,340.00,United Kingdom Atomic Energy Authority,United Kingdom Atomic Energy Authority
28/05/2012,PLANT SPARES,FUSION,AURIGA EUROPE PLC,5100275373,82.00,United Kingdom Atomic Energy Authority,United Kingdom Atomic Energy Authority
28/05/2012,CATERING,SUPPORT SERVICES,AVENANCE PLC,5100275419,178.50,United Kingdom Atomic Energy Authority,United Kingdom Atomic Energy Authority
25/06/2012,CATERING,SUPPORT SERVICES,AVENANCE PLC,5100276413,55.57,United Kingdom Atomic Energy Authority,United Kingdom Atomic Energy Authority
28/05/2012,CATERING,FUSION,AVENANCE PLC,5100275416,587.00,United Kingdom Atomic Energy Authority,United Kingdom Atomic Energy Authority
28/05/2012,CATERING,FUSION,AVENANCE PLC,5100275418,771.44,United Kingdom Atomic Energy Authority,United Kingdom Atomic Energy Authority
25/06/2012,CATERING,FUSION,AVENANCE PLC,5100276414,703.46,United Kingdom Atomic Energy Authority,United Kingdom Atomic Energy Authority
25/06/2012,CATERING,FUSION,AVENANCE PLC,5100276415,587.00,United Kingdom Atomic Energy Authority,United Kingdom Atomic Energy Authority
28/05/2012,CATERING,PROPERTY,AVENANCE PLC,5100275420,"9,670.88",United Kingdom Atomic Energy Authority,United Kingdom Atomic Energy Authority
28/05/2012,CATERING,PROPERTY,AVENANCE PLC,5100275613,252.90,United Kingdom Atomic Energy Authority,United Kingdom Atomic Energy Authority
13/06/2012,CATERING,PROPERTY,AVENANCE PLC,5100276033,"-2,000.00",United Kingdom Atomic Energy Authority,United Kingdom Atomic Energy Authority
13/06/2012,CATERING,PROPERTY,AVENANCE PLC,5100276038,-124.80,United Kingdom Atomic Energy Authority,United Kingdom Atomic Energy Authority
13/06/2012,CATERING,PROPERTY,AVENANCE PLC,5100276039,-132.94,United Kingdom Atomic Energy Authority,United Kingdom Atomic Energy Authority
13/06/2012,CATERING,PROPERTY,AVENANCE PLC,5100276041,-362.21,United Kingdom Atomic Energy Authority,United Kingdom Atomic Energy Authority
13/06/2012,CATERING,PROPERTY,AVENANCE PLC,5100276042,362.21,United Kingdom Atomic Energy Authority,United Kingdom Atomic Energy Authority
13/06/2012,CATERING,PROPERTY,AVENANCE PLC,5100276044,"1,365.56",United Kingdom Atomic Energy Authority,United Kingdom Atomic Energy Authority
13/06/2012,CATERING,PROPERTY,AVENANCE PLC,5100276045,"2,375.00",United Kingdom Atomic Energy Authority,United Kingdom Atomic Energy Authority
18/06/2012,CATERING,PROPERTY,AVENANCE PLC,5100276273,566.60,United Kingdom Atomic Energy Authority,United Kingdom Atomic Energy Authority
25/06/2012,CATERING,PROPERTY,AVENANCE PLC,5100276416,625.00,United Kingdom Atomic Energy Authority,United Kingdom Atomic Energy Authority
25/06/2012,CATERING,PROPERTY,AVENANCE PLC,5100276417,293.00,United Kingdom Atomic Energy Authority,United Kingdom Atomic Energy Authority
25/06/2012,CATERING,PROPERTY,AVENANCE PLC,5100276471,"5,840.69",United Kingdom Atomic Energy Authority,United Kingdom Atomic Energy Authority
30/05/2012,PLANT SPARES,FUSION,AW GRACE & SON,5100275691,133.33,United Kingdom Atomic Energy Authority,United Kingdom Atomic Energy Authority
30/05/2012,TREATED WATER,FUSION,B & V WATER TREATMENT,5100275429,"1,131.98",United Kingdom Atomic Energy Authority,United Kingdom Atomic Energy Authority
07/06/2012,TREATED WATER,FUSION,B & V WATER TREATMENT,5100275699,"1,131.98",United Kingdom Atomic Energy Authority,United Kingdom Atomic Energy Authority
29/06/2012,ENTERTAINMENT - STAFF,SUPPORT SERVICES,Banana Brain Fun Show,1900057143,450.00,United Kingdom Atomic Energy Authority,United Kingdom Atomic Energy Authority
18/06/2012,LEGAL FEES,SUPPORT SERVICES,Barry Laidler,1900057067,"6,635.66",United Kingdom Atomic Energy Authority,United Kingdom Atomic Energy Authority
07/06/2012,PLANT SPARES,FUSION,BATT CABLES PLC,5100275755,267.00,United Kingdom Atomic Energy Authority,United Kingdom Atomic Energy Authority
28/05/2012,REPAIRS & MAINTENANCE,FUSION,BATT CABLES PLC,5100275502,"1,160.50",United Kingdom Atomic Energy Authority,United Kingdom Atomic Energy Authority
25/06/2012,PROFESSIONAL SERVICES,SUPPORT SERVICES,BDO LLP,5100276334,310.00,United Kingdom Atomic Energy Authority,United Kingdom Atomic Energy Authority
18/06/2012,REPAIRS & MAINTENANCE,FUSION,BEAVER 84 LIMITED,5100276240,"4,740.10",United Kingdom Atomic Energy Authority,United Kingdom Atomic Energy Authority
25/06/2012,REPAIRS & MAINTENANCE,FUSION,BEAVER 84 LIMITED,5100276448,152.90,United Kingdom Atomic Energy Authority,United Kingdom Atomic Energy Authority
25/06/2012,REPAIRS & MAINTENANCE,FUSION,BEAVER 84 LIMITED,5100276450,120.00,United Kingdom Atomic Energy Authority,United Kingdom Atomic Energy Authority
27/06/2012,REPAIRS & MAINTENANCE,FUSION,BEAVER 84 LIMITED,5100276451,323.53,United Kingdom Atomic Energy Authority,United Kingdom Atomic Energy Authority
13/06/2012,CLEANING,PROPERTY,BIFFA RECYCLING,5100275261,-11.40,United Kingdom Atomic Energy Authority,United Kingdom Atomic Energy Authority
13/06/2012,CLEANING,PROPERTY,BIFFA RECYCLING,5100276037,165.00,United Kingdom Atomic Energy Authority,United Kingdom Atomic Energy Authority
20/06/2012,HIRED STAFF,FUSION,BLACK DIAMOND UMBRELLA LTD,5100276396,"4,088.16",United Kingdom Atomic Energy Authority,United Kingdom Atomic Energy Authority
20/06/2012,HIRED STAFF,FUSION,BLACK DIAMOND UMBRELLA LTD,5100276397,"4,737.90",United Kingdom Atomic Energy Authority,United Kingdom Atomic Energy Authority
20/06/2012,HIRED STAFF,FUSION,BLACK DIAMOND UMBRELLA LTD,5100276398,953.32,United Kingdom Atomic Energy Authority,United Kingdom Atomic Energy Authority
20/06/2012,HIRED STAFF,FUSION,BLACK DIAMOND UMBRELLA LTD,5100276399,"1,045.33",United Kingdom Atomic Energy Authority,United Kingdom Atomic Energy Authority
20/06/2012,HIRED STAFF,FUSION,BLACK DIAMOND UMBRELLA LTD,5100276400,662.70,United Kingdom Atomic Energy Authority,United Kingdom Atomic Energy Authority
20/06/2012,HIRED STAFF,FUSION,BLACK DIAMOND UMBRELLA LTD,5100276401,828.38,United Kingdom Atomic Energy Authority,United Kingdom Atomic Energy Authority
20/06/2012,HIRED STAFF,FUSION,BLACK DIAMOND UMBRELLA LTD,5100276402,828.38,United Kingdom Atomic Energy Authority,United Kingdom Atomic Energy Authority
20/06/2012,HIRED STAFF,FUSION,BLACK DIAMOND UMBRELLA LTD,5100276403,"1,162.88",United Kingdom Atomic Energy Authority,United Kingdom Atomic Energy Authority
20/06/2012,HIRED STAFF,FUSION,BLACK DIAMOND UMBRELLA LTD,5100276404,"1,162.88",United Kingdom Atomic Energy Authority,United Kingdom Atomic Energy Authority
20/06/2012,HIRED STAFF,FUSION,BLACK DIAMOND UMBRELLA LTD,5100276405,"1,162.88",United Kingdom Atomic Energy Authority,United Kingdom Atomic Energy Authority
20/06/2012,HIRED STAFF,FUSION,BLACK DIAMOND UMBRELLA LTD,5100276406,"1,174.88",United Kingdom Atomic Energy Authority,United Kingdom Atomic Energy Authority
20/06/2012,HIRED STAFF,FUSION,BLACK DIAMOND UMBRELLA LTD,5100276407,"1,174.88",United Kingdom Atomic Energy Authority,United Kingdom Atomic Energy Authority
07/06/2012,PRINTING & GRAPHICS,FUSION,BLUEPRINT IMAGING LTD,5100275816,622.00,United Kingdom Atomic Energy Authority,United Kingdom Atomic Energy Authority
07/06/2012,PROFESSIONAL SERVICES,FUSION,BNS NUCLEAR SERVICES,5100275719,"108,688.07",United Kingdom Atomic Energy Authority,United Kingdom Atomic Energy Authority
18/06/2012,PROFESSIONAL SERVICES,FUSION,BNS NUCLEAR SERVICES,5100276051,"83,122.74",United Kingdom Atomic Energy Authority,United Kingdom Atomic Energy Authority
28/05/2012,GASES,FUSION,BOC LTD,5100275439,132.00,United Kingdom Atomic Energy Authority,United Kingdom Atomic Energy Authority
07/06/2012,GASES,FUSION,BOC LTD,5100275634,4.53,United Kingdom Atomic Energy Authority,United Kingdom Atomic Energy Authority
25/06/2012,GASES,FUSION,BOC LTD,5100275946,43.58,United Kingdom Atomic Energy Authority,United Kingdom Atomic Energy Authority
25/06/2012,GASES,FUSION,BOC LTD,5100275931,22.68,United Kingdom Atomic Energy Authority,United Kingdom Atomic Energy Authority
28/05/2012,GASES,FUSION,BOC LTD,5100275080,208.78,United Kingdom Atomic Energy Authority,United Kingdom Atomic Energy Authority
28/05/2012,GASES,FUSION,BOC LTD,5100275569,3.78,United Kingdom Atomic Energy Authority,United Kingdom Atomic Energy Authority
28/05/2012,GASES,FUSION,BOC LTD,5100275008,"31,374.99",United Kingdom Atomic Energy Authority,United Kingdom Atomic Energy Authority
28/05/2012,GASES,FUSION,BOC LTD,5100275360,"22,098.40",United Kingdom Atomic Energy Authority,United Kingdom Atomic Energy Authority
28/05/2012,GASES,FUSION,BOC LTD,5100275440,496.78,United Kingdom Atomic Energy Authority,United Kingdom Atomic Energy Authority
20/06/2012,GASES,FUSION,BOC LTD,5100275930,269.44,United Kingdom Atomic Energy Authority,United Kingdom Atomic Energy Authority
20/06/2012,GASES,FUSION,BOC LTD,5100275945,"20,281.40",United Kingdom Atomic Energy Authority,United Kingdom Atomic Energy Authority
20/06/2012,GASES,FUSION,BOC LTD,5100276267,"3,725.64",United Kingdom Atomic Energy Authority,United Kingdom Atomic Energy Authority
20/06/2012,GASES,FUSION,BOC LTD,5100276268,"20,792.00",United Kingdom Atomic Energy Authority,United Kingdom Atomic Energy Authority
20/06/2012,GASES,FUSION,BOC LTD,5100276269,"19,552.85",United Kingdom Atomic Energy Authority,United Kingdom Atomic Energy Authority
18/06/2012,GASES,FUSION,BOC LTD,5100275947,248.00,United Kingdom Atomic Energy Authority,United Kingdom Atomic Energy Authority
13/06/2012,GASES,FUSION,BOC LTD,5100275948,76.00,United Kingdom Atomic Energy Authority,United Kingdom Atomic Energy Authority
18/06/2012,GASES,FUSION,BOC LTD,5100276227,147.98,United Kingdom Atomic Energy Authority,United Kingdom Atomic Energy Authority
20/06/2012,GASES,FUSION,BOC LTD,5100276221,187.68,United Kingdom Atomic Energy Authority,United Kingdom Atomic Energy Authority
07/06/2012,GASES,FUSION,BOC LTD,5100275702,5.98,United Kingdom Atomic Energy Authority,United Kingdom Atomic Energy Authority
18/06/2012,GASES,FUSION,BOC LTD,5100276216,173.34,United Kingdom Atomic Energy Authority,United Kingdom Atomic Energy Authority
25/06/2012,GASES,FUSION,BOC LTD,5100276457,"1,127.76",United Kingdom Atomic Energy Authority,United Kingdom Atomic Energy Authority
18/06/2012,GASES,FUSION,BOC LTD,5100276218,24.68,United Kingdom Atomic Energy Authority,United Kingdom Atomic Energy Authority
28/05/2012,GASES,FUSION,BOC LTD,5100275361,11.96,United Kingdom Atomic Energy Authority,United Kingdom Atomic Energy Authority
28/05/2012,GASES,FUSION,BOC LTD,5100275362,4.58,United Kingdom Atomic Energy Authority,United Kingdom Atomic Energy Authority
28/05/2012,GASES,FUSION,BOC LTD,5100275570,149.04,United Kingdom Atomic Energy Authority,United Kingdom Atomic Energy Authority
18/06/2012,GASES,FUSION,BOC LTD,5100276224,290.12,United Kingdom Atomic Energy Authority,United Kingdom Atomic Energy Authority
18/06/2012,GASES,FUSION,BOC LTD,5100276219,66.30,United Kingdom Atomic Energy Authority,United Kingdom Atomic Energy Authority
28/05/2012,GASES,FUSION,BOC LTD,5100275568,539.76,United Kingdom Atomic Energy Authority,United Kingdom Atomic Energy Authority
18/06/2012,GASES,FUSION,BOC LTD,5100276214,140.24,United Kingdom Atomic Energy Authority,United Kingdom Atomic Energy Authority
20/06/2012,GASES,FUSION,BOC LTD,5100276395,243.05,United Kingdom Atomic Energy Authority,United Kingdom Atomic Energy Authority
18/06/2012,GASES,FUSION,BOC LTD,5100275927,15.12,United Kingdom Atomic Energy Authority,United Kingdom Atomic Energy Authority
18/06/2012,GASES,FUSION,BOC LTD,5100276223,68.50,United Kingdom Atomic Energy Authority,United Kingdom Atomic Energy Authority
11/06/2012,MATERIALS & SPARES,FUSION,BOSCH REXROTH LTD,5100275866,510.73,United Kingdom Atomic Energy Authority,United Kingdom Atomic Energy Authority
25/06/2012,MATERIALS & SPARES,FUSION,BOSCH REXROTH LTD,5100276332,-510.73,United Kingdom Atomic Energy Authority,United Kingdom Atomic Energy Authority
25/06/2012,MATERIALS & SPARES,FUSION,BOSCH REXROTH LTD,5100276333,129.00,United Kingdom Atomic Energy Authority,United Kingdom Atomic Energy Authority
25/06/2012,MATERIALS & SPARES,FUSION,BOSCH REXROTH LTD,5100276355,296.61,United Kingdom Atomic Energy Authority,United Kingdom Atomic Energy Authority
18/06/2012,PLANT & EQUIPMENT,FUSION,BRAMLEY ENGINEERING,5100276157,"3,480.00",United Kingdom Atomic Energy Authority,United Kingdom Atomic Energy Authority
20/06/2012,MATERIALS: HAZARDOUS,FUSION,BRENNTAG UK LTD,5100276337,431.18,United Kingdom Atomic Energy Authority,United Kingdom Atomic Energy Authority
13/06/2012,PLANT SPARES,FUSION,BRITE PRECISION,5100275433,"3,800.00",United Kingdom Atomic Energy Authority,United Kingdom Atomic Energy Authority
27/06/2012,UTILITIES/ELECTRICITY,FUSION,BRITISH ENERGY GENERATION LTD,5100275278,"112,432.00",United Kingdom Atomic Energy Authority,United Kingdom Atomic Energy Authority
25/06/2012,UTILITIES/ELECTRICITY,PROPERTY,BRITISH GAS BUSINESS,5100276279,-837.54,United Kingdom Atomic Energy Authority,United Kingdom Atomic Energy Authority
25/06/2012,UTILITIES/ELECTRICITY,PROPERTY,BRITISH GAS BUSINESS,5100276281,-256.92,United Kingdom Atomic Energy Authority,United Kingdom Atomic Energy Authority
25/06/2012,UTILITIES/ELECTRICITY,PROPERTY,BRITISH GAS BUSINESS,5100276283,-971.46,United Kingdom Atomic Energy Authority,United Kingdom Atomic Energy Authority
25/06/2012,UTILITIES/ELECTRICITY,PROPERTY,BRITISH GAS BUSINESS,5100276285,-204.09,United Kingdom Atomic Energy Authority,United Kingdom Atomic Energy Authority
25/06/2012,UTILITIES/ELECTRICITY,PROPERTY,BRITISH GAS BUSINESS,5100276286,"-1,128.69",United Kingdom Atomic Energy Authority,United Kingdom Atomic Energy Authority
25/06/2012,UTILITIES/ELECTRICITY,PROPERTY,BRITISH GAS BUSINESS,5100276287,"-1,205.01",United Kingdom Atomic Energy Authority,United Kingdom Atomic Energy Authority
25/06/2012,UTILITIES/ELECTRICITY,PROPERTY,BRITISH GAS BUSINESS,5100276288,-118.49,United Kingdom Atomic Energy Authority,United Kingdom Atomic Energy Authority
25/06/2012,UTILITIES/ELECTRICITY,PROPERTY,BRITISH GAS BUSINESS,5100276289,-398.23,United Kingdom Atomic Energy Authority,United Kingdom Atomic Energy Authority
25/06/2012,UTILITIES/ELECTRICITY,PROPERTY,BRITISH GAS BUSINESS,5100276290,-85.04,United Kingdom Atomic Energy Authority,United Kingdom Atomic Energy Authority
25/06/2012,UTILITIES/ELECTRICITY,PROPERTY,BRITISH GAS BUSINESS,5100276291,-529.88,United Kingdom Atomic Energy Authority,United Kingdom Atomic Energy Authority
25/06/2012,UTILITIES/ELECTRICITY,PROPERTY,BRITISH GAS BUSINESS,5100276292,-827.28,United Kingdom Atomic Energy Authority,United Kingdom Atomic Energy Authority
25/06/2012,UTILITIES/ELECTRICITY,PROPERTY,BRITISH GAS BUSINESS,5100276293,"1,609.90",United Kingdom Atomic Energy Authority,United Kingdom Atomic Energy Authority
25/06/2012,UTILITIES/ELECTRICITY,PROPERTY,BRITISH GAS BUSINESS,5100276294,"2,278.38",United Kingdom Atomic Energy Authority,United Kingdom Atomic Energy Authority
25/06/2012,UTILITIES/ELECTRICITY,PROPERTY,BRITISH GAS BUSINESS,5100276295,964.18,United Kingdom Atomic Energy Authority,United Kingdom Atomic Energy Authority
25/06/2012,UTILITIES/ELECTRICITY,PROPERTY,BRITISH GAS BUSINESS,5100276296,146.84,United Kingdom Atomic Energy Authority,United Kingdom Atomic Energy Authority
25/06/2012,UTILITIES/ELECTRICITY,PROPERTY,BRITISH GAS BUSINESS,5100276297,395.37,United Kingdom Atomic Energy Authority,United Kingdom Atomic Energy Authority
25/06/2012,UTILITIES/ELECTRICITY,PROPERTY,BRITISH GAS BUSINESS,5100276298,112.19,United Kingdom Atomic Energy Authority,United Kingdom Atomic Energy Authority
25/06/2012,UTILITIES/ELECTRICITY,PROPERTY,BRITISH GAS BUSINESS,5100276299,"2,314.50",United Kingdom Atomic Energy Authority,United Kingdom Atomic Energy Authority
25/06/2012,UTILITIES/ELECTRICITY,PROPERTY,BRITISH GAS BUSINESS,5100276300,"2,793.86",United Kingdom Atomic Energy Authority,United Kingdom Atomic Energy Authority
25/06/2012,UTILITIES/ELECTRICITY,PROPERTY,BRITISH GAS BUSINESS,5100276301,188.05,United Kingdom Atomic Energy Authority,United Kingdom Atomic Energy Authority
25/06/2012,UTILITIES/ELECTRICITY,PROPERTY,BRITISH GAS BUSINESS,5100276302,"1,431.58",United Kingdom Atomic Energy Authority,United Kingdom Atomic Energy Authority
25/06/2012,UTILITIES/ELECTRICITY,PROPERTY,BRITISH GAS BUSINESS,5100276303,194.45,United Kingdom Atomic Energy Authority,United Kingdom Atomic Energy Authority
25/06/2012,UTILITIES/ELECTRICITY,PROPERTY,BRITISH GAS BUSINESS,5100276304,"1,094.33",United Kingdom Atomic Energy Authority,United Kingdom Atomic Energy Authority
25/06/2012,UTILITIES/ELECTRICITY,PROPERTY,BRITISH GAS BUSINESS,5100276305,84.66,United Kingdom Atomic Energy Authority,United Kingdom Atomic Energy Authority
25/06/2012,UTILITIES/ELECTRICITY,PROPERTY,BRITISH GAS BUSINESS,5100276306,475.87,United Kingdom Atomic Energy Authority,United Kingdom Atomic Energy Authority
25/06/2012,UTILITIES/ELECTRICITY,PROPERTY,BRITISH GAS BUSINESS,5100276307,42.52,United Kingdom Atomic Energy Authority,United Kingdom Atomic Energy Authority
25/06/2012,UTILITIES/ELECTRICITY,PROPERTY,BRITISH GAS BUSINESS,5100276308,838.75,United Kingdom Atomic Energy Authority,United Kingdom Atomic Energy Authority
25/06/2012,UTILITIES/ELECTRICITY,PROPERTY,BRITISH GAS BUSINESS,5100276309,75.37,United Kingdom Atomic Energy Authority,United Kingdom Atomic Energy Authority
25/06/2012,UTILITIES/ELECTRICITY,PROPERTY,BRITISH GAS BUSINESS,5100276310,710.13,United Kingdom Atomic Energy Authority,United Kingdom Atomic Energy Authority
25/06/2012,UTILITIES/ELECTRICITY,PROPERTY,BRITISH GAS BUSINESS,5100276311,516.42,United Kingdom Atomic Energy Authority,United Kingdom Atomic Energy Authority
25/06/2012,UTILITIES/ELECTRICITY,PROPERTY,BRITISH GAS BUSINESS,5100276312,155.11,United Kingdom Atomic Energy Authority,United Kingdom Atomic Energy Authority
20/06/2012,MATERIALS & SPARES,FUSION,BROWNELL LTD,5100276338,142.50,United Kingdom Atomic Energy Authority,United Kingdom Atomic Energy Authority
18/06/2012,PROFESSIONAL SERVICES,PROPERTY,BSP CONSULTING,5100275955,705.00,United Kingdom Atomic Energy Authority,United Kingdom Atomic Energy Authority
30/05/2012,MATERIALS & SPARES,FUSION,BSRIA INSTRUMENT SOLUTIONS,5100274008,243.57,United Kingdom Atomic Energy Authority,United Kingdom Atomic Energy Authority
30/05/2012,MATERIALS & SPARES,FUSION,BSRIA INSTRUMENT SOLUTIONS,5100274809,360.00,United Kingdom Atomic Energy Authority,United Kingdom Atomic Energy Authority
28/05/2012,MATERIALS & SPARES,FUSION,BSS OXFORD,5100275635,69.71,United Kingdom Atomic Energy Authority,United Kingdom Atomic Energy Authority
11/06/2012,MATERIALS & SPARES,FUSION,BSS OXFORD,5100275901,119.84,United Kingdom Atomic Energy Authority,United Kingdom Atomic Energy Authority
18/06/2012,MATERIALS & SPARES,FUSION,BSS OXFORD,5100276265,217.43,United Kingdom Atomic Energy Authority,United Kingdom Atomic Energy Authority
18/06/2012,MATERIALS & SPARES,FUSION,BSS OXFORD,5100276266,273.51,United Kingdom Atomic Energy Authority,United Kingdom Atomic Energy Authority
25/06/2012,MATERIALS & SPARES,FUSION,BSS OXFORD,5100276543,152.37,United Kingdom Atomic Energy Authority,United Kingdom Atomic Energy Authority
27/06/2012,MATERIALS & SPARES,SUPPORT SERVICES,BSS OXFORD,5100276544,17.49,United Kingdom Atomic Energy Authority,United Kingdom Atomic Energy Authority
13/06/2012,PERSONAL PROTECTIVE EQUIPMENT,FUSION,BUCK & HICKMAN LTD,5100276003,594.41,United Kingdom Atomic Energy Authority,United Kingdom Atomic Energy Authority
25/06/2012,MATERIALS & SPARES,FUSION,BUDGET FORKTRUCKS LTD,5100276280,390.00,United Kingdom Atomic Energy Authority,United Kingdom Atomic Energy Authority
25/06/2012,MATERIALS & SPARES,FUSION,BUDGET FORKTRUCKS LTD,5100276282,268.67,United Kingdom Atomic Energy Authority,United Kingdom Atomic Energy Authority
30/05/2012,MATERIALS & SPARES,FUSION,BUNZL SWS,5100275701,125.40,United Kingdom Atomic Energy Authority,United Kingdom Atomic Energy Authority
18/06/2012,CATERING SUPPLIES,SUPPORT SERVICES,BWT UK LTD,5100276006,736.85,United Kingdom Atomic Energy Authority,United Kingdom Atomic Energy Authority
25/06/2012,PLANT & EQUIPMENT,FUSION,CALUMET,5100276375,"2,210.60",United Kingdom Atomic Energy Authority,United Kingdom Atomic Energy Authority
20/06/2012,PLANT & EQUIPMENT,FUSION,CANBERRA UK LIMITED,5100276340,"6,512.00",United Kingdom Atomic Energy Authority,United Kingdom Atomic Energy Authority
11/06/2012,TRAVEL,SUPPORT SERVICES,CAPITA BUSINESS TRAVEL,5100275873,"38,493.48",United Kingdom Atomic Energy Authority,United Kingdom Atomic Energy Authority
30/05/2012,PLANT & EQUIPMENT,FUSION,CARDIAC SCIENCE CORPORATION,5100275046,"1,390.00",United Kingdom Atomic Energy Authority,United Kingdom Atomic Energy Authority
30/05/2012,PLANT & EQUIPMENT,PROPERTY,CARDIAC SCIENCE CORPORATION,5100274996,110.00,United Kingdom Atomic Energy Authority,United Kingdom Atomic Energy Authority
18/06/2012,CONSUMABLES,FUSION,CARILLON INDUSTRIAL SERVICES LTD,5100275621,171.60,United Kingdom Atomic Energy Authority,United Kingdom Atomic Energy Authority
18/06/2012,CONSUMABLES,FUSION,CARILLON INDUSTRIAL SERVICES LTD,5100275769,121.31,United Kingdom Atomic Energy Authority,United Kingdom Atomic Energy Authority
18/06/2012,CONSUMABLES,FUSION,CARILLON INDUSTRIAL SERVICES LTD,5100275770,314.50,United Kingdom Atomic Energy Authority,United Kingdom Atomic Energy Authority
18/06/2012,CONSUMABLES,FUSION,CARILLON INDUSTRIAL SERVICES LTD,5100275771,8.56,United Kingdom Atomic Energy Authority,United Kingdom Atomic Energy Authority
18/06/2012,CONSUMABLES,FUSION,CARILLON INDUSTRIAL SERVICES LTD,5100275994,112.91,United Kingdom Atomic Energy Authority,United Kingdom Atomic Energy Authority
25/06/2012,CONSUMABLES,FUSION,CARILLON INDUSTRIAL SERVICES LTD,5100276503,228.21,United Kingdom Atomic Energy Authority,United Kingdom Atomic Energy Authority
13/06/2012,MATERIALS & SPARES,FUSION,CARTER PUMPS,5100274875,943.00,United Kingdom Atomic Energy Authority,United Kingdom Atomic Energy Authority
07/06/2012,MATERIALS & SPARES,FUSION,CARTER PUMPS,5100275752,136.50,United Kingdom Atomic Energy Authority,United Kingdom Atomic Energy Authority
30/05/2012,LEGAL FEES,SUPPORT SERVICES,CATER LEYDON MILLARD LTD,5100275678,52.50,United Kingdom Atomic Energy Authority,United Kingdom Atomic Energy Authority
18/06/2012,MATERIALS & SPARES,FUSION,CBL ELECTRIC VEHICLES LTD,5100275976,"2,760.00",United Kingdom Atomic Energy Authority,United Kingdom Atomic Energy Authority
18/06/2012,MATERIALS & SPARES,FUSION,CBL ELECTRIC VEHICLES LTD,5100275974,991.74,United Kingdom Atomic Energy Authority,United Kingdom Atomic Energy Authority
18/06/2012,MATERIALS & SPARES,FUSION,CBL ELECTRIC VEHICLES LTD,5100275975,740.00,United Kingdom Atomic Energy Authority,United Kingdom Atomic Energy Authority
28/05/2012,HIRED STAFF,FUSION,CHAMPION EMPLOYMENT LTD,5100275458,763.98,United Kingdom Atomic Energy Authority,United Kingdom Atomic Energy Authority
28/05/2012,HIRED STAFF,FUSION,CHAMPION EMPLOYMENT LTD,5100275459,136.43,United Kingdom Atomic Energy Authority,United Kingdom Atomic Energy Authority
28/05/2012,HIRED STAFF,FUSION,CHAMPION EMPLOYMENT LTD,5100275460,889.14,United Kingdom Atomic Energy Authority,United Kingdom Atomic Energy Authority
28/05/2012,HIRED STAFF,FUSION,CHAMPION EMPLOYMENT LTD,5100275462,456.00,United Kingdom Atomic Energy Authority,United Kingdom Atomic Energy Authority
28/05/2012,HIRED STAFF,FUSION,CHAMPION EMPLOYMENT LTD,5100275463,"1,014.26",United Kingdom Atomic Energy Authority,United Kingdom Atomic Energy Authority
28/05/2012,HIRED STAFF,FUSION,CHAMPION EMPLOYMENT LTD,5100275465,608.73,United Kingdom Atomic Energy Authority,United Kingdom Atomic Energy Authority
13/06/2012,HIRED STAFF,FUSION,CHAMPION EMPLOYMENT LTD,5100275705,815.04,United Kingdom Atomic Energy Authority,United Kingdom Atomic Energy Authority
13/06/2012,HIRED STAFF,FUSION,CHAMPION EMPLOYMENT LTD,5100275708,604.20,United Kingdom Atomic Energy Authority,United Kingdom Atomic Energy Authority
13/06/2012,HIRED STAFF,FUSION,CHAMPION EMPLOYMENT LTD,5100275712,729.07,United Kingdom Atomic Energy Authority,United Kingdom Atomic Energy Authority
13/06/2012,HIRED STAFF,FUSION,CHAMPION EMPLOYMENT LTD,5100275713,719.33,United Kingdom Atomic Energy Authority,United Kingdom Atomic Energy Authority
13/06/2012,HIRED STAFF,FUSION,CHAMPION EMPLOYMENT LTD,5100275714,594.60,United Kingdom Atomic Energy Authority,United Kingdom Atomic Energy Authority
13/06/2012,HIRED STAFF,FUSION,CHAMPION EMPLOYMENT LTD,5100275716,729.33,United Kingdom Atomic Energy Authority,United Kingdom Atomic Energy Authority
13/06/2012,HIRED STAFF,FUSION,CHAMPION EMPLOYMENT LTD,5100275908,908.33,United Kingdom Atomic Energy Authority,United Kingdom Atomic Energy Authority
13/06/2012,HIRED STAFF,FUSION,CHAMPION EMPLOYMENT LTD,5100275909,528.64,United Kingdom Atomic Energy Authority,United Kingdom Atomic Energy Authority
13/06/2012,HIRED STAFF,FUSION,CHAMPION EMPLOYMENT LTD,5100275910,908.33,United Kingdom Atomic Energy Authority,United Kingdom Atomic Energy Authority
13/06/2012,HIRED STAFF,FUSION,CHAMPION EMPLOYMENT LTD,5100275911,"1,141.16",United Kingdom Atomic Energy Authority,United Kingdom Atomic Energy Authority
13/06/2012,HIRED STAFF,FUSION,CHAMPION EMPLOYMENT LTD,5100275912,574.50,United Kingdom Atomic Energy Authority,United Kingdom Atomic Energy Authority
13/06/2012,HIRED STAFF,FUSION,CHAMPION EMPLOYMENT LTD,5100275913,619.80,United Kingdom Atomic Energy Authority,United Kingdom Atomic Energy Authority
13/06/2012,HIRED STAFF,FUSION,CHAMPION EMPLOYMENT LTD,5100276025,688.13,United Kingdom Atomic Energy Authority,United Kingdom Atomic Energy Authority
13/06/2012,HIRED STAFF,FUSION,CHAMPION EMPLOYMENT LTD,5100276026,708.00,United Kingdom Atomic Energy Authority,United Kingdom Atomic Energy Authority
13/06/2012,HIRED STAFF,FUSION,CHAMPION EMPLOYMENT LTD,5100276027,688.13,United Kingdom Atomic Energy Authority,United Kingdom Atomic Energy Authority
13/06/2012,HIRED STAFF,FUSION,CHAMPION EMPLOYMENT LTD,5100276029,799.88,United Kingdom Atomic Energy Authority,United Kingdom Atomic Energy Authority
13/06/2012,HIRED STAFF,FUSION,CHAMPION EMPLOYMENT LTD,5100276030,626.21,United Kingdom Atomic Energy Authority,United Kingdom Atomic Energy Authority
13/06/2012,HIRED STAFF,FUSION,CHAMPION EMPLOYMENT LTD,5100276032,774.75,United Kingdom Atomic Energy Authority,United Kingdom Atomic Energy Authority
25/06/2012,HIRED STAFF,FUSION,CHAMPION EMPLOYMENT LTD,5100276384,908.33,United Kingdom Atomic Energy Authority,United Kingdom Atomic Energy Authority
25/06/2012,HIRED STAFF,FUSION,CHAMPION EMPLOYMENT LTD,5100276385,424.80,United Kingdom Atomic Energy Authority,United Kingdom Atomic Energy Authority
25/06/2012,HIRED STAFF,FUSION,CHAMPION EMPLOYMENT LTD,5100276386,412.88,United Kingdom Atomic Energy Authority,United Kingdom Atomic Energy Authority
25/06/2012,HIRED STAFF,FUSION,CHAMPION EMPLOYMENT LTD,5100276387,479.93,United Kingdom Atomic Energy Authority,United Kingdom Atomic Energy Authority
25/06/2012,HIRED STAFF,FUSION,CHAMPION EMPLOYMENT LTD,5100276388,344.70,United Kingdom Atomic Energy Authority,United Kingdom Atomic Energy Authority
25/06/2012,HIRED STAFF,FUSION,CHAMPION EMPLOYMENT LTD,5100276389,464.85,United Kingdom Atomic Energy Authority,United Kingdom Atomic Energy Authority
28/05/2012,MATERIALS: HAZARDOUS,FUSION,CHEMTECH WASTE MANAGEMENT,5100275511,190.00,United Kingdom Atomic Energy Authority,United Kingdom Atomic Energy Authority
25/06/2012,MEDICAL EXPENSES,SUPPORT SERVICES,CHILTON COUNSELLING LTD,5100276411,225.00,United Kingdom Atomic Energy Authority,United Kingdom Atomic Energy Authority
28/05/2012,REPAIRS & MAINTENANCE,FUSION,CHUBB ELECTRONIC SECURITY LTD,5100275442,228.55,United Kingdom Atomic Energy Authority,United Kingdom Atomic Energy Authority
28/05/2012,REPAIRS & MAINTENANCE,FUSION,CHUBB ELECTRONIC SECURITY LTD,5100275443,422.82,United Kingdom Atomic Energy Authority,United Kingdom Atomic Energy Authority
28/05/2012,REPAIRS & MAINTENANCE,FUSION,CHUBB ELECTRONIC SECURITY LTD,5100275444,571.37,United Kingdom Atomic Energy Authority,United Kingdom Atomic Energy Authority
28/05/2012,MATERIALS & SPARES,FUSION,CK GAS PRODUCTS LTD,5100275618,42.00,United Kingdom Atomic Energy Authority,United Kingdom Atomic Energy Authority
18/06/2012,LAUNDRY,FUSION,CLEAN LINEN SERVICES LTD,5100275944,75.00,United Kingdom Atomic Energy Authority,United Kingdom Atomic Energy Authority
28/05/2012,CATERING,FUSION,CLEANSING SERVICE GROUP LTD,5100275012,"4,102.73",United Kingdom Atomic Energy Authority,United Kingdom Atomic Energy Authority
11/06/2012,CATERING,PROPERTY,CLEANSING SERVICE GROUP LTD,5100275688,74.30,United Kingdom Atomic Energy Authority,United Kingdom Atomic Energy Authority
11/06/2012,CATERING,PROPERTY,CLEANSING SERVICE GROUP LTD,5100275689,54.60,United Kingdom Atomic Energy Authority,United Kingdom Atomic Energy Authority
07/06/2012,UTILITIES/GAS,PROPERTY,COFELY LTD,5100275761,"4,735.43",United Kingdom Atomic Energy Authority,United Kingdom Atomic Energy Authority
07/06/2012,UTILITIES/GAS,PROPERTY,COFELY LTD,5100275762,"3,590.42",United Kingdom Atomic Energy Authority,United Kingdom Atomic Energy Authority
07/06/2012,UTILITIES/GAS,PROPERTY,COFELY LTD,5100275763,"56,578.62",United Kingdom Atomic Energy Authority,United Kingdom Atomic Energy Authority
07/06/2012,UTILITIES/GAS,PROPERTY,COFELY LTD,5100275765,"75,999.46",United Kingdom Atomic Energy Authority,United Kingdom Atomic Energy Authority
20/06/2012,UTILITIES/GAS,PROPERTY,COFELY LTD,5100275962,"19,938.06",United Kingdom Atomic Energy Authority,United Kingdom Atomic Energy Authority
20/06/2012,UTILITIES/GAS,PROPERTY,COFELY LTD,5100275964,"26,582.50",United Kingdom Atomic Energy Authority,United Kingdom Atomic Energy Authority
18/06/2012,MATERIALS & SPARES,FUSION,COLE-PARMER INSTRUMENT COMPANY LTD,5100276256,61.81,United Kingdom Atomic Energy Authority,United Kingdom Atomic Energy Authority
18/06/2012,REPAIRS & MAINTENANCE,FUSION,COMPRESSOR ENGINEERING LTD,5100275967,"1,919.74",United Kingdom Atomic Energy Authority,United Kingdom Atomic Energy Authority
13/06/2012,PROFESSIONAL SERVICES,PROPERTY,CONNAUGHT COMPLIANCE SERVICES LTD,5100275933,"2,470.00",United Kingdom Atomic Energy Authority,United Kingdom Atomic Energy Authority
13/06/2012,PROFESSIONAL SERVICES,PROPERTY,CONNAUGHT COMPLIANCE SERVICES LTD,5100275932,"19,285.00",United Kingdom Atomic Energy Authority,United Kingdom Atomic Energy Authority
22/06/2012,CONFERENCES/MEETINGS,FUSION,Consorsio RFX,1900057103,230.36,United Kingdom Atomic Energy Authority,United Kingdom Atomic Energy Authority
01/06/2012,CONFERENCES/MEETINGS,FUSION,Consorsio RFX,1900056997,683.07,United Kingdom Atomic Energy Authority,United Kingdom Atomic Energy Authority
29/06/2012,CONFERENCES/MEETINGS,FUSION,Consorsio RFX,1900057151,228.26,United Kingdom Atomic Energy Authority,United Kingdom Atomic Energy Authority
30/05/2012,MATERIALS & SPARES,FUSION,CPC PLC,5100275704,21.99,United Kingdom Atomic Energy Authority,United Kingdom Atomic Energy Authority
28/05/2012,MATERIALS & SPARES,FUSION,CROMWELL LTD,5100275623,44.80,United Kingdom Atomic Energy Authority,United Kingdom Atomic Energy Authority
18/06/2012,MATERIALS & SPARES,FUSION,CROMWELL LTD,5100276103,100.50,United Kingdom Atomic Energy Authority,United Kingdom Atomic Energy Authority
25/06/2012,MATERIALS & SPARES,FUSION,CROMWELL LTD,5100276521,220.32,United Kingdom Atomic Energy Authority,United Kingdom Atomic Energy Authority
18/06/2012,MATERIALS & SPARES,FUSION,CROMWELL LTD,5100276100,28.79,United Kingdom Atomic Energy Authority,United Kingdom Atomic Energy Authority
25/06/2012,MATERIALS & SPARES,FUSION,CROMWELL LTD,5100276519,16.85,United Kingdom Atomic Energy Authority,United Kingdom Atomic Energy Authority
28/05/2012,MATERIALS & SPARES,FUSION,CROMWELL LTD,5100275624,106.42,United Kingdom Atomic Energy Authority,United Kingdom Atomic Energy Authority
25/06/2012,MATERIALS & SPARES,FUSION,CROMWELL LTD,5100276516,53.34,United Kingdom Atomic Energy Authority,United Kingdom Atomic Energy Authority
18/06/2012,MATERIALS & SPARES,FUSION,CROMWELL LTD,5100276101,80.56,United Kingdom Atomic Energy Authority,United Kingdom Atomic Energy Authority
13/06/2012,VEHICLE REPAIRS,FUSION,CROSS ROAD GARAGE (OXFORDSHIRE) LTD,5100275903,116.05,United Kingdom Atomic Energy Authority,United Kingdom Atomic Energy Authority
13/06/2012,VEHICLE REPAIRS,FUSION,CROSS ROAD GARAGE (OXFORDSHIRE) LTD,5100275904,54.85,United Kingdom Atomic Energy Authority,United Kingdom Atomic Energy Authority
25/06/2012,REPAIRS & MAINTENANCE,FUSION,CROWCON DETECTION INSTRUMENTS LTD,5100276459,"1,000.00",United Kingdom Atomic Energy Authority,United Kingdom Atomic Energy Authority
30/05/2012,IT MANGED SERVICE,SUPPORT SERVICES,CSC COMPUTER SCIENCES LIMITED,5100275612,"5,198.03",United Kingdom Atomic Energy Authority,United Kingdom Atomic Energy Authority
25/06/2012,IT MANGED SERVICE,SUPPORT SERVICES,CSC COMPUTER SCIENCES LIMITED,5100276346,"13,493.38",United Kingdom Atomic Energy Authority,United Kingdom Atomic Energy Authority
25/06/2012,IT MANGED SERVICE,SUPPORT SERVICES,CSC COMPUTER SCIENCES LIMITED,5100276347,"22,004.51",United Kingdom Atomic Energy Authority,United Kingdom Atomic Energy Authority
25/06/2012,IT MANGED SERVICE,SUPPORT SERVICES,CSC COMPUTER SCIENCES LIMITED,5100276344,"5,188.95",United Kingdom Atomic Energy Authority,United Kingdom Atomic Energy Authority
25/06/2012,IT MANGED SERVICE,SUPPORT SERVICES,CSC COMPUTER SCIENCES LIMITED,5100276345,645.16,United Kingdom Atomic Energy Authority,United Kingdom Atomic Energy Authority
18/06/2012,PLANT SPARES,FUSION,CSE INDUSTRIAL ELECTRICAL DISTRIBUT,5100276107,"3,745.31",United Kingdom Atomic Energy Authority,United Kingdom Atomic Energy Authority
20/06/2012,PROFESSIONAL SERVICES,SUPPORT SERVICES,CSS WORKSAFE,5100276198,750.00,United Kingdom Atomic Energy Authority,United Kingdom Atomic Energy Authority
25/06/2012,PLANT SPARES,FUSION,CUTWEL LTD,5100276394,325.43,United Kingdom Atomic Energy Authority,United Kingdom Atomic Energy Authority
18/06/2012,MATERIALS & SPARES,FUSION,CYCLOPS ELECTRONICS LIMITED,5100276212,437.28,United Kingdom Atomic Energy Authority,United Kingdom Atomic Energy Authority
28/05/2012,MATERIALS & SPARES,FUSION,DARTPOINT LIMITED,5100275542,"14,288.00",United Kingdom Atomic Energy Authority,United Kingdom Atomic Energy Authority
29/05/2012,STUDENT SPONSORSHIPS,FUSION,David Freynet,1900056974,600.00,United Kingdom Atomic Energy Authority,United Kingdom Atomic Energy Authority
25/06/2012,PLANT & EQUIPMENT,FUSION,DAVIS INDUSTRIAL PLASTICS,5100276445,260.84,United Kingdom Atomic Energy Authority,United Kingdom Atomic Energy Authority
18/06/2012,PROFESSIONAL SERVICES,FUSION,DESIGNRULE LTD,5100276202,800.00,United Kingdom Atomic Energy Authority,United Kingdom Atomic Energy Authority
25/06/2012,PLANT & EQUIPMENT,FUSION,DIRECT INSIGHT LTD,5100276500,810.00,United Kingdom Atomic Energy Authority,United Kingdom Atomic Energy Authority
20/06/2012,MATERIALS & SPARES,FUSION,DURA COMPOSITES LTD,5100276199,"1,844.63",United Kingdom Atomic Energy Authority,United Kingdom Atomic Energy Authority
28/05/2012,MATERIALS & SPARES,FUSION,DURBIN METAL INDUSTRIES LTD,5100275528,42.50,United Kingdom Atomic Energy Authority,United Kingdom Atomic Energy Authority
28/05/2012,MATERIALS & SPARES,FUSION,DURBIN METAL INDUSTRIES LTD,5100275531,38.00,United Kingdom Atomic Energy Authority,United Kingdom Atomic Energy Authority
28/05/2012,MATERIALS & SPARES,FUSION,DURBIN METAL INDUSTRIES LTD,5100275533,352.00,United Kingdom Atomic Energy Authority,United Kingdom Atomic Energy Authority
07/06/2012,MATERIALS & SPARES,FUSION,DURBIN METAL INDUSTRIES LTD,5100275700,45.00,United Kingdom Atomic Energy Authority,United Kingdom Atomic Energy Authority
28/05/2012,MATERIALS & SPARES,FUSION,DURBIN METAL INDUSTRIES LTD,5100275529,73.50,United Kingdom Atomic Energy Authority,United Kingdom Atomic Energy Authority
28/05/2012,MATERIALS & SPARES,FUSION,DURBIN METAL INDUSTRIES LTD,5100275532,152.70,United Kingdom Atomic Energy Authority,United Kingdom Atomic Energy Authority
28/05/2012,MATERIALS & SPARES,FUSION,DURBIN METAL INDUSTRIES LTD,5100275534,244.50,United Kingdom Atomic Energy Authority,United Kingdom Atomic Energy Authority
28/05/2012,MATERIALS & SPARES,FUSION,DURBIN METAL INDUSTRIES LTD,5100275535,9.50,United Kingdom Atomic Energy Authority,United Kingdom Atomic Energy Authority
28/05/2012,MATERIALS & SPARES,FUSION,DURBIN METAL INDUSTRIES LTD,5100275537,257.69,United Kingdom Atomic Energy Authority,United Kingdom Atomic Energy Authority
28/05/2012,MATERIALS & SPARES,FUSION,DURBIN METAL INDUSTRIES LTD,5100275539,49.20,United Kingdom Atomic Energy Authority,United Kingdom Atomic Energy Authority
18/06/2012,MATERIALS & SPARES,FUSION,DURBIN METAL INDUSTRIES LTD,5100275905,30.00,United Kingdom Atomic Energy Authority,United Kingdom Atomic Energy Authority
18/06/2012,MATERIALS & SPARES,FUSION,DURBIN METAL INDUSTRIES LTD,5100276015,185.00,United Kingdom Atomic Energy Authority,United Kingdom Atomic Energy Authority
25/06/2012,MATERIALS & SPARES,FUSION,DURBIN METAL INDUSTRIES LTD,5100276352,397.50,United Kingdom Atomic Energy Authority,United Kingdom Atomic Energy Authority
13/06/2012,UTILITIES/ELECTRICITY,FUSION,EDF ENERGY,5100275984,"260,509.17",United Kingdom Atomic Energy Authority,United Kingdom Atomic Energy Authority
25/06/2012,UTILITIES/ELECTRICITY,FUSION,EDF ENERGY,5100276515,"270,953.42",United Kingdom Atomic Energy Authority,United Kingdom Atomic Energy Authority
25/06/2012,UTILITIES/ELECTRICITY,PROPERTY,EDF ENERGY,5100276376,"36,707.66",United Kingdom Atomic Energy Authority,United Kingdom Atomic Energy Authority
25/06/2012,UTILITIES/ELECTRICITY,PROPERTY,EDF ENERGY,5100276377,"2,122.16",United Kingdom Atomic Energy Authority,United Kingdom Atomic Energy Authority
25/06/2012,UTILITIES/ELECTRICITY,PROPERTY,EDF ENERGY,5100276378,426.81,United Kingdom Atomic Energy Authority,United Kingdom Atomic Energy Authority
25/06/2012,UTILITIES/ELECTRICITY,PROPERTY,EDF ENERGY,5100276379,795.56,United Kingdom Atomic Energy Authority,United Kingdom Atomic Energy Authority
25/06/2012,UTILITIES/ELECTRICITY,PROPERTY,EDF ENERGY,5100276380,"1,162.03",United Kingdom Atomic Energy Authority,United Kingdom Atomic Energy Authority
25/06/2012,UTILITIES/ELECTRICITY,PROPERTY,EDF ENERGY,5100276381,"3,462.96",United Kingdom Atomic Energy Authority,United Kingdom Atomic Energy Authority
25/06/2012,UTILITIES/ELECTRICITY,PROPERTY,EDF ENERGY,5100276382,"27,935.84",United Kingdom Atomic Energy Authority,United Kingdom Atomic Energy Authority
25/06/2012,UTILITIES/ELECTRICITY,PROPERTY,EDF ENERGY,5100276383,"13,262.35",United Kingdom Atomic Energy Authority,United Kingdom Atomic Energy Authority
13/06/2012,MATERIALS & SPARES,FUSION,EDMUND OPTICS LTD,5100275907,67.00,United Kingdom Atomic Energy Authority,United Kingdom Atomic Energy Authority
18/06/2012,PLANT & EQUIPMENT,FUSION,EDMUNDSON ELECTRICAL LTD,5100276106,178.01,United Kingdom Atomic Energy Authority,United Kingdom Atomic Energy Authority
25/06/2012,PLANT & EQUIPMENT,FUSION,EDMUNDSON ELECTRICAL LTD,5100276545,"5,030.52",United Kingdom Atomic Energy Authority,United Kingdom Atomic Energy Authority
18/06/2012,PLANT & EQUIPMENT,FUSION,EDMUNDSON ELECTRICAL LTD,5100275900,64.80,United Kingdom Atomic Energy Authority,United Kingdom Atomic Energy Authority
07/06/2012,PLANT & EQUIPMENT,FUSION,EDMUNDSON ELECTRICALS LTD,5100275367,845.63,United Kingdom Atomic Energy Authority,United Kingdom Atomic Energy Authority
07/06/2012,PLANT & EQUIPMENT,FUSION,EDMUNDSON ELECTRICALS LTD,5100275773,76.48,United Kingdom Atomic Energy Authority,United Kingdom Atomic Energy Authority
18/06/2012,PLANT & EQUIPMENT,FUSION,EDMUNDSON ELECTRICALS LTD,5100275886,20.34,United Kingdom Atomic Energy Authority,United Kingdom Atomic Energy Authority
07/06/2012,PLANT & EQUIPMENT,FUSION,EDMUNDSON ELECTRICALS LTD,5100275775,"1,305.21",United Kingdom Atomic Energy Authority,United Kingdom Atomic Energy Authority
13/06/2012,PLANT & EQUIPMENT,FUSION,EDMUNDSON ELECTRICALS LTD,5100275776,40.75,United Kingdom Atomic Energy Authority,United Kingdom Atomic Energy Authority
18/06/2012,PLANT & EQUIPMENT,FUSION,EDMUNDSON ELECTRICALS LTD,5100276076,"1,213.00",United Kingdom Atomic Energy Authority,United Kingdom Atomic Energy Authority
18/06/2012,PLANT & EQUIPMENT,FUSION,EDMUNDSON ELECTRICALS LTD,5100276077,362.87,United Kingdom Atomic Energy Authority,United Kingdom Atomic Energy Authority
18/06/2012,PLANT & EQUIPMENT,FUSION,EDMUNDSON ELECTRICALS LTD,5100276079,64.20,United Kingdom Atomic Energy Authority,United Kingdom Atomic Energy Authority
18/06/2012,PLANT & EQUIPMENT,FUSION,EDMUNDSON ELECTRICALS LTD,5100276080,58.16,United Kingdom Atomic Energy Authority,United Kingdom Atomic Energy Authority
18/06/2012,PLANT & EQUIPMENT,FUSION,EDMUNDSON ELECTRICALS LTD,5100276085,723.97,United Kingdom Atomic Energy Authority,United Kingdom Atomic Energy Authority
18/06/2012,PLANT & EQUIPMENT,FUSION,EDMUNDSON ELECTRICALS LTD,5100276086,131.51,United Kingdom Atomic Energy Authority,United Kingdom Atomic Energy Authority
18/06/2012,PLANT & EQUIPMENT,FUSION,EDMUNDSON ELECTRICALS LTD,5100276087,853.37,United Kingdom Atomic Energy Authority,United Kingdom Atomic Energy Authority
18/06/2012,PLANT & EQUIPMENT,FUSION,EDMUNDSON ELECTRICALS LTD,5100276088,510.74,United Kingdom Atomic Energy Authority,United Kingdom Atomic Energy Authority
25/06/2012,PLANT & EQUIPMENT,FUSION,EDMUNDSON ELECTRICALS LTD,5100276343,600.48,United Kingdom Atomic Energy Authority,United Kingdom Atomic Energy Authority
25/06/2012,PLANT & EQUIPMENT,FUSION,EDMUNDSON ELECTRICALS LTD,5100276361,18.16,United Kingdom Atomic Energy Authority,United Kingdom Atomic Energy Authority
25/06/2012,PLANT & EQUIPMENT,FUSION,EDMUNDSON ELECTRICALS LTD,5100276362,618.42,United Kingdom Atomic Energy Authority,United Kingdom Atomic Energy Authority
25/06/2012,PLANT & EQUIPMENT,FUSION,EDMUNDSON ELECTRICALS LTD,5100276363,94.06,United Kingdom Atomic Energy Authority,United Kingdom Atomic Energy Authority
25/06/2012,PLANT & EQUIPMENT,FUSION,EDMUNDSON ELECTRICALS LTD,5100276364,705.71,United Kingdom Atomic Energy Authority,United Kingdom Atomic Energy Authority
25/06/2012,PLANT & EQUIPMENT,FUSION,EDMUNDSON ELECTRICALS LTD,5100276365,272.84,United Kingdom Atomic Energy Authority,United Kingdom Atomic Energy Authority
25/06/2012,PLANT & EQUIPMENT,FUSION,EDMUNDSON ELECTRICALS LTD,5100276510,164.51,United Kingdom Atomic Energy Authority,United Kingdom Atomic Energy Authority
22/06/2012,PLANT & EQUIPMENT,FUSION,EDMUNDSON ELECTRICALS LTD,5100276547,173.44,United Kingdom Atomic Energy Authority,United Kingdom Atomic Energy Authority
22/06/2012,PLANT & EQUIPMENT,FUSION,EDMUNDSON ELECTRICALS LTD,5100276548,-173.44,United Kingdom Atomic Energy Authority,United Kingdom Atomic Energy Authority
11/06/2012,PLANT & EQUIPMENT,FUSION,EDWARDS LIMITED,5100275639,"1,166.40",United Kingdom Atomic Energy Authority,United Kingdom Atomic Energy Authority
27/06/2012,PLANT & EQUIPMENT,FUSION,EDWARDS LIMITED,5100276502,"1,225.95",United Kingdom Atomic Energy Authority,United Kingdom Atomic Energy Authority
28/05/2012,F&F,SUPPORT SERVICES,EFG MATTHEWS OFFICE FURNITURE LTD,5100275430,644.00,United Kingdom Atomic Energy Authority,United Kingdom Atomic Energy Authority
30/05/2012,F&F,SUPPORT SERVICES,EFG MATTHEWS OFFICE FURNITURE LTD,5100275680,769.82,United Kingdom Atomic Energy Authority,United Kingdom Atomic Energy Authority
25/06/2012,F&F,SUPPORT SERVICES,EFG MATTHEWS OFFICE FURNITURE LTD,5100276536,260.00,United Kingdom Atomic Energy Authority,United Kingdom Atomic Energy Authority
07/06/2012,F&F,FUSION,EFG MATTHEWS OFFICE FURNITURE LTD,5100275742,-245.32,United Kingdom Atomic Energy Authority,United Kingdom Atomic Energy Authority
07/06/2012,F&F,FUSION,EFG MATTHEWS OFFICE FURNITURE LTD,5100275743,245.32,United Kingdom Atomic Energy Authority,United Kingdom Atomic Energy Authority
28/05/2012,F&F,FUSION,EFG MATTHEWS OFFICE FURNITURE LTD,5100275595,532.50,United Kingdom Atomic Energy Authority,United Kingdom Atomic Energy Authority
07/06/2012,F&F,SUPPORT SERVICES,EFG MATTHEWS OFFICE FURNITURE LTD,5100275740,-313.14,United Kingdom Atomic Energy Authority,United Kingdom Atomic Energy Authority
07/06/2012,F&F,SUPPORT SERVICES,EFG MATTHEWS OFFICE FURNITURE LTD,5100275744,313.14,United Kingdom Atomic Energy Authority,United Kingdom Atomic Energy Authority
25/06/2012,MATERIALS & SPARES,FUSION,ELECTRICAL OIL SERVICES LTD,5100276114,141.00,United Kingdom Atomic Energy Authority,United Kingdom Atomic Energy Authority
18/06/2012,MATERIALS & SPARES,FUSION,ELECTRICAL OIL SERVICES LTD,5100276197,756.00,United Kingdom Atomic Energy Authority,United Kingdom Atomic Energy Authority
25/06/2012,MATERIALS & SPARES,FUSION,ELECTRICAL OIL SERVICES LTD,5100276348,-141.00,United Kingdom Atomic Energy Authority,United Kingdom Atomic Energy Authority
25/06/2012,MATERIALS & SPARES,FUSION,ELECTRICAL OIL SERVICES LTD,5100276349,-756.00,United Kingdom Atomic Energy Authority,United Kingdom Atomic Energy Authority
25/06/2012,MATERIALS & SPARES,FUSION,ELECTRICAL OIL SERVICES LTD,5100276350,850.50,United Kingdom Atomic Energy Authority,United Kingdom Atomic Energy Authority
13/06/2012,MATERIALS & SPARES,FUSION,ELEMENT SIX BV,5100275676,339.92,United Kingdom Atomic Energy Authority,United Kingdom Atomic Energy Authority
30/05/2012,SUBSISTENCE,FUSION,EMPLOYEE EXPENSES,100649856,79.11,United Kingdom Atomic Energy Authority,United Kingdom Atomic Energy Authority
30/05/2012,SUBSISTENCE,FUSION,EMPLOYEE EXPENSES,100649856,3.37,United Kingdom Atomic Energy Authority,United Kingdom Atomic Energy Authority
30/05/2012,ROAD TRAVEL,FUSION,EMPLOYEE EXPENSES,100649856,0.97,United Kingdom Atomic Energy Authority,United Kingdom Atomic Energy Authority
30/05/2012,EFDA TRAVEL EXPENSES,FUSION,EMPLOYEE EXPENSES,100649862,235.00,United Kingdom Atomic Energy Authority,United Kingdom Atomic Energy Authority
30/05/2012,EFDA TRAVEL EXPENSES,FUSION,EMPLOYEE EXPENSES,100649864,159.87,United Kingdom Atomic Energy Authority,United Kingdom Atomic Energy Authority
20/06/2012,EFDA TRAVEL EXPENSES,FUSION,EMPLOYEE EXPENSES,100650278,867.95,United Kingdom Atomic Energy Authority,United Kingdom Atomic Energy Authority
20/06/2012,EFDA TRAVEL EXPENSES,FUSION,EMPLOYEE EXPENSES,100650279,607.88,United Kingdom Atomic Energy Authority,United Kingdom Atomic Energy Authority
20/06/2012,EFDA TRAVEL EXPENSES,FUSION,EMPLOYEE EXPENSES,100650281,17.38,United Kingdom Atomic Energy Authority,United Kingdom Atomic Energy Authority
20/06/2012,EFDA TRAVEL EXPENSES,FUSION,EMPLOYEE EXPENSES,100650282,411.71,United Kingdom Atomic Energy Authority,United Kingdom Atomic Energy Authority
20/06/2012,EFDA TRAVEL EXPENSES,FUSION,EMPLOYEE EXPENSES,100650284,152.58,United Kingdom Atomic Energy Authority,United Kingdom Atomic Energy Authority
20/06/2012,EFDA TRAVEL EXPENSES,FUSION,EMPLOYEE EXPENSES,100650285,136.88,United Kingdom Atomic Energy Authority,United Kingdom Atomic Energy Authority
20/06/2012,EFDA TRAVEL EXPENSES,FUSION,EMPLOYEE EXPENSES,100650290,670.44,United Kingdom Atomic Energy Authority,United Kingdom Atomic Energy Authority
14/06/2012,PROFESSIONAL SUBSCRIPTION,SUPPORT SERVICES,EMPLOYEE EXPENSES,100650088,132.30,United Kingdom Atomic Energy Authority,United Kingdom Atomic Energy Authority
16/06/2012,PROFESSIONAL SUBSCRIPTION,SUPPORT SERVICES,EMPLOYEE EXPENSES,100650137,134.00,United Kingdom Atomic Energy Authority,United Kingdom Atomic Energy Authority
30/05/2012,SUBSISTENCE,SUPPORT SERVICES,EMPLOYEE EXPENSES,100649854,20.00,United Kingdom Atomic Energy Authority,United Kingdom Atomic Energy Authority
30/05/2012,SUBSISTENCE,SUPPORT SERVICES,EMPLOYEE EXPENSES,100649854,331.04,United Kingdom Atomic Energy Authority,United Kingdom Atomic Energy Authority
31/05/2012,SUBSISTENCE,SUPPORT SERVICES,EMPLOYEE EXPENSES,100649907,135.10,United Kingdom Atomic Energy Authority,United Kingdom Atomic Energy Authority
31/05/2012,SUBSISTENCE,SUPPORT SERVICES,EMPLOYEE EXPENSES,100649907,11.49,United Kingdom Atomic Energy Authority,United Kingdom Atomic Energy Authority
03/06/2012,SUBSISTENCE,SUPPORT SERVICES,EMPLOYEE EXPENSES,100650036,125.39,United Kingdom Atomic Energy Authority,United Kingdom Atomic Energy Authority
14/06/2012,SUBSISTENCE,SUPPORT SERVICES,EMPLOYEE EXPENSES,100650089,4.91,United Kingdom Atomic Energy Authority,United Kingdom Atomic Energy Authority
14/06/2012,SUBSISTENCE,SUPPORT SERVICES,EMPLOYEE EXPENSES,100650090,3.33,United Kingdom Atomic Energy Authority,United Kingdom Atomic Energy Authority
14/06/2012,SUBSISTENCE,SUPPORT SERVICES,EMPLOYEE EXPENSES,100650091,1.79,United Kingdom Atomic Energy Authority,United Kingdom Atomic Energy Authority
14/06/2012,SUBSISTENCE,SUPPORT SERVICES,EMPLOYEE EXPENSES,100650092,1.19,United Kingdom Atomic Energy Authority,United Kingdom Atomic Energy Authority
14/06/2012,SUBSISTENCE,SUPPORT SERVICES,EMPLOYEE EXPENSES,100650093,1.30,United Kingdom Atomic Energy Authority,United Kingdom Atomic Energy Authority
14/06/2012,SUBSISTENCE,SUPPORT SERVICES,EMPLOYEE EXPENSES,100650094,1.33,United Kingdom Atomic Energy Authority,United Kingdom Atomic Energy Authority
14/06/2012,SUBSISTENCE,SUPPORT SERVICES,EMPLOYEE EXPENSES,100650096,1.57,United Kingdom Atomic Energy Authority,United Kingdom Atomic Energy Authority
14/06/2012,SUBSISTENCE,SUPPORT SERVICES,EMPLOYEE EXPENSES,100650097,1.57,United Kingdom Atomic Energy Authority,United Kingdom Atomic Energy Authority
16/06/2012,SUBSISTENCE,SUPPORT SERVICES,EMPLOYEE EXPENSES,100650146,120.08,United Kingdom Atomic Energy Authority,United Kingdom Atomic Energy Authority
16/06/2012,SUBSISTENCE,SUPPORT SERVICES,EMPLOYEE EXPENSES,100650146,7.15,United Kingdom Atomic Energy Authority,United Kingdom Atomic Energy Authority
21/06/2012,SUBSISTENCE,SUPPORT SERVICES,EMPLOYEE EXPENSES,100650309,2.33,United Kingdom Atomic Energy Authority,United Kingdom Atomic Energy Authority
30/06/2012,SUBSISTENCE,SUPPORT SERVICES,EMPLOYEE EXPENSES,100650441,33.74,United Kingdom Atomic Energy Authority,United Kingdom Atomic Energy Authority
30/05/2012,MILEAGE ALLOWANCE,SUPPORT SERVICES,EMPLOYEE EXPENSES,100649854,82.40,United Kingdom Atomic Energy Authority,United Kingdom Atomic Energy Authority
31/05/2012,MILEAGE ALLOWANCE,SUPPORT SERVICES,EMPLOYEE EXPENSES,100649901,8.00,United Kingdom Atomic Energy Authority,United Kingdom Atomic Energy Authority
31/05/2012,MILEAGE ALLOWANCE,SUPPORT SERVICES,EMPLOYEE EXPENSES,100649902,8.40,United Kingdom Atomic Energy Authority,United Kingdom Atomic Energy Authority
31/05/2012,MILEAGE ALLOWANCE,SUPPORT SERVICES,EMPLOYEE EXPENSES,100649907,36.00,United Kingdom Atomic Energy Authority,United Kingdom Atomic Energy Authority
14/06/2012,MILEAGE ALLOWANCE,SUPPORT SERVICES,EMPLOYEE EXPENSES,100650089,10.40,United Kingdom Atomic Energy Authority,United Kingdom Atomic Energy Authority
14/06/2012,MILEAGE ALLOWANCE,SUPPORT SERVICES,EMPLOYEE EXPENSES,100650090,4.80,United Kingdom Atomic Energy Authority,United Kingdom Atomic Energy Authority
14/06/2012,MILEAGE ALLOWANCE,SUPPORT SERVICES,EMPLOYEE EXPENSES,100650091,4.80,United Kingdom Atomic Energy Authority,United Kingdom Atomic Energy Authority
14/06/2012,MILEAGE ALLOWANCE,SUPPORT SERVICES,EMPLOYEE EXPENSES,100650092,4.80,United Kingdom Atomic Energy Authority,United Kingdom Atomic Energy Authority
14/06/2012,MILEAGE ALLOWANCE,SUPPORT SERVICES,EMPLOYEE EXPENSES,100650093,5.60,United Kingdom Atomic Energy Authority,United Kingdom Atomic Energy Authority
14/06/2012,MILEAGE ALLOWANCE,SUPPORT SERVICES,EMPLOYEE EXPENSES,100650094,4.80,United Kingdom Atomic Energy Authority,United Kingdom Atomic Energy Authority
14/06/2012,MILEAGE ALLOWANCE,SUPPORT SERVICES,EMPLOYEE EXPENSES,100650096,4.80,United Kingdom Atomic Energy Authority,United Kingdom Atomic Energy Authority
14/06/2012,MILEAGE ALLOWANCE,SUPPORT SERVICES,EMPLOYEE EXPENSES,100650097,4.80,United Kingdom Atomic Energy Authority,United Kingdom Atomic Energy Authority
21/06/2012,MILEAGE ALLOWANCE,SUPPORT SERVICES,EMPLOYEE EXPENSES,100650312,17.60,United Kingdom Atomic Energy Authority,United Kingdom Atomic Energy Authority
31/05/2012,RAIL TRAVEL,SUPPORT SERVICES,EMPLOYEE EXPENSES,100649903,45.50,United Kingdom Atomic Energy Authority,United Kingdom Atomic Energy Authority
31/05/2012,RAIL TRAVEL,SUPPORT SERVICES,EMPLOYEE EXPENSES,100649907,117.90,United Kingdom Atomic Energy Authority,United Kingdom Atomic Energy Authority
01/06/2012,RAIL TRAVEL,SUPPORT SERVICES,EMPLOYEE EXPENSES,100650016,59.90,United Kingdom Atomic Energy Authority,United Kingdom Atomic Energy Authority
20/06/2012,RAIL TRAVEL,SUPPORT SERVICES,EMPLOYEE EXPENSES,100650276,56.50,United Kingdom Atomic Energy Authority,United Kingdom Atomic Energy Authority
31/05/2012,ROAD TRAVEL,SUPPORT SERVICES,EMPLOYEE EXPENSES,100649907,9.70,United Kingdom Atomic Energy Authority,United Kingdom Atomic Energy Authority
14/06/2012,ROAD TRAVEL,SUPPORT SERVICES,EMPLOYEE EXPENSES,100650089,4.75,United Kingdom Atomic Energy Authority,United Kingdom Atomic Energy Authority
14/06/2012,ROAD TRAVEL,SUPPORT SERVICES,EMPLOYEE EXPENSES,100650090,5.42,United Kingdom Atomic Energy Authority,United Kingdom Atomic Energy Authority
14/06/2012,ROAD TRAVEL,SUPPORT SERVICES,EMPLOYEE EXPENSES,100650091,5.42,United Kingdom Atomic Energy Authority,United Kingdom Atomic Energy Authority
14/06/2012,ROAD TRAVEL,SUPPORT SERVICES,EMPLOYEE EXPENSES,100650092,5.42,United Kingdom Atomic Energy Authority,United Kingdom Atomic Energy Authority
14/06/2012,ROAD TRAVEL,SUPPORT SERVICES,EMPLOYEE EXPENSES,100650093,4.75,United Kingdom Atomic Energy Authority,United Kingdom Atomic Energy Authority
14/06/2012,ROAD TRAVEL,SUPPORT SERVICES,EMPLOYEE EXPENSES,100650094,5.42,United Kingdom Atomic Energy Authority,United Kingdom Atomic Energy Authority
14/06/2012,ROAD TRAVEL,SUPPORT SERVICES,EMPLOYEE EXPENSES,100650096,5.42,United Kingdom Atomic Energy Authority,United Kingdom Atomic Energy Authority
14/06/2012,ROAD TRAVEL,SUPPORT SERVICES,EMPLOYEE EXPENSES,100650097,5.42,United Kingdom Atomic Energy Authority,United Kingdom Atomic Energy Authority
16/06/2012,ROAD TRAVEL,SUPPORT SERVICES,EMPLOYEE EXPENSES,100650140,49.50,United Kingdom Atomic Energy Authority,United Kingdom Atomic Energy Authority
30/05/2012,OTHER EMPLOYEE EXPENSES,SUPPORT SERVICES,EMPLOYEE EXPENSES,100649854,6.00,United Kingdom Atomic Energy Authority,United Kingdom Atomic Energy Authority
31/05/2012,PROFESSIONAL SUBSCRIPTION,SUPPORT SERVICES,EMPLOYEE EXPENSES,100649912,85.00,United Kingdom Atomic Energy Authority,United Kingdom Atomic Energy Authority
23/06/2012,PROFESSIONAL SUBSCRIPTION,SUPPORT SERVICES,EMPLOYEE EXPENSES,100650342,127.00,United Kingdom Atomic Energy Authority,United Kingdom Atomic Energy Authority
23/06/2012,PROFESSIONAL SUBSCRIPTION,SUPPORT SERVICES,EMPLOYEE EXPENSES,100650346,147.00,United Kingdom Atomic Energy Authority,United Kingdom Atomic Energy Authority
30/06/2012,PROFESSIONAL SUBSCRIPTION,SUPPORT SERVICES,EMPLOYEE EXPENSES,100650440,112.00,United Kingdom Atomic Energy Authority,United Kingdom Atomic Energy Authority
30/06/2012,PROFESSIONAL SUBSCRIPTION,FUSION,EMPLOYEE EXPENSES,100650435,221.50,United Kingdom Atomic Energy Authority,United Kingdom Atomic Energy Authority
30/06/2012,SUBSISTENCE,FUSION,EMPLOYEE EXPENSES,100650445,20.00,United Kingdom Atomic Energy Authority,United Kingdom Atomic Energy Authority
30/06/2012,SUBSISTENCE,FUSION,EMPLOYEE EXPENSES,100650445,308.85,United Kingdom Atomic Energy Authority,United Kingdom Atomic Energy Authority
30/05/2012,MILEAGE ALLOWANCE,FUSION,EMPLOYEE EXPENSES,100649866,59.60,United Kingdom Atomic Energy Authority,United Kingdom Atomic Energy Authority
30/05/2012,MILEAGE ALLOWANCE,FUSION,EMPLOYEE EXPENSES,100649867,59.60,United Kingdom Atomic Energy Authority,United Kingdom Atomic Energy Authority
30/05/2012,PROFESSIONAL SUBSCRIPTION,FUSION,EMPLOYEE EXPENSES,100649880,42.00,United Kingdom Atomic Energy Authority,United Kingdom Atomic Energy Authority
16/06/2012,TAXIS,FUSION,EMPLOYEE EXPENSES,100650141,287.76,United Kingdom Atomic Energy Authority,United Kingdom Atomic Energy Authority
28/06/2012,SUBSISTENCE,FUSION,EMPLOYEE EXPENSES,100650404,"1,017.72",United Kingdom Atomic Energy Authority,United Kingdom Atomic Energy Authority
14/06/2012,MILEAGE ALLOWANCE,FUSION,EMPLOYEE EXPENSES,100650111,48.40,United Kingdom Atomic Energy Authority,United Kingdom Atomic Energy Authority
14/06/2012,MILEAGE ALLOWANCE,FUSION,EMPLOYEE EXPENSES,100650112,48.40,United Kingdom Atomic Energy Authority,United Kingdom Atomic Energy Authority
28/06/2012,ROAD TRAVEL,FUSION,EMPLOYEE EXPENSES,100650404,28.90,United Kingdom Atomic Energy Authority,United Kingdom Atomic Energy Authority
30/06/2012,SUBSISTENCE,FUSION,EMPLOYEE EXPENSES,100650443,106.37,United Kingdom Atomic Energy Authority,United Kingdom Atomic Energy Authority
30/06/2012,RAIL TRAVEL,FUSION,EMPLOYEE EXPENSES,100650443,35.97,United Kingdom Atomic Energy Authority,United Kingdom Atomic Energy Authority
30/06/2012,ROAD TRAVEL,FUSION,EMPLOYEE EXPENSES,100650443,10.29,United Kingdom Atomic Energy Authority,United Kingdom Atomic Energy Authority
30/05/2012,SUBSISTENCE,FUSION,EMPLOYEE EXPENSES,100649878,23.62,United Kingdom Atomic Energy Authority,United Kingdom Atomic Energy Authority
30/05/2012,ROAD TRAVEL,FUSION,EMPLOYEE EXPENSES,100649878,8.00,United Kingdom Atomic Energy Authority,United Kingdom Atomic Energy Authority
30/05/2012,ROAD TRAVEL,FUSION,EMPLOYEE EXPENSES,100649878,26.78,United Kingdom Atomic Energy Authority,United Kingdom Atomic Energy Authority
20/06/2012,SUBSISTENCE,FUSION,EMPLOYEE EXPENSES,100650273,5.00,United Kingdom Atomic Energy Authority,United Kingdom Atomic Energy Authority
20/06/2012,SUBSISTENCE,FUSION,EMPLOYEE EXPENSES,100650273,5.45,United Kingdom Atomic Energy Authority,United Kingdom Atomic Energy Authority
20/06/2012,RAIL TRAVEL,FUSION,EMPLOYEE EXPENSES,100650273,135.00,United Kingdom Atomic Energy Authority,United Kingdom Atomic Energy Authority
20/06/2012,ROAD TRAVEL,FUSION,EMPLOYEE EXPENSES,100650273,2.30,United Kingdom Atomic Energy Authority,United Kingdom Atomic Energy Authority
30/05/2012,TAXIS,FUSION,EMPLOYEE EXPENSES,100649855,22.00,United Kingdom Atomic Energy Authority,United Kingdom Atomic Energy Authority
30/05/2012,SUBSISTENCE,FUSION,EMPLOYEE EXPENSES,100649855,382.00,United Kingdom Atomic Energy Authority,United Kingdom Atomic Energy Authority
30/05/2012,SUBSISTENCE,FUSION,EMPLOYEE EXPENSES,100649855,85.06,United Kingdom Atomic Energy Authority,United Kingdom Atomic Energy Authority
16/06/2012,SUBSISTENCE,FUSION,EMPLOYEE EXPENSES,100650136,10.00,United Kingdom Atomic Energy Authority,United Kingdom Atomic Energy Authority
16/06/2012,SUBSISTENCE,FUSION,EMPLOYEE EXPENSES,100650136,156.75,United Kingdom Atomic Energy Authority,United Kingdom Atomic Energy Authority
20/06/2012,SUBSISTENCE,FUSION,EMPLOYEE EXPENSES,100650265,5.00,United Kingdom Atomic Energy Authority,United Kingdom Atomic Energy Authority
20/06/2012,SUBSISTENCE,FUSION,EMPLOYEE EXPENSES,100650265,85.75,United Kingdom Atomic Energy Authority,United Kingdom Atomic Energy Authority
16/06/2012,MILEAGE ALLOWANCE,FUSION,EMPLOYEE EXPENSES,100650136,80.00,United Kingdom Atomic Energy Authority,United Kingdom Atomic Energy Authority
20/06/2012,MILEAGE ALLOWANCE,FUSION,EMPLOYEE EXPENSES,100650265,152.00,United Kingdom Atomic Energy Authority,United Kingdom Atomic Energy Authority
30/05/2012,OTHER EMPLOYEE EXPENSES,FUSION,EMPLOYEE EXPENSES,100649855,20.00,United Kingdom Atomic Energy Authority,United Kingdom Atomic Energy Authority
30/05/2012,TAXIS,FUSION,EMPLOYEE EXPENSES,100649863,5.25,United Kingdom Atomic Energy Authority,United Kingdom Atomic Energy Authority
30/05/2012,TAXIS,FUSION,EMPLOYEE EXPENSES,100649871,7.10,United Kingdom Atomic Energy Authority,United Kingdom Atomic Energy Authority
16/06/2012,TAXIS,FUSION,EMPLOYEE EXPENSES,100650131,61.09,United Kingdom Atomic Energy Authority,United Kingdom Atomic Energy Authority
30/05/2012,SUBSISTENCE,FUSION,EMPLOYEE EXPENSES,100649863,115.62,United Kingdom Atomic Energy Authority,United Kingdom Atomic Energy Authority
30/05/2012,SUBSISTENCE,FUSION,EMPLOYEE EXPENSES,100649871,5.00,United Kingdom Atomic Energy Authority,United Kingdom Atomic Energy Authority
30/05/2012,SUBSISTENCE,FUSION,EMPLOYEE EXPENSES,100649871,78.92,United Kingdom Atomic Energy Authority,United Kingdom Atomic Energy Authority
31/05/2012,SUBSISTENCE,FUSION,EMPLOYEE EXPENSES,100649906,512.94,United Kingdom Atomic Energy Authority,United Kingdom Atomic Energy Authority
31/05/2012,SUBSISTENCE,FUSION,EMPLOYEE EXPENSES,100649906,12.25,United Kingdom Atomic Energy Authority,United Kingdom Atomic Energy Authority
14/06/2012,SUBSISTENCE,FUSION,EMPLOYEE EXPENSES,100650114,258.68,United Kingdom Atomic Energy Authority,United Kingdom Atomic Energy Authority
16/06/2012,SUBSISTENCE,FUSION,EMPLOYEE EXPENSES,100650131,189.35,United Kingdom Atomic Energy Authority,United Kingdom Atomic Energy Authority
20/06/2012,SUBSISTENCE,FUSION,EMPLOYEE EXPENSES,100650293,266.31,United Kingdom Atomic Energy Authority,United Kingdom Atomic Energy Authority
20/06/2012,SUBSISTENCE,FUSION,EMPLOYEE EXPENSES,100650293,6.17,United Kingdom Atomic Energy Authority,United Kingdom Atomic Energy Authority
23/06/2012,SUBSISTENCE,FUSION,EMPLOYEE EXPENSES,100650340,228.24,United Kingdom Atomic Energy Authority,United Kingdom Atomic Energy Authority
30/05/2012,RAIL TRAVEL,FUSION,EMPLOYEE EXPENSES,100649863,15.75,United Kingdom Atomic Energy Authority,United Kingdom Atomic Energy Authority
30/05/2012,RAIL TRAVEL,FUSION,EMPLOYEE EXPENSES,100649870,24.90,United Kingdom Atomic Energy Authority,United Kingdom Atomic Energy Authority
30/05/2012,RAIL TRAVEL,FUSION,EMPLOYEE EXPENSES,100649871,86.90,United Kingdom Atomic Energy Authority,United Kingdom Atomic Energy Authority
14/06/2012,ROAD TRAVEL,FUSION,EMPLOYEE EXPENSES,100650114,6.35,United Kingdom Atomic Energy Authority,United Kingdom Atomic Energy Authority
30/05/2012,RELOCATION COSTS,FUSION,EMPLOYEE EXPENSES,100649863,6.00,United Kingdom Atomic Energy Authority,United Kingdom Atomic Energy Authority
31/05/2012,OTHER EMPLOYEE EXPENSES,FUSION,EMPLOYEE EXPENSES,100649906,3.00,United Kingdom Atomic Energy Authority,United Kingdom Atomic Energy Authority
14/06/2012,OTHER EMPLOYEE EXPENSES,FUSION,EMPLOYEE EXPENSES,100650114,3.00,United Kingdom Atomic Energy Authority,United Kingdom Atomic Energy Authority
16/06/2012,OTHER EMPLOYEE EXPENSES,FUSION,EMPLOYEE EXPENSES,100650131,3.00,United Kingdom Atomic Energy Authority,United Kingdom Atomic Energy Authority
20/06/2012,OTHER EMPLOYEE EXPENSES,FUSION,EMPLOYEE EXPENSES,100650293,3.00,United Kingdom Atomic Energy Authority,United Kingdom Atomic Energy Authority
16/06/2012,TAXIS,FUSION,EMPLOYEE EXPENSES,100650134,16.56,United Kingdom Atomic Energy Authority,United Kingdom Atomic Energy Authority
20/06/2012,TAXIS,FUSION,EMPLOYEE EXPENSES,100650288,13.77,United Kingdom Atomic Energy Authority,United Kingdom Atomic Energy Authority
14/06/2012,SUBSISTENCE,FUSION,EMPLOYEE EXPENSES,100650102,190.97,United Kingdom Atomic Energy Authority,United Kingdom Atomic Energy Authority
14/06/2012,SUBSISTENCE,FUSION,EMPLOYEE EXPENSES,100650102,4.58,United Kingdom Atomic Energy Authority,United Kingdom Atomic Energy Authority
16/06/2012,SUBSISTENCE,FUSION,EMPLOYEE EXPENSES,100650134,89.52,United Kingdom Atomic Energy Authority,United Kingdom Atomic Energy Authority
16/06/2012,SUBSISTENCE,FUSION,EMPLOYEE EXPENSES,100650145,497.71,United Kingdom Atomic Energy Authority,United Kingdom Atomic Energy Authority
16/06/2012,SUBSISTENCE,FUSION,EMPLOYEE EXPENSES,100650145,5.62,United Kingdom Atomic Energy Authority,United Kingdom Atomic Energy Authority
20/06/2012,SUBSISTENCE,FUSION,EMPLOYEE EXPENSES,100650288,299.98,United Kingdom Atomic Energy Authority,United Kingdom Atomic Energy Authority
30/05/2012,MILEAGE ALLOWANCE,FUSION,EMPLOYEE EXPENSES,100649852,34.80,United Kingdom Atomic Energy Authority,United Kingdom Atomic Energy Authority
16/06/2012,ROAD TRAVEL,FUSION,EMPLOYEE EXPENSES,100650134,37.50,United Kingdom Atomic Energy Authority,United Kingdom Atomic Energy Authority
14/06/2012,OTHER EMPLOYEE EXPENSES,FUSION,EMPLOYEE EXPENSES,100650102,27.87,United Kingdom Atomic Energy Authority,United Kingdom Atomic Energy Authority
16/06/2012,TAXIS,FUSION,EMPLOYEE EXPENSES,100650135,28.82,United Kingdom Atomic Energy Authority,United Kingdom Atomic Energy Authority
30/05/2012,SUBSISTENCE,FUSION,EMPLOYEE EXPENSES,100649865,71.17,United Kingdom Atomic Energy Authority,United Kingdom Atomic Energy Authority
01/06/2012,SUBSISTENCE,FUSION,EMPLOYEE EXPENSES,100650014,274.27,United Kingdom Atomic Energy Authority,United Kingdom Atomic Energy Authority
01/06/2012,SUBSISTENCE,FUSION,EMPLOYEE EXPENSES,100650014,3.20,United Kingdom Atomic Energy Authority,United Kingdom Atomic Energy Authority
14/06/2012,SUBSISTENCE,FUSION,EMPLOYEE EXPENSES,100650110,10.00,United Kingdom Atomic Energy Authority,United Kingdom Atomic Energy Authority
14/06/2012,SUBSISTENCE,FUSION,EMPLOYEE EXPENSES,100650110,126.45,United Kingdom Atomic Energy Authority,United Kingdom Atomic Energy Authority
16/06/2012,SUBSISTENCE,FUSION,EMPLOYEE EXPENSES,100650135,442.95,United Kingdom Atomic Energy Authority,United Kingdom Atomic Energy Authority
20/06/2012,SUBSISTENCE,FUSION,EMPLOYEE EXPENSES,100650277,128.48,United Kingdom Atomic Energy Authority,United Kingdom Atomic Energy Authority
01/06/2012,MILEAGE ALLOWANCE,FUSION,EMPLOYEE EXPENSES,100650014,10.40,United Kingdom Atomic Energy Authority,United Kingdom Atomic Energy Authority
14/06/2012,MILEAGE ALLOWANCE,FUSION,EMPLOYEE EXPENSES,100650110,106.40,United Kingdom Atomic Energy Authority,United Kingdom Atomic Energy Authority
01/06/2012,RAIL TRAVEL,FUSION,EMPLOYEE EXPENSES,100650014,10.40,United Kingdom Atomic Energy Authority,United Kingdom Atomic Energy Authority
16/06/2012,RAIL TRAVEL,FUSION,EMPLOYEE EXPENSES,100650135,1.82,United Kingdom Atomic Energy Authority,United Kingdom Atomic Energy Authority
16/06/2012,ROAD TRAVEL,FUSION,EMPLOYEE EXPENSES,100650135,0.82,United Kingdom Atomic Energy Authority,United Kingdom Atomic Energy Authority
01/06/2012,OTHER EMPLOYEE EXPENSES,FUSION,EMPLOYEE EXPENSES,100650014,4.49,United Kingdom Atomic Energy Authority,United Kingdom Atomic Energy Authority
16/06/2012,OTHER EMPLOYEE EXPENSES,FUSION,EMPLOYEE EXPENSES,100650135,3.95,United Kingdom Atomic Energy Authority,United Kingdom Atomic Energy Authority
30/06/2012,TAXIS,FUSION,EMPLOYEE EXPENSES,100650438,8.00,United Kingdom Atomic Energy Authority,United Kingdom Atomic Energy Authority
30/06/2012,SUBSISTENCE,FUSION,EMPLOYEE EXPENSES,100650438,5.00,United Kingdom Atomic Energy Authority,United Kingdom Atomic Energy Authority
30/06/2012,ROAD TRAVEL,FUSION,EMPLOYEE EXPENSES,100650438,2.90,United Kingdom Atomic Energy Authority,United Kingdom Atomic Energy Authority
28/06/2012,TAXIS,FUSION,EMPLOYEE EXPENSES,100650399,19.00,United Kingdom Atomic Energy Authority,United Kingdom Atomic Energy Authority
28/06/2012,TAXIS,FUSION,EMPLOYEE EXPENSES,100650406,40.00,United Kingdom Atomic Energy Authority,United Kingdom Atomic Energy Authority
31/05/2012,SUBSISTENCE,FUSION,EMPLOYEE EXPENSES,100649913,48.30,United Kingdom Atomic Energy Authority,United Kingdom Atomic Energy Authority
16/06/2012,SUBSISTENCE,FUSION,EMPLOYEE EXPENSES,100650142,5.50,United Kingdom Atomic Energy Authority,United Kingdom Atomic Energy Authority
28/06/2012,SUBSISTENCE,FUSION,EMPLOYEE EXPENSES,100650406,8.60,United Kingdom Atomic Energy Authority,United Kingdom Atomic Energy Authority
28/06/2012,SUBSISTENCE,FUSION,EMPLOYEE EXPENSES,100650406,17.03,United Kingdom Atomic Energy Authority,United Kingdom Atomic Energy Authority
31/05/2012,MILEAGE ALLOWANCE,FUSION,EMPLOYEE EXPENSES,100649913,6.00,United Kingdom Atomic Energy Authority,United Kingdom Atomic Energy Authority
16/06/2012,RAIL TRAVEL,FUSION,EMPLOYEE EXPENSES,100650142,26.50,United Kingdom Atomic Energy Authority,United Kingdom Atomic Energy Authority
28/06/2012,RAIL TRAVEL,FUSION,EMPLOYEE EXPENSES,100650399,54.00,United Kingdom Atomic Energy Authority,United Kingdom Atomic Energy Authority
28/06/2012,RAIL TRAVEL,FUSION,EMPLOYEE EXPENSES,100650403,11.40,United Kingdom Atomic Energy Authority,United Kingdom Atomic Energy Authority
28/06/2012,RAIL TRAVEL,FUSION,EMPLOYEE EXPENSES,100650406,51.30,United Kingdom Atomic Energy Authority,United Kingdom Atomic Energy Authority
16/06/2012,ROAD TRAVEL,FUSION,EMPLOYEE EXPENSES,100650142,4.20,United Kingdom Atomic Energy Authority,United Kingdom Atomic Energy Authority
28/06/2012,ROAD TRAVEL,FUSION,EMPLOYEE EXPENSES,100650403,41.40,United Kingdom Atomic Energy Authority,United Kingdom Atomic Energy Authority
28/06/2012,ROAD TRAVEL,FUSION,EMPLOYEE EXPENSES,100650406,2.80,United Kingdom Atomic Energy Authority,United Kingdom Atomic Energy Authority
30/05/2012,TAXIS,FUSION,EMPLOYEE EXPENSES,100649868,3.80,United Kingdom Atomic Energy Authority,United Kingdom Atomic Energy Authority
30/05/2012,SUBSISTENCE,FUSION,EMPLOYEE EXPENSES,100649868,95.10,United Kingdom Atomic Energy Authority,United Kingdom Atomic Energy Authority
30/05/2012,SUBSISTENCE,FUSION,EMPLOYEE EXPENSES,100649869,10.00,United Kingdom Atomic Energy Authority,United Kingdom Atomic Energy Authority
30/05/2012,SUBSISTENCE,FUSION,EMPLOYEE EXPENSES,100649875,135.03,United Kingdom Atomic Energy Authority,United Kingdom Atomic Energy Authority
21/06/2012,SUBSISTENCE,FUSION,EMPLOYEE EXPENSES,100650308,107.59,United Kingdom Atomic Energy Authority,United Kingdom Atomic Energy Authority
21/06/2012,MILEAGE ALLOWANCE,FUSION,EMPLOYEE EXPENSES,100650308,48.00,United Kingdom Atomic Energy Authority,United Kingdom Atomic Energy Authority
21/06/2012,AIR TRAVEL,FUSION,EMPLOYEE EXPENSES,100650308,206.65,United Kingdom Atomic Energy Authority,United Kingdom Atomic Energy Authority
31/05/2012,RAIL TRAVEL,FUSION,EMPLOYEE EXPENSES,100649908,5.70,United Kingdom Atomic Energy Authority,United Kingdom Atomic Energy Authority
21/06/2012,ROAD TRAVEL,FUSION,EMPLOYEE EXPENSES,100650308,78.20,United Kingdom Atomic Energy Authority,United Kingdom Atomic Energy Authority
30/05/2012,OTHER EMPLOYEE EXPENSES,FUSION,EMPLOYEE EXPENSES,100649869,14.99,United Kingdom Atomic Energy Authority,United Kingdom Atomic Energy Authority
21/06/2012,OTHER EMPLOYEE EXPENSES,FUSION,EMPLOYEE EXPENSES,100650308,144.69,United Kingdom Atomic Energy Authority,United Kingdom Atomic Energy Authority
01/06/2012,PROFESSIONAL SUBSCRIPTION,FUSION,EMPLOYEE EXPENSES,100650017,111.00,United Kingdom Atomic Energy Authority,United Kingdom Atomic Energy Authority
20/06/2012,SUBSISTENCE,FUSION,EMPLOYEE EXPENSES,100650283,628.81,United Kingdom Atomic Energy Authority,United Kingdom Atomic Energy Authority
20/06/2012,SUBSISTENCE,FUSION,EMPLOYEE EXPENSES,100650283,4.53,United Kingdom Atomic Energy Authority,United Kingdom Atomic Energy Authority
20/06/2012,MILEAGE ALLOWANCE,FUSION,EMPLOYEE EXPENSES,100650283,64.00,United Kingdom Atomic Energy Authority,United Kingdom Atomic Energy Authority
20/06/2012,RAIL TRAVEL,FUSION,EMPLOYEE EXPENSES,100650283,34.92,United Kingdom Atomic Energy Authority,United Kingdom Atomic Energy Authority
20/06/2012,ROAD TRAVEL,FUSION,EMPLOYEE EXPENSES,100650283,2.00,United Kingdom Atomic Energy Authority,United Kingdom Atomic Energy Authority
20/06/2012,TAXIS,FUSION,EMPLOYEE EXPENSES,100650280,20.00,United Kingdom Atomic Energy Authority,United Kingdom Atomic Energy Authority
16/06/2012,SUBSISTENCE,FUSION,EMPLOYEE EXPENSES,100650129,335.63,United Kingdom Atomic Energy Authority,United Kingdom Atomic Energy Authority
28/06/2012,SUBSISTENCE,FUSION,EMPLOYEE EXPENSES,100650396,62.77,United Kingdom Atomic Energy Authority,United Kingdom Atomic Energy Authority
28/06/2012,SUBSISTENCE,FUSION,EMPLOYEE EXPENSES,100650400,3.04,United Kingdom Atomic Energy Authority,United Kingdom Atomic Energy Authority
14/06/2012,MILEAGE ALLOWANCE,FUSION,EMPLOYEE EXPENSES,100650103,10.00,United Kingdom Atomic Energy Authority,United Kingdom Atomic Energy Authority
14/06/2012,MILEAGE ALLOWANCE,FUSION,EMPLOYEE EXPENSES,100650104,12.00,United Kingdom Atomic Energy Authority,United Kingdom Atomic Energy Authority
20/06/2012,MILEAGE ALLOWANCE,FUSION,EMPLOYEE EXPENSES,100650280,41.60,United Kingdom Atomic Energy Authority,United Kingdom Atomic Energy Authority
20/06/2012,MILEAGE ALLOWANCE,FUSION,EMPLOYEE EXPENSES,100650287,16.80,United Kingdom Atomic Energy Authority,United Kingdom Atomic Energy Authority
28/06/2012,MILEAGE ALLOWANCE,FUSION,EMPLOYEE EXPENSES,100650400,36.00,United Kingdom Atomic Energy Authority,United Kingdom Atomic Energy Authority
28/06/2012,MILEAGE ALLOWANCE,FUSION,EMPLOYEE EXPENSES,100650401,13.60,United Kingdom Atomic Energy Authority,United Kingdom Atomic Energy Authority
28/06/2012,MILEAGE ALLOWANCE,FUSION,EMPLOYEE EXPENSES,100650402,15.20,United Kingdom Atomic Energy Authority,United Kingdom Atomic Energy Authority
16/06/2012,RAIL TRAVEL,FUSION,EMPLOYEE EXPENSES,100650129,6.00,United Kingdom Atomic Energy Authority,United Kingdom Atomic Energy Authority
20/06/2012,RAIL TRAVEL,FUSION,EMPLOYEE EXPENSES,100650280,8.50,United Kingdom Atomic Energy Authority,United Kingdom Atomic Energy Authority
28/06/2012,RAIL TRAVEL,FUSION,EMPLOYEE EXPENSES,100650396,3.24,United Kingdom Atomic Energy Authority,United Kingdom Atomic Energy Authority
30/05/2012,ROAD TRAVEL,FUSION,EMPLOYEE EXPENSES,100649877,33.33,United Kingdom Atomic Energy Authority,United Kingdom Atomic Energy Authority
14/06/2012,ROAD TRAVEL,FUSION,EMPLOYEE EXPENSES,100650103,3.00,United Kingdom Atomic Energy Authority,United Kingdom Atomic Energy Authority
14/06/2012,ROAD TRAVEL,FUSION,EMPLOYEE EXPENSES,100650104,2.00,United Kingdom Atomic Energy Authority,United Kingdom Atomic Energy Authority
20/06/2012,ROAD TRAVEL,FUSION,EMPLOYEE EXPENSES,100650287,10.00,United Kingdom Atomic Energy Authority,United Kingdom Atomic Energy Authority
28/06/2012,ROAD TRAVEL,FUSION,EMPLOYEE EXPENSES,100650396,2.10,United Kingdom Atomic Energy Authority,United Kingdom Atomic Energy Authority
28/06/2012,ROAD TRAVEL,FUSION,EMPLOYEE EXPENSES,100650400,10.00,United Kingdom Atomic Energy Authority,United Kingdom Atomic Energy Authority
28/06/2012,ROAD TRAVEL,FUSION,EMPLOYEE EXPENSES,100650401,10.00,United Kingdom Atomic Energy Authority,United Kingdom Atomic Energy Authority
16/06/2012,OTHER EMPLOYEE EXPENSES,FUSION,EMPLOYEE EXPENSES,100650129,3.95,United Kingdom Atomic Energy Authority,United Kingdom Atomic Energy Authority
28/06/2012,OTHER EMPLOYEE EXPENSES,FUSION,EMPLOYEE EXPENSES,100650396,4.06,United Kingdom Atomic Energy Authority,United Kingdom Atomic Energy Authority
30/05/2012,PROFESSIONAL SUBSCRIPTION,FUSION,EMPLOYEE EXPENSES,100649851,88.00,United Kingdom Atomic Energy Authority,United Kingdom Atomic Energy Authority
31/05/2012,SUBSISTENCE,FUSION,EMPLOYEE EXPENSES,100649911,5.00,United Kingdom Atomic Energy Authority,United Kingdom Atomic Energy Authority
31/05/2012,SUBSISTENCE,FUSION,EMPLOYEE EXPENSES,100649911,86.46,United Kingdom Atomic Energy Authority,United Kingdom Atomic Energy Authority
14/06/2012,SUBSISTENCE,FUSION,EMPLOYEE EXPENSES,100650086,5.00,United Kingdom Atomic Energy Authority,United Kingdom Atomic Energy Authority
14/06/2012,SUBSISTENCE,FUSION,EMPLOYEE EXPENSES,100650086,65.79,United Kingdom Atomic Energy Authority,United Kingdom Atomic Energy Authority
14/06/2012,SUBSISTENCE,FUSION,EMPLOYEE EXPENSES,100650087,6.33,United Kingdom Atomic Energy Authority,United Kingdom Atomic Energy Authority
16/06/2012,SUBSISTENCE,FUSION,EMPLOYEE EXPENSES,100650132,8.33,United Kingdom Atomic Energy Authority,United Kingdom Atomic Energy Authority
31/05/2012,MILEAGE ALLOWANCE,FUSION,EMPLOYEE EXPENSES,100649911,48.00,United Kingdom Atomic Energy Authority,United Kingdom Atomic Energy Authority
14/06/2012,MILEAGE ALLOWANCE,FUSION,EMPLOYEE EXPENSES,100650086,48.00,United Kingdom Atomic Energy Authority,United Kingdom Atomic Energy Authority
14/06/2012,MILEAGE ALLOWANCE,FUSION,EMPLOYEE EXPENSES,100650087,48.00,United Kingdom Atomic Energy Authority,United Kingdom Atomic Energy Authority
16/06/2012,MILEAGE ALLOWANCE,FUSION,EMPLOYEE EXPENSES,100650132,48.00,United Kingdom Atomic Energy Authority,United Kingdom Atomic Energy Authority
16/06/2012,ROAD TRAVEL,FUSION,EMPLOYEE EXPENSES,100650132,3.00,United Kingdom Atomic Energy Authority,United Kingdom Atomic Energy Authority
30/05/2012,PROFESSIONAL SUBSCRIPTION,FUSION,EMPLOYEE EXPENSES,100649853,129.00,United Kingdom Atomic Energy Authority,United Kingdom Atomic Energy Authority
30/05/2012,PROFESSIONAL SUBSCRIPTION,FUSION,EMPLOYEE EXPENSES,100649857,129.00,United Kingdom Atomic Energy Authority,United Kingdom Atomic Energy Authority
30/05/2012,PROFESSIONAL SUBSCRIPTION,FUSION,EMPLOYEE EXPENSES,100649874,129.00,United Kingdom Atomic Energy Authority,United Kingdom Atomic Energy Authority
30/05/2012,PROFESSIONAL SUBSCRIPTION,FUSION,EMPLOYEE EXPENSES,100649882,129.00,United Kingdom Atomic Energy Authority,United Kingdom Atomic Energy Authority
14/06/2012,PROFESSIONAL SUBSCRIPTION,FUSION,EMPLOYEE EXPENSES,100650084,129.00,United Kingdom Atomic Energy Authority,United Kingdom Atomic Energy Authority
14/06/2012,PROFESSIONAL SUBSCRIPTION,FUSION,EMPLOYEE EXPENSES,100650085,129.00,United Kingdom Atomic Energy Authority,United Kingdom Atomic Energy Authority
14/06/2012,PROFESSIONAL SUBSCRIPTION,FUSION,EMPLOYEE EXPENSES,100650098,129.00,United Kingdom Atomic Energy Authority,United Kingdom Atomic Energy Authority
14/06/2012,PROFESSIONAL SUBSCRIPTION,FUSION,EMPLOYEE EXPENSES,100650105,129.00,United Kingdom Atomic Energy Authority,United Kingdom Atomic Energy Authority
14/06/2012,PROFESSIONAL SUBSCRIPTION,FUSION,EMPLOYEE EXPENSES,100650106,129.00,United Kingdom Atomic Energy Authority,United Kingdom Atomic Energy Authority
14/06/2012,PROFESSIONAL SUBSCRIPTION,FUSION,EMPLOYEE EXPENSES,100650113,136.50,United Kingdom Atomic Energy Authority,United Kingdom Atomic Energy Authority
23/06/2012,PROFESSIONAL SUBSCRIPTION,FUSION,EMPLOYEE EXPENSES,100650337,129.00,United Kingdom Atomic Energy Authority,United Kingdom Atomic Energy Authority
23/06/2012,PROFESSIONAL SUBSCRIPTION,FUSION,EMPLOYEE EXPENSES,100650338,129.00,United Kingdom Atomic Energy Authority,United Kingdom Atomic Energy Authority
23/06/2012,PROFESSIONAL SUBSCRIPTION,FUSION,EMPLOYEE EXPENSES,100650341,129.00,United Kingdom Atomic Energy Authority,United Kingdom Atomic Energy Authority
23/06/2012,PROFESSIONAL SUBSCRIPTION,FUSION,EMPLOYEE EXPENSES,100650344,129.00,United Kingdom Atomic Energy Authority,United Kingdom Atomic Energy Authority
23/06/2012,PROFESSIONAL SUBSCRIPTION,FUSION,EMPLOYEE EXPENSES,100650345,129.00,United Kingdom Atomic Energy Authority,United Kingdom Atomic Energy Authority
28/06/2012,PROFESSIONAL SUBSCRIPTION,FUSION,EMPLOYEE EXPENSES,100650407,129.00,United Kingdom Atomic Energy Authority,United Kingdom Atomic Energy Authority
30/05/2012,SUBSISTENCE,FUSION,EMPLOYEE EXPENSES,100649859,5.00,United Kingdom Atomic Energy Authority,United Kingdom Atomic Energy Authority
30/05/2012,SUBSISTENCE,FUSION,EMPLOYEE EXPENSES,100649859,105.87,United Kingdom Atomic Energy Authority,United Kingdom Atomic Energy Authority
30/05/2012,SUBSISTENCE,FUSION,EMPLOYEE EXPENSES,100649860,8.25,United Kingdom Atomic Energy Authority,United Kingdom Atomic Energy Authority
14/06/2012,SUBSISTENCE,FUSION,EMPLOYEE EXPENSES,100650083,160.74,United Kingdom Atomic Energy Authority,United Kingdom Atomic Energy Authority
14/06/2012,SUBSISTENCE,FUSION,EMPLOYEE EXPENSES,100650100,4.99,United Kingdom Atomic Energy Authority,United Kingdom Atomic Energy Authority
14/06/2012,SUBSISTENCE,FUSION,EMPLOYEE EXPENSES,100650101,6.39,United Kingdom Atomic Energy Authority,United Kingdom Atomic Energy Authority
20/06/2012,SUBSISTENCE,FUSION,EMPLOYEE EXPENSES,100650272,36.00,United Kingdom Atomic Energy Authority,United Kingdom Atomic Energy Authority
20/06/2012,SUBSISTENCE,FUSION,EMPLOYEE EXPENSES,100650272,265.04,United Kingdom Atomic Energy Authority,United Kingdom Atomic Energy Authority
30/05/2012,MILEAGE ALLOWANCE,FUSION,EMPLOYEE EXPENSES,100649859,92.80,United Kingdom Atomic Energy Authority,United Kingdom Atomic Energy Authority
30/05/2012,MILEAGE ALLOWANCE,FUSION,EMPLOYEE EXPENSES,100649860,70.00,United Kingdom Atomic Energy Authority,United Kingdom Atomic Energy Authority
14/06/2012,MILEAGE ALLOWANCE,FUSION,EMPLOYEE EXPENSES,100650083,4.08,United Kingdom Atomic Energy Authority,United Kingdom Atomic Energy Authority
14/06/2012,MILEAGE ALLOWANCE,FUSION,EMPLOYEE EXPENSES,100650100,6.40,United Kingdom Atomic Energy Authority,United Kingdom Atomic Energy Authority
14/06/2012,MILEAGE ALLOWANCE,FUSION,EMPLOYEE EXPENSES,100650101,65.60,United Kingdom Atomic Energy Authority,United Kingdom Atomic Energy Authority
20/06/2012,MILEAGE ALLOWANCE,FUSION,EMPLOYEE EXPENSES,100650272,79.20,United Kingdom Atomic Energy Authority,United Kingdom Atomic Energy Authority
14/06/2012,RAIL TRAVEL,FUSION,EMPLOYEE EXPENSES,100650100,59.90,United Kingdom Atomic Energy Authority,United Kingdom Atomic Energy Authority
30/05/2012,ROAD TRAVEL,FUSION,EMPLOYEE EXPENSES,100649859,22.20,United Kingdom Atomic Energy Authority,United Kingdom Atomic Energy Authority
14/06/2012,ROAD TRAVEL,FUSION,EMPLOYEE EXPENSES,100650083,12.40,United Kingdom Atomic Energy Authority,United Kingdom Atomic Energy Authority
14/06/2012,ROAD TRAVEL,FUSION,EMPLOYEE EXPENSES,100650100,6.20,United Kingdom Atomic Energy Authority,United Kingdom Atomic Energy Authority
23/06/2012,CAR HIRE,FUSION,EMPLOYEE EXPENSES,100650339,18.03,United Kingdom Atomic Energy Authority,United Kingdom Atomic Energy Authority
14/06/2012,TAXIS,FUSION,EMPLOYEE EXPENSES,100650107,59.46,United Kingdom Atomic Energy Authority,United Kingdom Atomic Energy Authority
30/05/2012,SUBSISTENCE,FUSION,EMPLOYEE EXPENSES,100649873,93.42,United Kingdom Atomic Energy Authority,United Kingdom Atomic Energy Authority
30/05/2012,SUBSISTENCE,FUSION,EMPLOYEE EXPENSES,100649873,24.04,United Kingdom Atomic Energy Authority,United Kingdom Atomic Energy Authority
14/06/2012,SUBSISTENCE,FUSION,EMPLOYEE EXPENSES,100650099,120.40,United Kingdom Atomic Energy Authority,United Kingdom Atomic Energy Authority
14/06/2012,SUBSISTENCE,FUSION,EMPLOYEE EXPENSES,100650099,7.04,United Kingdom Atomic Energy Authority,United Kingdom Atomic Energy Authority
14/06/2012,SUBSISTENCE,FUSION,EMPLOYEE EXPENSES,100650107,592.81,United Kingdom Atomic Energy Authority,United Kingdom Atomic Energy Authority
16/06/2012,SUBSISTENCE,FUSION,EMPLOYEE EXPENSES,100650130,415.47,United Kingdom Atomic Energy Authority,United Kingdom Atomic Energy Authority
20/06/2012,SUBSISTENCE,FUSION,EMPLOYEE EXPENSES,100650291,5.00,United Kingdom Atomic Energy Authority,United Kingdom Atomic Energy Authority
20/06/2012,SUBSISTENCE,FUSION,EMPLOYEE EXPENSES,100650291,71.08,United Kingdom Atomic Energy Authority,United Kingdom Atomic Energy Authority
20/06/2012,SUBSISTENCE,FUSION,EMPLOYEE EXPENSES,100650292,11.78,United Kingdom Atomic Energy Authority,United Kingdom Atomic Energy Authority
21/06/2012,SUBSISTENCE,FUSION,EMPLOYEE EXPENSES,100650313,235.27,United Kingdom Atomic Energy Authority,United Kingdom Atomic Energy Authority
23/06/2012,SUBSISTENCE,FUSION,EMPLOYEE EXPENSES,100650339,210.32,United Kingdom Atomic Energy Authority,United Kingdom Atomic Energy Authority
28/06/2012,SUBSISTENCE,FUSION,EMPLOYEE EXPENSES,100650398,399.28,United Kingdom Atomic Energy Authority,United Kingdom Atomic Energy Authority
30/06/2012,SUBSISTENCE,FUSION,EMPLOYEE EXPENSES,100650437,302.10,United Kingdom Atomic Energy Authority,United Kingdom Atomic Energy Authority
30/06/2012,SUBSISTENCE,FUSION,EMPLOYEE EXPENSES,100650442,5.00,United Kingdom Atomic Energy Authority,United Kingdom Atomic Energy Authority
30/06/2012,SUBSISTENCE,FUSION,EMPLOYEE EXPENSES,100650442,91.04,United Kingdom Atomic Energy Authority,United Kingdom Atomic Energy Authority
16/06/2012,RAIL TRAVEL,FUSION,EMPLOYEE EXPENSES,100650130,16.14,United Kingdom Atomic Energy Authority,United Kingdom Atomic Energy Authority
14/06/2012,ROAD TRAVEL,FUSION,EMPLOYEE EXPENSES,100650107,37.00,United Kingdom Atomic Energy Authority,United Kingdom Atomic Energy Authority
14/06/2012,ROAD TRAVEL,FUSION,EMPLOYEE EXPENSES,100650107,12.22,United Kingdom Atomic Energy Authority,United Kingdom Atomic Energy Authority
16/06/2012,ROAD TRAVEL,FUSION,EMPLOYEE EXPENSES,100650130,25.80,United Kingdom Atomic Energy Authority,United Kingdom Atomic Energy Authority
20/06/2012,ROAD TRAVEL,FUSION,EMPLOYEE EXPENSES,100650291,46.21,United Kingdom Atomic Energy Authority,United Kingdom Atomic Energy Authority
20/06/2012,ROAD TRAVEL,FUSION,EMPLOYEE EXPENSES,100650291,8.33,United Kingdom Atomic Energy Authority,United Kingdom Atomic Energy Authority
20/06/2012,ROAD TRAVEL,FUSION,EMPLOYEE EXPENSES,100650292,11.00,United Kingdom Atomic Energy Authority,United Kingdom Atomic Energy Authority
23/06/2012,ROAD TRAVEL,FUSION,EMPLOYEE EXPENSES,100650339,37.00,United Kingdom Atomic Energy Authority,United Kingdom Atomic Energy Authority
23/06/2012,ROAD TRAVEL,FUSION,EMPLOYEE EXPENSES,100650339,7.77,United Kingdom Atomic Energy Authority,United Kingdom Atomic Energy Authority
30/06/2012,ROAD TRAVEL,FUSION,EMPLOYEE EXPENSES,100650442,60.95,United Kingdom Atomic Energy Authority,United Kingdom Atomic Energy Authority
30/06/2012,ROAD TRAVEL,FUSION,EMPLOYEE EXPENSES,100650442,9.17,United Kingdom Atomic Energy Authority,United Kingdom Atomic Energy Authority
14/06/2012,OTHER EMPLOYEE EXPENSES,FUSION,EMPLOYEE EXPENSES,100650107,9.72,United Kingdom Atomic Energy Authority,United Kingdom Atomic Energy Authority
16/06/2012,OTHER EMPLOYEE EXPENSES,FUSION,EMPLOYEE EXPENSES,100650130,114.47,United Kingdom Atomic Energy Authority,United Kingdom Atomic Energy Authority
28/06/2012,OTHER EMPLOYEE EXPENSES,FUSION,EMPLOYEE EXPENSES,100650398,3.00,United Kingdom Atomic Energy Authority,United Kingdom Atomic Energy Authority
16/06/2012,TAXIS,FUSION,EMPLOYEE EXPENSES,100650133,53.27,United Kingdom Atomic Energy Authority,United Kingdom Atomic Energy Authority
20/06/2012,TAXIS,FUSION,EMPLOYEE EXPENSES,100650262,25.71,United Kingdom Atomic Energy Authority,United Kingdom Atomic Energy Authority
20/06/2012,TAXIS,FUSION,EMPLOYEE EXPENSES,100650289,6.43,United Kingdom Atomic Energy Authority,United Kingdom Atomic Energy Authority
01/06/2012,SUBSISTENCE,FUSION,EMPLOYEE EXPENSES,100650015,410.13,United Kingdom Atomic Energy Authority,United Kingdom Atomic Energy Authority
01/06/2012,SUBSISTENCE,FUSION,EMPLOYEE EXPENSES,100650015,8.14,United Kingdom Atomic Energy Authority,United Kingdom Atomic Energy Authority
01/06/2012,SUBSISTENCE,FUSION,EMPLOYEE EXPENSES,100650020,393.51,United Kingdom Atomic Energy Authority,United Kingdom Atomic Energy Authority
16/06/2012,SUBSISTENCE,FUSION,EMPLOYEE EXPENSES,100650133,359.86,United Kingdom Atomic Energy Authority,United Kingdom Atomic Energy Authority
16/06/2012,SUBSISTENCE,FUSION,EMPLOYEE EXPENSES,100650133,9.17,United Kingdom Atomic Energy Authority,United Kingdom Atomic Energy Authority
16/06/2012,SUBSISTENCE,FUSION,EMPLOYEE EXPENSES,100650143,349.39,United Kingdom Atomic Energy Authority,United Kingdom Atomic Energy Authority
20/06/2012,SUBSISTENCE,FUSION,EMPLOYEE EXPENSES,100650261,62.91,United Kingdom Atomic Energy Authority,United Kingdom Atomic Energy Authority
20/06/2012,SUBSISTENCE,FUSION,EMPLOYEE EXPENSES,100650262,74.14,United Kingdom Atomic Energy Authority,United Kingdom Atomic Energy Authority
20/06/2012,SUBSISTENCE,FUSION,EMPLOYEE EXPENSES,100650262,6.83,United Kingdom Atomic Energy Authority,United Kingdom Atomic Energy Authority
20/06/2012,SUBSISTENCE,FUSION,EMPLOYEE EXPENSES,100650286,407.00,United Kingdom Atomic Energy Authority,United Kingdom Atomic Energy Authority
20/06/2012,SUBSISTENCE,FUSION,EMPLOYEE EXPENSES,100650289,429.67,United Kingdom Atomic Energy Authority,United Kingdom Atomic Energy Authority
30/06/2012,SUBSISTENCE,FUSION,EMPLOYEE EXPENSES,100650433,641.69,United Kingdom Atomic Energy Authority,United Kingdom Atomic Energy Authority
30/06/2012,SUBSISTENCE,FUSION,EMPLOYEE EXPENSES,100650439,532.72,United Kingdom Atomic Energy Authority,United Kingdom Atomic Energy Authority
20/06/2012,AIR TRAVEL,FUSION,EMPLOYEE EXPENSES,100650289,140.00,United Kingdom Atomic Energy Authority,United Kingdom Atomic Energy Authority
01/06/2012,RAIL TRAVEL,FUSION,EMPLOYEE EXPENSES,100650015,34.26,United Kingdom Atomic Energy Authority,United Kingdom Atomic Energy Authority
01/06/2012,RAIL TRAVEL,FUSION,EMPLOYEE EXPENSES,100650020,13.50,United Kingdom Atomic Energy Authority,United Kingdom Atomic Energy Authority
16/06/2012,RAIL TRAVEL,FUSION,EMPLOYEE EXPENSES,100650133,13.40,United Kingdom Atomic Energy Authority,United Kingdom Atomic Energy Authority
20/06/2012,RAIL TRAVEL,FUSION,EMPLOYEE EXPENSES,100650289,25.23,United Kingdom Atomic Energy Authority,United Kingdom Atomic Energy Authority
30/06/2012,RAIL TRAVEL,FUSION,EMPLOYEE EXPENSES,100650433,33.78,United Kingdom Atomic Energy Authority,United Kingdom Atomic Energy Authority
30/06/2012,RAIL TRAVEL,FUSION,EMPLOYEE EXPENSES,100650439,49.90,United Kingdom Atomic Energy Authority,United Kingdom Atomic Energy Authority
01/06/2012,ROAD TRAVEL,FUSION,EMPLOYEE EXPENSES,100650015,23.00,United Kingdom Atomic Energy Authority,United Kingdom Atomic Energy Authority
01/06/2012,ROAD TRAVEL,FUSION,EMPLOYEE EXPENSES,100650020,5.50,United Kingdom Atomic Energy Authority,United Kingdom Atomic Energy Authority
16/06/2012,ROAD TRAVEL,FUSION,EMPLOYEE EXPENSES,100650133,27.00,United Kingdom Atomic Energy Authority,United Kingdom Atomic Energy Authority
16/06/2012,ROAD TRAVEL,FUSION,EMPLOYEE EXPENSES,100650133,3.33,United Kingdom Atomic Energy Authority,United Kingdom Atomic Energy Authority
20/06/2012,ROAD TRAVEL,FUSION,EMPLOYEE EXPENSES,100650261,27.00,United Kingdom Atomic Energy Authority,United Kingdom Atomic Energy Authority
20/06/2012,ROAD TRAVEL,FUSION,EMPLOYEE EXPENSES,100650261,46.44,United Kingdom Atomic Energy Authority,United Kingdom Atomic Energy Authority
20/06/2012,ROAD TRAVEL,FUSION,EMPLOYEE EXPENSES,100650262,24.00,United Kingdom Atomic Energy Authority,United Kingdom Atomic Energy Authority
01/06/2012,OTHER EMPLOYEE EXPENSES,FUSION,EMPLOYEE EXPENSES,100650015,3.00,United Kingdom Atomic Energy Authority,United Kingdom Atomic Energy Authority
20/06/2012,OTHER EMPLOYEE EXPENSES,FUSION,EMPLOYEE EXPENSES,100650262,2.50,United Kingdom Atomic Energy Authority,United Kingdom Atomic Energy Authority
01/06/2012,TAXIS,FUSION,EMPLOYEE EXPENSES,100650019,29.19,United Kingdom Atomic Energy Authority,United Kingdom Atomic Energy Authority
01/06/2012,SUBSISTENCE,FUSION,EMPLOYEE EXPENSES,100650019,448.21,United Kingdom Atomic Energy Authority,United Kingdom Atomic Energy Authority
16/06/2012,SUBSISTENCE,FUSION,EMPLOYEE EXPENSES,100650144,879.63,United Kingdom Atomic Energy Authority,United Kingdom Atomic Energy Authority
23/06/2012,SUBSISTENCE,FUSION,EMPLOYEE EXPENSES,100650335,483.24,United Kingdom Atomic Energy Authority,United Kingdom Atomic Energy Authority
23/06/2012,RAIL TRAVEL,FUSION,EMPLOYEE EXPENSES,100650335,15.59,United Kingdom Atomic Energy Authority,United Kingdom Atomic Energy Authority
01/06/2012,ROAD TRAVEL,FUSION,EMPLOYEE EXPENSES,100650019,27.00,United Kingdom Atomic Energy Authority,United Kingdom Atomic Energy Authority
23/06/2012,ROAD TRAVEL,FUSION,EMPLOYEE EXPENSES,100650335,23.00,United Kingdom Atomic Energy Authority,United Kingdom Atomic Energy Authority
23/06/2012,ROAD TRAVEL,FUSION,EMPLOYEE EXPENSES,100650335,2.24,United Kingdom Atomic Energy Authority,United Kingdom Atomic Energy Authority
14/06/2012,OTHER EMPLOYEE EXPENSES,FUSION,EMPLOYEE EXPENSES,100650109,198.00,United Kingdom Atomic Energy Authority,United Kingdom Atomic Energy Authority
16/06/2012,OTHER EMPLOYEE EXPENSES,FUSION,EMPLOYEE EXPENSES,100650138,204.75,United Kingdom Atomic Energy Authority,United Kingdom Atomic Energy Authority
16/06/2012,OTHER EMPLOYEE EXPENSES,FUSION,EMPLOYEE EXPENSES,100650139,195.68,United Kingdom Atomic Energy Authority,United Kingdom Atomic Energy Authority
23/06/2012,OTHER EMPLOYEE EXPENSES,FUSION,EMPLOYEE EXPENSES,100650336,118.60,United Kingdom Atomic Energy Authority,United Kingdom Atomic Energy Authority
20/06/2012,TAXIS,FUSION,EMPLOYEE EXPENSES,100650264,22.35,United Kingdom Atomic Energy Authority,United Kingdom Atomic Energy Authority
21/06/2012,TAXIS,FUSION,EMPLOYEE EXPENSES,100650311,35.00,United Kingdom Atomic Energy Authority,United Kingdom Atomic Energy Authority
28/06/2012,TAXIS,FUSION,EMPLOYEE EXPENSES,100650405,70.13,United Kingdom Atomic Energy Authority,United Kingdom Atomic Energy Authority
28/06/2012,TAXIS,FUSION,EMPLOYEE EXPENSES,100650406,30.61,United Kingdom Atomic Energy Authority,United Kingdom Atomic Energy Authority
30/06/2012,TAXIS,FUSION,EMPLOYEE EXPENSES,100650436,15.30,United Kingdom Atomic Energy Authority,United Kingdom Atomic Energy Authority
31/05/2012,SUBSISTENCE,FUSION,EMPLOYEE EXPENSES,100649905,411.64,United Kingdom Atomic Energy Authority,United Kingdom Atomic Energy Authority
31/05/2012,SUBSISTENCE,FUSION,EMPLOYEE EXPENSES,100649905,6.45,United Kingdom Atomic Energy Authority,United Kingdom Atomic Energy Authority
14/06/2012,SUBSISTENCE,FUSION,EMPLOYEE EXPENSES,100650108,419.72,United Kingdom Atomic Energy Authority,United Kingdom Atomic Energy Authority
20/06/2012,SUBSISTENCE,FUSION,EMPLOYEE EXPENSES,100650263,255.00,United Kingdom Atomic Energy Authority,United Kingdom Atomic Energy Authority
20/06/2012,SUBSISTENCE,FUSION,EMPLOYEE EXPENSES,100650264,439.50,United Kingdom Atomic Energy Authority,United Kingdom Atomic Energy Authority
20/06/2012,SUBSISTENCE,FUSION,EMPLOYEE EXPENSES,100650264,64.48,United Kingdom Atomic Energy Authority,United Kingdom Atomic Energy Authority
21/06/2012,SUBSISTENCE,FUSION,EMPLOYEE EXPENSES,100650311,306.35,United Kingdom Atomic Energy Authority,United Kingdom Atomic Energy Authority
21/06/2012,SUBSISTENCE,FUSION,EMPLOYEE EXPENSES,100650311,6.24,United Kingdom Atomic Energy Authority,United Kingdom Atomic Energy Authority
23/06/2012,SUBSISTENCE,FUSION,EMPLOYEE EXPENSES,100650343,247.82,United Kingdom Atomic Energy Authority,United Kingdom Atomic Energy Authority
28/06/2012,SUBSISTENCE,FUSION,EMPLOYEE EXPENSES,100650405,353.94,United Kingdom Atomic Energy Authority,United Kingdom Atomic Energy Authority
28/06/2012,SUBSISTENCE,FUSION,EMPLOYEE EXPENSES,100650405,8.25,United Kingdom Atomic Energy Authority,United Kingdom Atomic Energy Authority
28/06/2012,SUBSISTENCE,FUSION,EMPLOYEE EXPENSES,100650406,"1,024.69",United Kingdom Atomic Energy Authority,United Kingdom Atomic Energy Authority
30/06/2012,SUBSISTENCE,FUSION,EMPLOYEE EXPENSES,100650432,80.22,United Kingdom Atomic Energy Authority,United Kingdom Atomic Energy Authority
30/06/2012,SUBSISTENCE,FUSION,EMPLOYEE EXPENSES,100650434,399.17,United Kingdom Atomic Energy Authority,United Kingdom Atomic Energy Authority
30/06/2012,SUBSISTENCE,FUSION,EMPLOYEE EXPENSES,100650436,990.34,United Kingdom Atomic Energy Authority,United Kingdom Atomic Energy Authority
30/06/2012,SUBSISTENCE,FUSION,EMPLOYEE EXPENSES,100650436,11.00,United Kingdom Atomic Energy Authority,United Kingdom Atomic Energy Authority
31/05/2012,RAIL TRAVEL,FUSION,EMPLOYEE EXPENSES,100649905,15.26,United Kingdom Atomic Energy Authority,United Kingdom Atomic Energy Authority
14/06/2012,RAIL TRAVEL,FUSION,EMPLOYEE EXPENSES,100650108,9.83,United Kingdom Atomic Energy Authority,United Kingdom Atomic Energy Authority
21/06/2012,RAIL TRAVEL,FUSION,EMPLOYEE EXPENSES,100650311,1.78,United Kingdom Atomic Energy Authority,United Kingdom Atomic Energy Authority
28/06/2012,RAIL TRAVEL,FUSION,EMPLOYEE EXPENSES,100650405,4.32,United Kingdom Atomic Energy Authority,United Kingdom Atomic Energy Authority
30/06/2012,RAIL TRAVEL,FUSION,EMPLOYEE EXPENSES,100650432,2.22,United Kingdom Atomic Energy Authority,United Kingdom Atomic Energy Authority
30/06/2012,RAIL TRAVEL,FUSION,EMPLOYEE EXPENSES,100650434,11.80,United Kingdom Atomic Energy Authority,United Kingdom Atomic Energy Authority
31/05/2012,ROAD TRAVEL,FUSION,EMPLOYEE EXPENSES,100649905,29.80,United Kingdom Atomic Energy Authority,United Kingdom Atomic Energy Authority
31/05/2012,ROAD TRAVEL,FUSION,EMPLOYEE EXPENSES,100649905,1.60,United Kingdom Atomic Energy Authority,United Kingdom Atomic Energy Authority
14/06/2012,ROAD TRAVEL,FUSION,EMPLOYEE EXPENSES,100650108,6.59,United Kingdom Atomic Energy Authority,United Kingdom Atomic Energy Authority
20/06/2012,ROAD TRAVEL,FUSION,EMPLOYEE EXPENSES,100650264,43.00,United Kingdom Atomic Energy Authority,United Kingdom Atomic Energy Authority
21/06/2012,ROAD TRAVEL,FUSION,EMPLOYEE EXPENSES,100650311,46.00,United Kingdom Atomic Energy Authority,United Kingdom Atomic Energy Authority
21/06/2012,ROAD TRAVEL,FUSION,EMPLOYEE EXPENSES,100650311,15.10,United Kingdom Atomic Energy Authority,United Kingdom Atomic Energy Authority
21/06/2012,OTHER EMPLOYEE EXPENSES,FUSION,EMPLOYEE EXPENSES,100650311,6.00,United Kingdom Atomic Energy Authority,United Kingdom Atomic Energy Authority
28/06/2012,OTHER EMPLOYEE EXPENSES,FUSION,EMPLOYEE EXPENSES,100650405,3.00,United Kingdom Atomic Energy Authority,United Kingdom Atomic Energy Authority
30/06/2012,OTHER EMPLOYEE EXPENSES,FUSION,EMPLOYEE EXPENSES,100650432,4.17,United Kingdom Atomic Energy Authority,United Kingdom Atomic Energy Authority
30/05/2012,TAXIS,FUSION,EMPLOYEE EXPENSES,100649872,5.36,United Kingdom Atomic Energy Authority,United Kingdom Atomic Energy Authority
28/06/2012,TAXIS,FUSION,EMPLOYEE EXPENSES,100650409,51.60,United Kingdom Atomic Energy Authority,United Kingdom Atomic Energy Authority
30/05/2012,SUBSISTENCE,FUSION,EMPLOYEE EXPENSES,100649872,201.15,United Kingdom Atomic Energy Authority,United Kingdom Atomic Energy Authority
23/06/2012,SUBSISTENCE,FUSION,EMPLOYEE EXPENSES,100650333,49.23,United Kingdom Atomic Energy Authority,United Kingdom Atomic Energy Authority
28/06/2012,SUBSISTENCE,FUSION,EMPLOYEE EXPENSES,100650408,111.18,United Kingdom Atomic Energy Authority,United Kingdom Atomic Energy Authority
28/06/2012,SUBSISTENCE,FUSION,EMPLOYEE EXPENSES,100650409,144.03,United Kingdom Atomic Energy Authority,United Kingdom Atomic Energy Authority
30/06/2012,SUBSISTENCE,FUSION,EMPLOYEE EXPENSES,100650431,69.16,United Kingdom Atomic Energy Authority,United Kingdom Atomic Energy Authority
30/06/2012,SUBSISTENCE,FUSION,EMPLOYEE EXPENSES,100650431,1.66,United Kingdom Atomic Energy Authority,United Kingdom Atomic Energy Authority
23/06/2012,RAIL TRAVEL,FUSION,EMPLOYEE EXPENSES,100650333,2.41,United Kingdom Atomic Energy Authority,United Kingdom Atomic Energy Authority
28/06/2012,RAIL TRAVEL,FUSION,EMPLOYEE EXPENSES,100650408,4.00,United Kingdom Atomic Energy Authority,United Kingdom Atomic Energy Authority
23/06/2012,ROAD TRAVEL,FUSION,EMPLOYEE EXPENSES,100650333,11.12,United Kingdom Atomic Energy Authority,United Kingdom Atomic Energy Authority
23/06/2012,ROAD TRAVEL,FUSION,EMPLOYEE EXPENSES,100650333,13.52,United Kingdom Atomic Energy Authority,United Kingdom Atomic Energy Authority
30/06/2012,ROAD TRAVEL,FUSION,EMPLOYEE EXPENSES,100650431,8.93,United Kingdom Atomic Energy Authority,United Kingdom Atomic Energy Authority
23/06/2012,OTHER EMPLOYEE EXPENSES,FUSION,EMPLOYEE EXPENSES,100650333,13.98,United Kingdom Atomic Energy Authority,United Kingdom Atomic Energy Authority
30/06/2012,OTHER EMPLOYEE EXPENSES,FUSION,EMPLOYEE EXPENSES,100650431,6.99,United Kingdom Atomic Energy Authority,United Kingdom Atomic Energy Authority
23/06/2012,PROFESSIONAL SUBSCRIPTION,FUSION,EMPLOYEE EXPENSES,100650334,221.50,United Kingdom Atomic Energy Authority,United Kingdom Atomic Energy Authority
01/06/2012,SUBSISTENCE,FUSION,EMPLOYEE EXPENSES,100650018,493.47,United Kingdom Atomic Energy Authority,United Kingdom Atomic Energy Authority
01/06/2012,SUBSISTENCE,FUSION,EMPLOYEE EXPENSES,100650018,5.28,United Kingdom Atomic Energy Authority,United Kingdom Atomic Energy Authority
01/06/2012,RAIL TRAVEL,FUSION,EMPLOYEE EXPENSES,100650018,33.74,United Kingdom Atomic Energy Authority,United Kingdom Atomic Energy Authority
01/06/2012,ROAD TRAVEL,FUSION,EMPLOYEE EXPENSES,100650018,29.80,United Kingdom Atomic Energy Authority,United Kingdom Atomic Energy Authority
01/06/2012,OTHER EMPLOYEE EXPENSES,FUSION,EMPLOYEE EXPENSES,100650018,10.95,United Kingdom Atomic Energy Authority,United Kingdom Atomic Energy Authority
30/05/2012,SUBSISTENCE,FUSION,EMPLOYEE EXPENSES,100649861,100.40,United Kingdom Atomic Energy Authority,United Kingdom Atomic Energy Authority
28/06/2012,SUBSISTENCE,FUSION,EMPLOYEE EXPENSES,100650412,50.00,United Kingdom Atomic Energy Authority,United Kingdom Atomic Energy Authority
28/06/2012,RAIL TRAVEL,FUSION,EMPLOYEE EXPENSES,100650412,30.32,United Kingdom Atomic Energy Authority,United Kingdom Atomic Energy Authority
28/06/2012,ROAD TRAVEL,FUSION,EMPLOYEE EXPENSES,100650412,32.60,United Kingdom Atomic Energy Authority,United Kingdom Atomic Energy Authority
14/06/2012,ROAD TRAVEL,FUSION,EMPLOYEE EXPENSES,100650108,42.60,United Kingdom Atomic Energy Authority,United Kingdom Atomic Energy Authority
20/06/2012,TAXIS,FUSION,EMPLOYEE EXPENSES,100650275,31.45,United Kingdom Atomic Energy Authority,United Kingdom Atomic Energy Authority
20/06/2012,SUBSISTENCE,FUSION,EMPLOYEE EXPENSES,100650275,81.56,United Kingdom Atomic Energy Authority,United Kingdom Atomic Energy Authority
20/06/2012,SUBSISTENCE,FUSION,EMPLOYEE EXPENSES,100650275,3.33,United Kingdom Atomic Energy Authority,United Kingdom Atomic Energy Authority
30/06/2012,SUBSISTENCE,FUSION,EMPLOYEE EXPENSES,100650432,16.60,United Kingdom Atomic Energy Authority,United Kingdom Atomic Energy Authority
20/06/2012,RAIL TRAVEL,FUSION,EMPLOYEE EXPENSES,100650275,2.25,United Kingdom Atomic Energy Authority,United Kingdom Atomic Energy Authority
20/06/2012,OTHER EMPLOYEE EXPENSES,FUSION,EMPLOYEE EXPENSES,100650275,9.87,United Kingdom Atomic Energy Authority,United Kingdom Atomic Energy Authority
30/05/2012,MILEAGE ALLOWANCE,FUSION,EMPLOYEE EXPENSES,100649849,12.80,United Kingdom Atomic Energy Authority,United Kingdom Atomic Energy Authority
30/05/2012,MILEAGE ALLOWANCE,FUSION,EMPLOYEE EXPENSES,100649850,24.00,United Kingdom Atomic Energy Authority,United Kingdom Atomic Energy Authority
30/05/2012,MILEAGE ALLOWANCE,FUSION,EMPLOYEE EXPENSES,100649858,5.60,United Kingdom Atomic Energy Authority,United Kingdom Atomic Energy Authority
30/05/2012,MILEAGE ALLOWANCE,FUSION,EMPLOYEE EXPENSES,100649879,6.40,United Kingdom Atomic Energy Authority,United Kingdom Atomic Energy Authority
14/06/2012,MILEAGE ALLOWANCE,FUSION,EMPLOYEE EXPENSES,100650081,19.20,United Kingdom Atomic Energy Authority,United Kingdom Atomic Energy Authority
14/06/2012,MILEAGE ALLOWANCE,FUSION,EMPLOYEE EXPENSES,100650082,18.40,United Kingdom Atomic Energy Authority,United Kingdom Atomic Energy Authority
20/06/2012,MILEAGE ALLOWANCE,FUSION,EMPLOYEE EXPENSES,100650260,12.00,United Kingdom Atomic Energy Authority,United Kingdom Atomic Energy Authority
20/06/2012,MILEAGE ALLOWANCE,FUSION,EMPLOYEE EXPENSES,100650266,5.60,United Kingdom Atomic Energy Authority,United Kingdom Atomic Energy Authority
20/06/2012,MILEAGE ALLOWANCE,FUSION,EMPLOYEE EXPENSES,100650267,5.60,United Kingdom Atomic Energy Authority,United Kingdom Atomic Energy Authority
20/06/2012,MILEAGE ALLOWANCE,FUSION,EMPLOYEE EXPENSES,100650268,11.20,United Kingdom Atomic Energy Authority,United Kingdom Atomic Energy Authority
20/06/2012,MILEAGE ALLOWANCE,FUSION,EMPLOYEE EXPENSES,100650269,8.80,United Kingdom Atomic Energy Authority,United Kingdom Atomic Energy Authority
20/06/2012,MILEAGE ALLOWANCE,FUSION,EMPLOYEE EXPENSES,100650270,9.60,United Kingdom Atomic Energy Authority,United Kingdom Atomic Energy Authority
20/06/2012,MILEAGE ALLOWANCE,FUSION,EMPLOYEE EXPENSES,100650271,5.60,United Kingdom Atomic Energy Authority,United Kingdom Atomic Energy Authority
28/06/2012,MILEAGE ALLOWANCE,FUSION,EMPLOYEE EXPENSES,100650395,17.60,United Kingdom Atomic Energy Authority,United Kingdom Atomic Energy Authority
21/06/2012,TAXIS,SUPPORT SERVICES,EMPLOYEE EXPENSES,100650314,9.10,United Kingdom Atomic Energy Authority,United Kingdom Atomic Energy Authority
21/06/2012,TAXIS,SUPPORT SERVICES,EMPLOYEE EXPENSES,100650315,10.00,United Kingdom Atomic Energy Authority,United Kingdom Atomic Energy Authority
28/06/2012,TAXIS,SUPPORT SERVICES,EMPLOYEE EXPENSES,100650411,10.00,United Kingdom Atomic Energy Authority,United Kingdom Atomic Energy Authority
30/06/2012,TAXIS,SUPPORT SERVICES,EMPLOYEE EXPENSES,100650444,10.00,United Kingdom Atomic Energy Authority,United Kingdom Atomic Energy Authority
30/05/2012,SUBSISTENCE,SUPPORT SERVICES,EMPLOYEE EXPENSES,100649876,85.00,United Kingdom Atomic Energy Authority,United Kingdom Atomic Energy Authority
14/06/2012,SUBSISTENCE,SUPPORT SERVICES,EMPLOYEE EXPENSES,100650095,1.43,United Kingdom Atomic Energy Authority,United Kingdom Atomic Energy Authority
30/05/2012,MILEAGE ALLOWANCE,SUPPORT SERVICES,EMPLOYEE EXPENSES,100649876,86.00,United Kingdom Atomic Energy Authority,United Kingdom Atomic Energy Authority
14/06/2012,MILEAGE ALLOWANCE,SUPPORT SERVICES,EMPLOYEE EXPENSES,100650095,15.20,United Kingdom Atomic Energy Authority,United Kingdom Atomic Energy Authority
28/06/2012,MILEAGE ALLOWANCE,SUPPORT SERVICES,EMPLOYEE EXPENSES,100650410,16.00,United Kingdom Atomic Energy Authority,United Kingdom Atomic Energy Authority
21/06/2012,RAIL TRAVEL,SUPPORT SERVICES,EMPLOYEE EXPENSES,100650310,55.90,United Kingdom Atomic Energy Authority,United Kingdom Atomic Energy Authority
21/06/2012,RAIL TRAVEL,SUPPORT SERVICES,EMPLOYEE EXPENSES,100650314,35.65,United Kingdom Atomic Energy Authority,United Kingdom Atomic Energy Authority
21/06/2012,RAIL TRAVEL,SUPPORT SERVICES,EMPLOYEE EXPENSES,100650315,17.50,United Kingdom Atomic Energy Authority,United Kingdom Atomic Energy Authority
28/06/2012,RAIL TRAVEL,SUPPORT SERVICES,EMPLOYEE EXPENSES,100650411,17.50,United Kingdom Atomic Energy Authority,United Kingdom Atomic Energy Authority
30/06/2012,RAIL TRAVEL,SUPPORT SERVICES,EMPLOYEE EXPENSES,100650444,21.80,United Kingdom Atomic Energy Authority,United Kingdom Atomic Energy Authority
14/06/2012,ROAD TRAVEL,SUPPORT SERVICES,EMPLOYEE EXPENSES,100650095,4.75,United Kingdom Atomic Energy Authority,United Kingdom Atomic Energy Authority
21/06/2012,ROAD TRAVEL,SUPPORT SERVICES,EMPLOYEE EXPENSES,100650310,6.40,United Kingdom Atomic Energy Authority,United Kingdom Atomic Energy Authority
20/06/2012,SUBSISTENCE,SUPPORT SERVICES,EMPLOYEE EXPENSES,100650274,5.00,United Kingdom Atomic Energy Authority,United Kingdom Atomic Energy Authority
20/06/2012,SUBSISTENCE,SUPPORT SERVICES,EMPLOYEE EXPENSES,100650274,3.16,United Kingdom Atomic Energy Authority,United Kingdom Atomic Energy Authority
20/06/2012,RAIL TRAVEL,SUPPORT SERVICES,EMPLOYEE EXPENSES,100650274,55.80,United Kingdom Atomic Energy Authority,United Kingdom Atomic Energy Authority
20/06/2012,ROAD TRAVEL,SUPPORT SERVICES,EMPLOYEE EXPENSES,100650274,18.60,United Kingdom Atomic Energy Authority,United Kingdom Atomic Energy Authority
28/06/2012,ROAD TRAVEL,SUPPORT SERVICES,EMPLOYEE EXPENSES,100650397,4.75,United Kingdom Atomic Energy Authority,United Kingdom Atomic Energy Authority
18/06/2012,REGULATORY COSTS,FUSION,ENVIRONMENT AGENCY THAMES REGION,5100274716,"8,208.00",United Kingdom Atomic Energy Authority,United Kingdom Atomic Energy Authority
27/06/2012,REPAIRS & MAINTENANCE,FUSION,ERIKS,5100276263,16.00,United Kingdom Atomic Energy Authority,United Kingdom Atomic Energy Authority
11/06/2012,MATERIALS & SPARES,FUSION,ETS CABLE COMPONENTS,5100275906,790.80,United Kingdom Atomic Energy Authority,United Kingdom Atomic Energy Authority
18/06/2012,MATERIALS & SPARES,SUPPORT SERVICES,FARNELL ELECTRONIC,5100276316,4.00,United Kingdom Atomic Energy Authority,United Kingdom Atomic Energy Authority
25/06/2012,MATERIALS & SPARES,FUSION,FARNELL ELECTRONIC,5100276550,-53.60,United Kingdom Atomic Energy Authority,United Kingdom Atomic Energy Authority
28/05/2012,MATERIALS & SPARES,FUSION,FARNELL ELECTRONIC,5100275516,468.91,United Kingdom Atomic Energy Authority,United Kingdom Atomic Energy Authority
28/05/2012,MATERIALS & SPARES,FUSION,FARNELL ELECTRONIC,5100275517,191.09,United Kingdom Atomic Energy Authority,United Kingdom Atomic Energy Authority
28/05/2012,MATERIALS & SPARES,FUSION,FARNELL ELECTRONIC,5100275518,24.90,United Kingdom Atomic Energy Authority,United Kingdom Atomic Energy Authority
28/05/2012,MATERIALS & SPARES,FUSION,FARNELL ELECTRONIC,5100275594,60.61,United Kingdom Atomic Energy Authority,United Kingdom Atomic Energy Authority
28/05/2012,MATERIALS & SPARES,FUSION,FARNELL ELECTRONIC,5100275596,717.38,United Kingdom Atomic Energy Authority,United Kingdom Atomic Energy Authority
07/06/2012,MATERIALS & SPARES,FUSION,FARNELL ELECTRONIC,5100275728,676.35,United Kingdom Atomic Energy Authority,United Kingdom Atomic Energy Authority
11/06/2012,MATERIALS & SPARES,FUSION,FARNELL ELECTRONIC,5100275875,292.88,United Kingdom Atomic Energy Authority,United Kingdom Atomic Energy Authority
11/06/2012,MATERIALS & SPARES,FUSION,FARNELL ELECTRONIC,5100275876,280.00,United Kingdom Atomic Energy Authority,United Kingdom Atomic Energy Authority
18/06/2012,MATERIALS & SPARES,FUSION,FARNELL ELECTRONIC,5100276125,313.22,United Kingdom Atomic Energy Authority,United Kingdom Atomic Energy Authority
18/06/2012,MATERIALS & SPARES,FUSION,FARNELL ELECTRONIC,5100276127,844.03,United Kingdom Atomic Energy Authority,United Kingdom Atomic Energy Authority
18/06/2012,MATERIALS & SPARES,FUSION,FARNELL ELECTRONIC,5100276128,37.35,United Kingdom Atomic Energy Authority,United Kingdom Atomic Energy Authority
18/06/2012,MATERIALS & SPARES,FUSION,FARNELL ELECTRONIC,5100276130,635.41,United Kingdom Atomic Energy Authority,United Kingdom Atomic Energy Authority
18/06/2012,MATERIALS & SPARES,FUSION,FARNELL ELECTRONIC,5100276131,8.82,United Kingdom Atomic Energy Authority,United Kingdom Atomic Energy Authority
18/06/2012,MATERIALS & SPARES,FUSION,FARNELL ELECTRONIC,5100276134,14.70,United Kingdom Atomic Energy Authority,United Kingdom Atomic Energy Authority
18/06/2012,MATERIALS & SPARES,FUSION,FARNELL ELECTRONIC,5100276317,8.50,United Kingdom Atomic Energy Authority,United Kingdom Atomic Energy Authority
28/05/2012,MATERIALS & SPARES,FUSION,FARNELL ELECTRONIC,5100275525,142.85,United Kingdom Atomic Energy Authority,United Kingdom Atomic Energy Authority
07/06/2012,MATERIALS & SPARES,FUSION,FARNELL ELECTRONIC,5100275729,5.87,United Kingdom Atomic Energy Authority,United Kingdom Atomic Energy Authority
18/06/2012,MATERIALS & SPARES,FUSION,FARNELL ELECTRONIC,5100276092,83.83,United Kingdom Atomic Energy Authority,United Kingdom Atomic Energy Authority
18/06/2012,MATERIALS & SPARES,FUSION,FARNELL ELECTRONIC,5100276142,16.87,United Kingdom Atomic Energy Authority,United Kingdom Atomic Energy Authority
28/05/2012,MATERIALS & SPARES,FUSION,FARNELL ELECTRONIC,5100275468,130.13,United Kingdom Atomic Energy Authority,United Kingdom Atomic Energy Authority
18/06/2012,MATERIALS & SPARES,FUSION,FARNELL ELECTRONIC,5100276138,126.82,United Kingdom Atomic Energy Authority,United Kingdom Atomic Energy Authority
18/06/2012,MATERIALS & SPARES,FUSION,FARNELL ELECTRONIC,5100276139,54.65,United Kingdom Atomic Energy Authority,United Kingdom Atomic Energy Authority
28/05/2012,MATERIALS & SPARES,FUSION,FARNELL ELECTRONIC,5100275519,152.40,United Kingdom Atomic Energy Authority,United Kingdom Atomic Energy Authority
28/05/2012,MATERIALS & SPARES,FUSION,FARNELL ELECTRONIC,5100275523,26.54,United Kingdom Atomic Energy Authority,United Kingdom Atomic Energy Authority
18/06/2012,MATERIALS & SPARES,FUSION,FARNELL ELECTRONIC,5100276319,7.08,United Kingdom Atomic Energy Authority,United Kingdom Atomic Energy Authority
28/05/2012,MATERIALS & SPARES,FUSION,FARNELL ELECTRONIC,5100275456,51.66,United Kingdom Atomic Energy Authority,United Kingdom Atomic Energy Authority
28/05/2012,MATERIALS & SPARES,FUSION,FARNELL ELECTRONIC,5100275473,226.04,United Kingdom Atomic Energy Authority,United Kingdom Atomic Energy Authority
18/06/2012,MATERIALS & SPARES,FUSION,FARNELL ELECTRONIC,5100275870,187.68,United Kingdom Atomic Energy Authority,United Kingdom Atomic Energy Authority
18/06/2012,MATERIALS & SPARES,FUSION,FARNELL ELECTRONIC,5100276140,40.65,United Kingdom Atomic Energy Authority,United Kingdom Atomic Energy Authority
28/05/2012,MATERIALS & SPARES,FUSION,FARNELL ELECTRONIC,5100275470,78.22,United Kingdom Atomic Energy Authority,United Kingdom Atomic Energy Authority
28/05/2012,MATERIALS & SPARES,FUSION,FARNELL ELECTRONIC,5100275472,34.78,United Kingdom Atomic Energy Authority,United Kingdom Atomic Energy Authority
28/05/2012,MATERIALS & SPARES,FUSION,FARNELL ELECTRONIC,5100275526,102.15,United Kingdom Atomic Energy Authority,United Kingdom Atomic Energy Authority
28/05/2012,MATERIALS & SPARES,FUSION,FARNELL ELECTRONIC,5100275597,96.87,United Kingdom Atomic Energy Authority,United Kingdom Atomic Energy Authority
28/05/2012,MATERIALS & SPARES,FUSION,FARNELL ELECTRONIC,5100275598,171.95,United Kingdom Atomic Energy Authority,United Kingdom Atomic Energy Authority
07/06/2012,MATERIALS & SPARES,FUSION,FARNELL ELECTRONIC,5100275730,8.00,United Kingdom Atomic Energy Authority,United Kingdom Atomic Energy Authority
11/06/2012,MATERIALS & SPARES,FUSION,FARNELL ELECTRONIC,5100275731,243.49,United Kingdom Atomic Energy Authority,United Kingdom Atomic Energy Authority
11/06/2012,MATERIALS & SPARES,FUSION,FARNELL ELECTRONIC,5100275877,223.34,United Kingdom Atomic Energy Authority,United Kingdom Atomic Energy Authority
13/06/2012,MATERIALS & SPARES,FUSION,FARNELL ELECTRONIC,5100275879,71.68,United Kingdom Atomic Energy Authority,United Kingdom Atomic Energy Authority
18/06/2012,MATERIALS & SPARES,FUSION,FARNELL ELECTRONIC,5100276102,31.91,United Kingdom Atomic Energy Authority,United Kingdom Atomic Energy Authority
18/06/2012,MATERIALS & SPARES,FUSION,FARNELL ELECTRONIC,5100276144,274.97,United Kingdom Atomic Energy Authority,United Kingdom Atomic Energy Authority
18/06/2012,MATERIALS & SPARES,FUSION,FARNELL ELECTRONIC,5100276147,140.92,United Kingdom Atomic Energy Authority,United Kingdom Atomic Energy Authority
18/06/2012,MATERIALS & SPARES,FUSION,FARNELL ELECTRONIC,5100276148,101.51,United Kingdom Atomic Energy Authority,United Kingdom Atomic Energy Authority
18/06/2012,MATERIALS & SPARES,FUSION,FARNELL ELECTRONIC,5100276149,227.28,United Kingdom Atomic Energy Authority,United Kingdom Atomic Energy Authority
18/06/2012,MATERIALS & SPARES,FUSION,FARNELL ELECTRONIC,5100276151,40.17,United Kingdom Atomic Energy Authority,United Kingdom Atomic Energy Authority
25/06/2012,MATERIALS & SPARES,FUSION,FARNELL ELECTRONIC,5100276320,108.25,United Kingdom Atomic Energy Authority,United Kingdom Atomic Energy Authority
18/06/2012,MATERIALS & SPARES,FUSION,FARNELL ELECTRONIC,5100276135,58.68,United Kingdom Atomic Energy Authority,United Kingdom Atomic Energy Authority
18/06/2012,MATERIALS & SPARES,FUSION,FARNELL ELECTRONIC,5100276155,43.20,United Kingdom Atomic Energy Authority,United Kingdom Atomic Energy Authority
18/06/2012,MATERIALS & SPARES,FUSION,FARNELL ELECTRONIC,5100276318,46.26,United Kingdom Atomic Energy Authority,United Kingdom Atomic Energy Authority
18/06/2012,MATERIALS & SPARES,FUSION,FARNELL ELECTRONIC,5100276321,1.70,United Kingdom Atomic Energy Authority,United Kingdom Atomic Energy Authority
28/05/2012,MATERIALS & SPARES,FUSION,FARNELL ELECTRONIC,5100275474,82.90,United Kingdom Atomic Energy Authority,United Kingdom Atomic Energy Authority
28/05/2012,MATERIALS & SPARES,FUSION,FARNELL ELECTRONIC,5100275475,37.40,United Kingdom Atomic Energy Authority,United Kingdom Atomic Energy Authority
28/05/2012,MATERIALS & SPARES,FUSION,FARNELL ELECTRONIC,5100275476,48.00,United Kingdom Atomic Energy Authority,United Kingdom Atomic Energy Authority
28/05/2012,MATERIALS & SPARES,FUSION,FARNELL ELECTRONIC,5100275477,58.78,United Kingdom Atomic Energy Authority,United Kingdom Atomic Energy Authority
28/05/2012,MATERIALS & SPARES,FUSION,FARNELL ELECTRONIC,5100275478,83.35,United Kingdom Atomic Energy Authority,United Kingdom Atomic Energy Authority
28/05/2012,MATERIALS & SPARES,FUSION,FARNELL ELECTRONIC,5100275530,59.76,United Kingdom Atomic Energy Authority,United Kingdom Atomic Energy Authority
28/05/2012,MATERIALS & SPARES,FUSION,FARNELL ELECTRONIC,5100275536,66.08,United Kingdom Atomic Energy Authority,United Kingdom Atomic Energy Authority
07/06/2012,MATERIALS & SPARES,FUSION,FARNELL ELECTRONIC,5100275732,54.00,United Kingdom Atomic Energy Authority,United Kingdom Atomic Energy Authority
07/06/2012,MATERIALS & SPARES,FUSION,FARNELL ELECTRONIC,5100275733,303.26,United Kingdom Atomic Energy Authority,United Kingdom Atomic Energy Authority
18/06/2012,MATERIALS & SPARES,FUSION,FARNELL ELECTRONIC,5100276152,96.54,United Kingdom Atomic Energy Authority,United Kingdom Atomic Energy Authority
18/06/2012,MATERIALS & SPARES,FUSION,FARNELL ELECTRONIC,5100276153,157.00,United Kingdom Atomic Energy Authority,United Kingdom Atomic Energy Authority
18/06/2012,MATERIALS & SPARES,FUSION,FARNELL ELECTRONIC,5100276154,2.73,United Kingdom Atomic Energy Authority,United Kingdom Atomic Energy Authority
11/06/2012,MATERIALS & SPARES,FUSION,FARNELL ELECTRONIC,5100274394,167.51,United Kingdom Atomic Energy Authority,United Kingdom Atomic Energy Authority
11/06/2012,MATERIALS & SPARES,FUSION,FARNELL ELECTRONIC,5100275527,232.45,United Kingdom Atomic Energy Authority,United Kingdom Atomic Energy Authority
28/05/2012,MATERIALS & SPARES,FUSION,FARNELL ELECTRONIC,5100275506,32.80,United Kingdom Atomic Energy Authority,United Kingdom Atomic Energy Authority
30/05/2012,MATERIALS & SPARES,FUSION,FARNELL ELECTRONIC,5100275524,115.72,United Kingdom Atomic Energy Authority,United Kingdom Atomic Energy Authority
07/06/2012,MATERIALS & SPARES,FUSION,FARNELL ELECTRONIC,5100275715,33.57,United Kingdom Atomic Energy Authority,United Kingdom Atomic Energy Authority
11/06/2012,MATERIALS & SPARES,FUSION,FARNELL ELECTRONIC,5100275878,108.89,United Kingdom Atomic Energy Authority,United Kingdom Atomic Energy Authority
28/05/2012,MATERIALS & SPARES,FUSION,FARNELL ELECTRONIC,5100275447,18.29,United Kingdom Atomic Energy Authority,United Kingdom Atomic Energy Authority
28/05/2012,MATERIALS & SPARES,FUSION,FARNELL ELECTRONIC,5100275448,2.20,United Kingdom Atomic Energy Authority,United Kingdom Atomic Energy Authority
28/05/2012,MATERIALS & SPARES,FUSION,FARNELL ELECTRONIC,5100275449,53.55,United Kingdom Atomic Energy Authority,United Kingdom Atomic Energy Authority
28/05/2012,MATERIALS & SPARES,FUSION,FARNELL ELECTRONIC,5100275450,40.26,United Kingdom Atomic Energy Authority,United Kingdom Atomic Energy Authority
28/05/2012,MATERIALS & SPARES,FUSION,FARNELL ELECTRONIC,5100275451,23.08,United Kingdom Atomic Energy Authority,United Kingdom Atomic Energy Authority
28/05/2012,MATERIALS & SPARES,FUSION,FARNELL ELECTRONIC,5100275466,35.83,United Kingdom Atomic Energy Authority,United Kingdom Atomic Energy Authority
28/05/2012,MATERIALS & SPARES,FUSION,FARNELL ELECTRONIC,5100275507,4.38,United Kingdom Atomic Energy Authority,United Kingdom Atomic Energy Authority
28/05/2012,MATERIALS & SPARES,FUSION,FARNELL ELECTRONIC,5100275508,710.87,United Kingdom Atomic Energy Authority,United Kingdom Atomic Energy Authority
28/05/2012,MATERIALS & SPARES,FUSION,FARNELL ELECTRONIC,5100275509,29.15,United Kingdom Atomic Energy Authority,United Kingdom Atomic Energy Authority
28/05/2012,MATERIALS & SPARES,FUSION,FARNELL ELECTRONIC,5100275510,556.50,United Kingdom Atomic Energy Authority,United Kingdom Atomic Energy Authority
28/05/2012,MATERIALS & SPARES,FUSION,FARNELL ELECTRONIC,5100275592,222.88,United Kingdom Atomic Energy Authority,United Kingdom Atomic Energy Authority
07/06/2012,MATERIALS & SPARES,FUSION,FARNELL ELECTRONIC,5100275723,196.84,United Kingdom Atomic Energy Authority,United Kingdom Atomic Energy Authority
07/06/2012,MATERIALS & SPARES,FUSION,FARNELL ELECTRONIC,5100275724,4.80,United Kingdom Atomic Energy Authority,United Kingdom Atomic Energy Authority
07/06/2012,MATERIALS & SPARES,FUSION,FARNELL ELECTRONIC,5100275725,103.76,United Kingdom Atomic Energy Authority,United Kingdom Atomic Energy Authority
07/06/2012,MATERIALS & SPARES,FUSION,FARNELL ELECTRONIC,5100275726,191.15,United Kingdom Atomic Energy Authority,United Kingdom Atomic Energy Authority
18/06/2012,MATERIALS & SPARES,FUSION,FARNELL ELECTRONIC,5100276104,3.12,United Kingdom Atomic Energy Authority,United Kingdom Atomic Energy Authority
18/06/2012,MATERIALS & SPARES,FUSION,FARNELL ELECTRONIC,5100276105,3.36,United Kingdom Atomic Energy Authority,United Kingdom Atomic Energy Authority
18/06/2012,MATERIALS & SPARES,FUSION,FARNELL ELECTRONIC,5100276109,65.50,United Kingdom Atomic Energy Authority,United Kingdom Atomic Energy Authority
18/06/2012,MATERIALS & SPARES,FUSION,FARNELL ELECTRONIC,5100276118,99.95,United Kingdom Atomic Energy Authority,United Kingdom Atomic Energy Authority
18/06/2012,MATERIALS & SPARES,FUSION,FARNELL ELECTRONIC,5100276119,50.87,United Kingdom Atomic Energy Authority,United Kingdom Atomic Energy Authority
18/06/2012,MATERIALS & SPARES,FUSION,FARNELL ELECTRONIC,5100276314,9.45,United Kingdom Atomic Energy Authority,United Kingdom Atomic Energy Authority
18/06/2012,MATERIALS & SPARES,FUSION,FARNELL ELECTRONIC,5100276315,2.06,United Kingdom Atomic Energy Authority,United Kingdom Atomic Energy Authority
28/05/2012,MATERIALS & SPARES,FUSION,FARNELL ELECTRONIC,5100275540,45.25,United Kingdom Atomic Energy Authority,United Kingdom Atomic Energy Authority
28/05/2012,MATERIALS & SPARES,FUSION,FARNELL ELECTRONIC,5100275334,76.00,United Kingdom Atomic Energy Authority,United Kingdom Atomic Energy Authority
28/05/2012,MATERIALS & SPARES,FUSION,FARNELL ELECTRONIC,5100275336,87.32,United Kingdom Atomic Energy Authority,United Kingdom Atomic Energy Authority
28/05/2012,MATERIALS & SPARES,FUSION,FARNELL ELECTRONIC,5100275446,75.05,United Kingdom Atomic Energy Authority,United Kingdom Atomic Energy Authority
18/06/2012,MATERIALS & SPARES,FUSION,FARNELL ELECTRONIC,5100275504,34.32,United Kingdom Atomic Energy Authority,United Kingdom Atomic Energy Authority
07/06/2012,MATERIALS & SPARES,FUSION,FARNELL ELECTRONIC,5100275513,169.08,United Kingdom Atomic Energy Authority,United Kingdom Atomic Energy Authority
07/06/2012,MATERIALS & SPARES,FUSION,FARNELL ELECTRONIC,5100275538,137.13,United Kingdom Atomic Energy Authority,United Kingdom Atomic Energy Authority
07/06/2012,MATERIALS & SPARES,FUSION,FARNELL ELECTRONIC,5100275599,153.50,United Kingdom Atomic Energy Authority,United Kingdom Atomic Energy Authority
07/06/2012,MATERIALS & SPARES,FUSION,FARNELL ELECTRONIC,5100275727,19.10,United Kingdom Atomic Energy Authority,United Kingdom Atomic Energy Authority
18/06/2012,MATERIALS & SPARES,FUSION,FARNELL ELECTRONIC,5100276096,139.00,United Kingdom Atomic Energy Authority,United Kingdom Atomic Energy Authority
18/06/2012,MATERIALS & SPARES,FUSION,FARNELL ELECTRONIC,5100276121,3.03,United Kingdom Atomic Energy Authority,United Kingdom Atomic Energy Authority
28/05/2012,MATERIALS & SPARES,FUSION,FARNELL ELECTRONIC,5100275467,6.00,United Kingdom Atomic Energy Authority,United Kingdom Atomic Energy Authority
28/05/2012,MATERIALS & SPARES,FUSION,FARNELL ELECTRONIC,5100275469,16.71,United Kingdom Atomic Energy Authority,United Kingdom Atomic Energy Authority
28/05/2012,MATERIALS & SPARES,FUSION,FARNELL ELECTRONIC,5100275512,21.47,United Kingdom Atomic Energy Authority,United Kingdom Atomic Energy Authority
28/05/2012,MATERIALS & SPARES,FUSION,FARNELL ELECTRONIC,5100275593,28.08,United Kingdom Atomic Energy Authority,United Kingdom Atomic Energy Authority
11/06/2012,MATERIALS & SPARES,FUSION,FARNELL ELECTRONIC,5100275867,-31.80,United Kingdom Atomic Energy Authority,United Kingdom Atomic Energy Authority
11/06/2012,MATERIALS & SPARES,FUSION,FARNELL ELECTRONIC,5100275868,31.80,United Kingdom Atomic Energy Authority,United Kingdom Atomic Energy Authority
27/06/2012,MATERIALS & SPARES,FUSION,FARNELL ELECTRONIC,5100276136,8.80,United Kingdom Atomic Energy Authority,United Kingdom Atomic Energy Authority
07/06/2012,MATERIALS & SPARES,FUSION,FARNELL ELECTRONIC,5100275718,79.04,United Kingdom Atomic Energy Authority,United Kingdom Atomic Energy Authority
07/06/2012,MATERIALS & SPARES,FUSION,FARNELL ELECTRONIC,5100275722,44.34,United Kingdom Atomic Energy Authority,United Kingdom Atomic Energy Authority
13/06/2012,MATERIALS & SPARES,FUSION,FARNELL ELECTRONIC,5100275871,16.00,United Kingdom Atomic Energy Authority,United Kingdom Atomic Energy Authority
28/05/2012,MATERIALS & SPARES,FUSION,FARNELL ELECTRONIC,5100275445,19.75,United Kingdom Atomic Energy Authority,United Kingdom Atomic Energy Authority
07/06/2012,PRINTING & GRAPHICS,FUSION,FINGERPRINT LTD,5100275710,320.00,United Kingdom Atomic Energy Authority,United Kingdom Atomic Energy Authority
25/06/2012,PLANT & EQUIPMENT,FUSION,FISHER SCIENTIFIC UK LTD,5100276456,919.80,United Kingdom Atomic Energy Authority,United Kingdom Atomic Energy Authority
28/05/2012,PLANT & EQUIPMENT,FUSION,FISHER SCIENTIFIC UK LTD,5100275591,514.20,United Kingdom Atomic Energy Authority,United Kingdom Atomic Energy Authority
13/06/2012,PLANT & EQUIPMENT,FUSION,FISHER SCIENTIFIC UK LTD,5100275850,810.00,United Kingdom Atomic Energy Authority,United Kingdom Atomic Energy Authority
13/06/2012,PLANT & EQUIPMENT,FUSION,FISHER SCIENTIFIC UK LTD,5100275896,289.42,United Kingdom Atomic Energy Authority,United Kingdom Atomic Energy Authority
20/06/2012,PLANT & EQUIPMENT,FUSION,FISHER SCIENTIFIC UK LTD,5100276330,91.20,United Kingdom Atomic Energy Authority,United Kingdom Atomic Energy Authority
25/06/2012,PLANT & EQUIPMENT,FUSION,FISHER SCIENTIFIC UK LTD,5100276452,672.27,United Kingdom Atomic Energy Authority,United Kingdom Atomic Energy Authority
28/05/2012,MATERIALS & SPARES,FUSION,FLEXIBLE & SPECIALIST CABLES,5100275412,138.90,United Kingdom Atomic Energy Authority,United Kingdom Atomic Energy Authority
11/06/2012,MATERIALS & SPARES,FUSION,FLEXIBLE & SPECIALIST CABLES,5100275845,183.40,United Kingdom Atomic Energy Authority,United Kingdom Atomic Energy Authority
19/06/2012,OTHER EXTERNAL COSTS,FUSION,VISITOR EXPENSES,1900057070,368.00,United Kingdom Atomic Energy Authority,United Kingdom Atomic Energy Authority
25/06/2012,TRAINING COURSE FEES,FUSION,FORGETRACK LTD,5100276526,"1,800.00",United Kingdom Atomic Energy Authority,United Kingdom Atomic Energy Authority
25/06/2012,TRAINING COURSE FEES,FUSION,FORGETRACK LTD,5100276525,"1,800.00",United Kingdom Atomic Energy Authority,United Kingdom Atomic Energy Authority
25/06/2012,MATERIALS & SPARES,FUSION,FORWARD 2000 LTD,5100276474,304.77,United Kingdom Atomic Energy Authority,United Kingdom Atomic Energy Authority
30/05/2012,MATERIALS & SPARES,FUSION,FORWARD 2000 LTD,5100275145,176.78,United Kingdom Atomic Energy Authority,United Kingdom Atomic Energy Authority
30/05/2012,MATERIALS & SPARES,FUSION,FORWARD 2000 LTD,5100275707,-176.78,United Kingdom Atomic Energy Authority,United Kingdom Atomic Energy Authority
28/05/2012,OTHER EXTERNAL COSTS,FUSION,VISITOR EXPENSES,1900056970,639.63,United Kingdom Atomic Energy Authority,United Kingdom Atomic Energy Authority
13/06/2012,PLANT & EQUIPMENT,FUSION,FRANCIS WARD LTD,5100275602,"1,058.64",United Kingdom Atomic Energy Authority,United Kingdom Atomic Energy Authority
26/06/2012,SUBSISTENCE,FUSION,Francois Williaime,1900057114,403.22,United Kingdom Atomic Energy Authority,United Kingdom Atomic Energy Authority
20/06/2012,PROFESSIONAL SERVICES,SUPPORT SERVICES,FREYA CONSULTING,5100275952,"17,125.00",United Kingdom Atomic Energy Authority,United Kingdom Atomic Energy Authority
11/06/2012,STATIONERY,FUSION,FULTON PAPER,5100275815,"2,200.00",United Kingdom Atomic Energy Authority,United Kingdom Atomic Energy Authority
13/06/2012,MATERIALS & SPARES,FUSION,GARLOCK GREAT BRITAIN LTD,5100275851,"4,574.23",United Kingdom Atomic Energy Authority,United Kingdom Atomic Energy Authority
18/06/2012,PLANT SPARES,FUSION,GD RECTIFIERS LTD,5100275959,"4,053.70",United Kingdom Atomic Energy Authority,United Kingdom Atomic Energy Authority
07/06/2012,PROFESSIONAL SERVICES,FUSION,GE SENSING,5100275745,213.00,United Kingdom Atomic Energy Authority,United Kingdom Atomic Energy Authority
28/05/2012,PROFESSIONAL SERVICES,FUSION,GE SENSING,5100275590,962.00,United Kingdom Atomic Energy Authority,United Kingdom Atomic Energy Authority
13/06/2012,MATERIALS & SPARES,SUPPORT SERVICES,GEA HEAT EXCHANGERS,5100274314,450.00,United Kingdom Atomic Energy Authority,United Kingdom Atomic Energy Authority
13/06/2012,MATERIALS & SPARES,SUPPORT SERVICES,GEA HEAT EXCHANGERS,5100275892,450.00,United Kingdom Atomic Energy Authority,United Kingdom Atomic Energy Authority
20/06/2012,MATERIALS & SPARES,SUPPORT SERVICES,GEA HEAT EXCHANGERS,5100276418,"21,510.00",United Kingdom Atomic Energy Authority,United Kingdom Atomic Energy Authority
07/06/2012,HIRED STAFF,FUSION,GENTLE ASSOCIATES LTD,5100275711,"4,178.18",United Kingdom Atomic Energy Authority,United Kingdom Atomic Energy Authority
20/06/2012,SOFTWARE,FUSION,GEODETIC SERVICES INC,5100275750,"1,598.98",United Kingdom Atomic Energy Authority,United Kingdom Atomic Energy Authority
18/06/2012,CONSUMABLES,FUSION,GM BAILEY AIR CONDITIONING,5100275819,922.45,United Kingdom Atomic Energy Authority,United Kingdom Atomic Energy Authority
11/06/2012,CONSUMABLES,FUSION,GM BAILEY AIR CONDITIONING,5100275820,119.48,United Kingdom Atomic Energy Authority,United Kingdom Atomic Energy Authority
29/06/2012,ENTERTAINMENT - STAFF,SUPPORT SERVICES,Go Cart Party Oxfordshire,1900057145,300.00,United Kingdom Atomic Energy Authority,United Kingdom Atomic Energy Authority
20/06/2012,PROFESSIONAL SERVICES,PROPERTY,GRUNDON WASTE MANAGEMENT LTD,5100276185,803.55,United Kingdom Atomic Energy Authority,United Kingdom Atomic Energy Authority
20/06/2012,PROFESSIONAL SERVICES,PROPERTY,GRUNDON WASTE MANAGEMENT LTD,5100276187,202.47,United Kingdom Atomic Energy Authority,United Kingdom Atomic Energy Authority
20/06/2012,PROFESSIONAL SERVICES,PROPERTY,GRUNDON WASTE MANAGEMENT LTD,5100276188,197.82,United Kingdom Atomic Energy Authority,United Kingdom Atomic Energy Authority
20/06/2012,PROFESSIONAL SERVICES,PROPERTY,GRUNDON WASTE MANAGEMENT LTD,5100276189,43.96,United Kingdom Atomic Energy Authority,United Kingdom Atomic Energy Authority
20/06/2012,PROFESSIONAL SERVICES,PROPERTY,GRUNDON WASTE MANAGEMENT LTD,5100276190,43.96,United Kingdom Atomic Energy Authority,United Kingdom Atomic Energy Authority
20/06/2012,PROFESSIONAL SERVICES,PROPERTY,GRUNDON WASTE MANAGEMENT LTD,5100276191,98.91,United Kingdom Atomic Energy Authority,United Kingdom Atomic Energy Authority
20/06/2012,PROFESSIONAL SERVICES,PROPERTY,GRUNDON WASTE MANAGEMENT LTD,5100276184,369.85,United Kingdom Atomic Energy Authority,United Kingdom Atomic Energy Authority
25/06/2012,PROFESSIONAL SERVICES,PROPERTY,GRUNDON WASTE MANAGEMENT LTD,5100276186,680.80,United Kingdom Atomic Energy Authority,United Kingdom Atomic Energy Authority
20/06/2012,PROFESSIONAL SERVICES,PROPERTY,GRUNDON WASTE MANAGEMENT LTD,5100276192,94.65,United Kingdom Atomic Energy Authority,United Kingdom Atomic Energy Authority
11/06/2012,TAXIS,FUSION,HAROLDS CARS,5100275837,843.88,United Kingdom Atomic Energy Authority,United Kingdom Atomic Energy Authority
18/06/2012,OTHER EMPLOYEE EXPENSES,SUPPORT SERVICES,Hays Recruitment,1900057066,"13,000.00",United Kingdom Atomic Energy Authority,United Kingdom Atomic Energy Authority
18/06/2012,PLANT & EQUIPMENT,FUSION,HES SALES UK LTD,5100275963,"3,500.00",United Kingdom Atomic Energy Authority,United Kingdom Atomic Energy Authority
27/06/2012,PLANT & EQUIPMENT,FUSION,HEWDEN,5100276276,620.00,United Kingdom Atomic Energy Authority,United Kingdom Atomic Energy Authority
25/06/2012,PROFESSIONAL SERVICES,SUPPORT SERVICES,HICOM TECHNOLOGY,5100276426,"1,080.00",United Kingdom Atomic Energy Authority,United Kingdom Atomic Energy Authority
28/05/2012,MATERIALS & SPARES,FUSION,HIDEN ANALYTICAL LTD,5100275480,464.75,United Kingdom Atomic Energy Authority,United Kingdom Atomic Energy Authority
25/06/2012,MATERIALS & SPARES,FUSION,HIVOLT CAPACITORS LIMITED,5100276331,"5,640.00",United Kingdom Atomic Energy Authority,United Kingdom Atomic Energy Authority
18/06/2012,PROFESSIONAL SERVICES,FUSION,HONEYWELL ANALYTICS (SALES &SERVICE,5100275989,"5,607.00",United Kingdom Atomic Energy Authority,United Kingdom Atomic Energy Authority
18/06/2012,PROFESSIONAL SERVICES,FUSION,HPC ENGINEERING PLC,5100275982,"4,610.30",United Kingdom Atomic Energy Authority,United Kingdom Atomic Energy Authority
13/06/2012,MATERIALS & SPARES,FUSION,HTMS NV,5100275863,"5,483.15",United Kingdom Atomic Energy Authority,United Kingdom Atomic Energy Authority
18/06/2012,OTHER HIRED STAFF,FUSION,Huxley Associates,1900057063,"18,100.00",United Kingdom Atomic Energy Authority,United Kingdom Atomic Energy Authority
28/05/2012,MATERIALS & SPARES,FUSION,HV WOODING LIMITED,5100274620,787.20,United Kingdom Atomic Energy Authority,United Kingdom Atomic Energy Authority
28/05/2012,MATERIALS & SPARES,FUSION,HV WOODING LIMITED,5100274837,98.40,United Kingdom Atomic Energy Authority,United Kingdom Atomic Energy Authority
28/05/2012,MATERIALS & SPARES,FUSION,HV WOODING LIMITED,5100274970,590.40,United Kingdom Atomic Energy Authority,United Kingdom Atomic Energy Authority
28/05/2012,MATERIALS & SPARES,FUSION,HV WOODING LIMITED,5100275615,-787.20,United Kingdom Atomic Energy Authority,United Kingdom Atomic Energy Authority
28/05/2012,CLEANING,FUSION,HYDROBLAST,5100275484,717.32,United Kingdom Atomic Energy Authority,United Kingdom Atomic Energy Authority
28/05/2012,CLEANING,FUSION,HYDROBLAST,5100275485,"1,176.00",United Kingdom Atomic Energy Authority,United Kingdom Atomic Energy Authority
28/05/2012,CLEANING,FUSION,HYDROBLAST,5100275486,"1,021.00",United Kingdom Atomic Energy Authority,United Kingdom Atomic Energy Authority
28/05/2012,CLEANING,FUSION,HYDROBLAST,5100275487,225.00,United Kingdom Atomic Energy Authority,United Kingdom Atomic Energy Authority
28/05/2012,CLEANING,FUSION,HYDROBLAST,5100275557,970.00,United Kingdom Atomic Energy Authority,United Kingdom Atomic Energy Authority
19/06/2012,OTHER EXTERNAL COSTS,FUSION,EMPLOYEE EXPENSES,1900057074,358.91,United Kingdom Atomic Energy Authority,United Kingdom Atomic Energy Authority
11/06/2012,PROFESSIONAL SERVICES,FUSION,IET SERVICES LIMITED,5100275690,"4,260.00",United Kingdom Atomic Energy Authority,United Kingdom Atomic Energy Authority
07/06/2012,MEDICAL EXPENSES,FUSION,IMASS LTD,5100275588,"4,543.75",United Kingdom Atomic Energy Authority,United Kingdom Atomic Energy Authority
29/06/2012,ENTERTAINMENT - STAFF,SUPPORT SERVICES,Impeyan Productions,1900057142,440.00,United Kingdom Atomic Energy Authority,United Kingdom Atomic Energy Authority
11/06/2012,MATERIALS & SPARES,FUSION,INDUSTRIAL MACHINE SERVICES LTD,5100275662,671.20,United Kingdom Atomic Energy Authority,United Kingdom Atomic Energy Authority
25/06/2012,SITE SUPPORT SERVICES,PROPERTY,INFOCASH LTD,5100276419,100.00,United Kingdom Atomic Energy Authority,United Kingdom Atomic Energy Authority
11/06/2012,MATERIALS & SPARES,FUSION,INFRANOR LIMITED,5100275862,335.83,United Kingdom Atomic Energy Authority,United Kingdom Atomic Energy Authority
07/06/2012,TRAINING COURSE FEES,SUPPORT SERVICES,INSTITUTE OF MECHANICAL ENGINEERS,5100275738,265.00,United Kingdom Atomic Energy Authority,United Kingdom Atomic Energy Authority
28/06/2012,INTERVIEW EXPENSES,SUPPORT SERVICES,INTERVIEW EXPENSES,1900057139,91.50,United Kingdom Atomic Energy Authority,United Kingdom Atomic Energy Authority
01/06/2012,INTERVIEW EXPENSES,FUSION,INTERVIEW EXPENSES,1900056999,36.00,United Kingdom Atomic Energy Authority,United Kingdom Atomic Energy Authority
18/06/2012,INTERVIEW EXPENSES,FUSION,INTERVIEW EXPENSES,1900057064,162.00,United Kingdom Atomic Energy Authority,United Kingdom Atomic Energy Authority
26/06/2012,INTERVIEW EXPENSES,FUSION,INTERVIEW EXPENSES,1900057115,165.60,United Kingdom Atomic Energy Authority,United Kingdom Atomic Energy Authority
26/06/2012,INTERVIEW EXPENSES,FUSION,INTERVIEW EXPENSES,1900057116,154.88,United Kingdom Atomic Energy Authority,United Kingdom Atomic Energy Authority
26/06/2012,INTERVIEW EXPENSES,FUSION,INTERVIEW EXPENSES,1900057117,50.80,United Kingdom Atomic Energy Authority,United Kingdom Atomic Energy Authority
26/06/2012,INTERVIEW EXPENSES,FUSION,INTERVIEW EXPENSES,1900057118,618.78,United Kingdom Atomic Energy Authority,United Kingdom Atomic Energy Authority
07/06/2012,PUBLICATIONS,FUSION,IOP PUBLISHING LTD,5100275821,937.50,United Kingdom Atomic Energy Authority,United Kingdom Atomic Energy Authority
18/06/2012,MATERIALS & SPARES,FUSION,ISIS FLUID CONTROL LIMITED,5100275956,"4,162.40",United Kingdom Atomic Energy Authority,United Kingdom Atomic Energy Authority
25/06/2012,PLANT & EQUIPMENT,FUSION,ISO-ANALYTICAL LIMITED,5100276278,"5,644.00",United Kingdom Atomic Energy Authority,United Kingdom Atomic Energy Authority
28/05/2012,FACILITIES MANAGEMENT,FUSION,ISS FACILITIES SERVICES,5100274839,156.35,United Kingdom Atomic Energy Authority,United Kingdom Atomic Energy Authority
25/06/2012,FACILITIES MANAGEMENT,FUSION,ISS FACILITIES SERVICES,5100275848,156.35,United Kingdom Atomic Energy Authority,United Kingdom Atomic Energy Authority
13/06/2012,PLANT & EQUIPMENT,FUSION,J & J PNEUMATICS LTD,5100275843,698.08,United Kingdom Atomic Energy Authority,United Kingdom Atomic Energy Authority
28/05/2012,MATERIALS & SPARES,FUSION,JAC TOOLS LTD,5100275432,42.66,United Kingdom Atomic Energy Authority,United Kingdom Atomic Energy Authority
25/06/2012,MATERIALS & SPARES,FUSION,JAC TOOLS LTD,5100276425,42.66,United Kingdom Atomic Energy Authority,United Kingdom Atomic Energy Authority
27/06/2012,TAXIS,FUSION,Jan Mlynar,1900057125,10.90,United Kingdom Atomic Energy Authority,United Kingdom Atomic Energy Authority
27/06/2012,PRINTING & GRAPHICS,FUSION,JESSOPS,5100276326,137.93,United Kingdom Atomic Energy Authority,United Kingdom Atomic Energy Authority
13/06/2012,PLANT & EQUIPMENT,FUSION,JOHNSON MATTHEY PLC,5100275790,568.31,United Kingdom Atomic Energy Authority,United Kingdom Atomic Energy Authority
28/05/2012,PLANT & EQUIPMENT,FUSION,KAISER & KRAFT LTD,5100275347,"1,552.00",United Kingdom Atomic Energy Authority,United Kingdom Atomic Energy Authority
13/06/2012,PROFESSIONAL SERVICES,PROPERTY,KEMP & KEMP,5100276177,"2,677.00",United Kingdom Atomic Energy Authority,United Kingdom Atomic Energy Authority
18/06/2012,PROFESSIONAL SERVICES,PROPERTY,KEMP & KEMP,5100276178,"3,030.25",United Kingdom Atomic Energy Authority,United Kingdom Atomic Energy Authority
18/06/2012,PROFESSIONAL SERVICES,PROPERTY,KEMP & KEMP,5100276193,"2,495.00",United Kingdom Atomic Energy Authority,United Kingdom Atomic Energy Authority
30/05/2012,LEGAL FEES,SUPPORT SERVICES,KEOGHS,5100275656,80.00,United Kingdom Atomic Energy Authority,United Kingdom Atomic Energy Authority
30/05/2012,LEGAL FEES,SUPPORT SERVICES,KEOGHS,5100275657,400.00,United Kingdom Atomic Energy Authority,United Kingdom Atomic Energy Authority
07/06/2012,LEGAL FEES,SUPPORT SERVICES,KEOGHS,5100275784,64.00,United Kingdom Atomic Energy Authority,United Kingdom Atomic Energy Authority
07/06/2012,LEGAL FEES,SUPPORT SERVICES,KEOGHS,5100275823,224.00,United Kingdom Atomic Energy Authority,United Kingdom Atomic Energy Authority
18/06/2012,LEGAL FEES,SUPPORT SERVICES,KEOGHS,5100276005,416.00,United Kingdom Atomic Energy Authority,United Kingdom Atomic Energy Authority
18/06/2012,LEGAL FEES,SUPPORT SERVICES,KEOGHS,5100276007,928.00,United Kingdom Atomic Energy Authority,United Kingdom Atomic Energy Authority
18/06/2012,LEGAL FEES,SUPPORT SERVICES,KEOGHS,5100276008,416.00,United Kingdom Atomic Energy Authority,United Kingdom Atomic Energy Authority
13/06/2012,MATERIALS & SPARES,FUSION,KEY INDUSTRIAL EQUIPMENT LTD,5100276132,879.97,United Kingdom Atomic Energy Authority,United Kingdom Atomic Energy Authority
13/06/2012,MATERIALS & SPARES,FUSION,KEY INDUSTRIAL EQUIPMENT LTD,5100276133,-465.00,United Kingdom Atomic Energy Authority,United Kingdom Atomic Energy Authority
11/06/2012,MATERIALS & SPARES,FUSION,KEY INDUSTRIAL EQUIPMENT LTD,5100275838,138.00,United Kingdom Atomic Energy Authority,United Kingdom Atomic Energy Authority
25/06/2012,MATERIALS & SPARES,FUSION,KEY INDUSTRIAL EQUIPMENT LTD,5100276421,59.80,United Kingdom Atomic Energy Authority,United Kingdom Atomic Energy Authority
27/06/2012,MATERIALS & SPARES,FUSION,KEY INDUSTRIAL EQUIPMENT LTD,5100276530,132.00,United Kingdom Atomic Energy Authority,United Kingdom Atomic Energy Authority
11/06/2012,PROFESSIONAL SERVICES,PROPERTY,KITSONS ENVIRONMENTAL EUROPE LTD,5100275914,"243,496.43",United Kingdom Atomic Energy Authority,United Kingdom Atomic Energy Authority
07/06/2012,PLANT SPARES,FUSION,KNIGHT OPTICAL UK LTD,5100275739,137.67,United Kingdom Atomic Energy Authority,United Kingdom Atomic Energy Authority
28/05/2012,BUILDING REPAIRS,PROPERTY,KNOWLES & SONS (OXFORD) LTD,5100275586,241.69,United Kingdom Atomic Energy Authority,United Kingdom Atomic Energy Authority
25/06/2012,BUILDING REPAIRS,PROPERTY,KNOWLES & SONS (OXFORD) LTD,5100275842,"23,813.87",United Kingdom Atomic Energy Authority,United Kingdom Atomic Energy Authority
25/06/2012,BUILDING REPAIRS,PROPERTY,KNOWLES & SONS (OXFORD) LTD,5100276461,-347.51,United Kingdom Atomic Energy Authority,United Kingdom Atomic Energy Authority
25/06/2012,BUILDING REPAIRS,PROPERTY,KNOWLES & SONS (OXFORD) LTD,5100276463,-646.64,United Kingdom Atomic Energy Authority,United Kingdom Atomic Energy Authority
28/05/2012,BUILDING REPAIRS,PROPERTY,KNOWLES & SONS (OXFORD) LTD,5100275119,"5,464.82",United Kingdom Atomic Energy Authority,United Kingdom Atomic Energy Authority
27/06/2012,MATERIALS & SPARES,FUSION,KURT J LESKER,5100275196,188.50,United Kingdom Atomic Energy Authority,United Kingdom Atomic Energy Authority
28/05/2012,MATERIALS & SPARES,FUSION,KURT J LESKER,5100275436,666.52,United Kingdom Atomic Energy Authority,United Kingdom Atomic Energy Authority
30/05/2012,MATERIALS & SPARES,FUSION,KURT J LESKER,5100275660,32.50,United Kingdom Atomic Energy Authority,United Kingdom Atomic Energy Authority
28/05/2012,MATERIALS & SPARES,FUSION,KURT J LESKER,5100275413,287.00,United Kingdom Atomic Energy Authority,United Kingdom Atomic Energy Authority
07/06/2012,MATERIALS & SPARES,FUSION,KURT J LESKER,5100275589,201.50,United Kingdom Atomic Energy Authority,United Kingdom Atomic Energy Authority
25/06/2012,MATERIALS & SPARES,FUSION,KURT J LESKER,5100276328,153.50,United Kingdom Atomic Energy Authority,United Kingdom Atomic Energy Authority
25/06/2012,MATERIALS & SPARES,FUSION,KURT J LESKER,5100276464,-28.00,United Kingdom Atomic Energy Authority,United Kingdom Atomic Energy Authority
25/06/2012,MATERIALS & SPARES,FUSION,KURT J LESKER,5100276528,74.30,United Kingdom Atomic Energy Authority,United Kingdom Atomic Energy Authority
31/05/2012,,SUPPORT SERVICES,Lamb Brooks Solicitors,1900056995,"6,000.00",United Kingdom Atomic Energy Authority,United Kingdom Atomic Energy Authority
13/06/2012,CAR HIRE,SUPPORT SERVICES,LEASE PLAN UK LTD,5100276181,-464.50,United Kingdom Atomic Energy Authority,United Kingdom Atomic Energy Authority
13/06/2012,CAR HIRE,SUPPORT SERVICES,LEASE PLAN UK LTD,5100276182,464.50,United Kingdom Atomic Energy Authority,United Kingdom Atomic Energy Authority
25/06/2012,CAR HIRE,FUSION,LEASEDRIVE VELO,5100276495,113.24,United Kingdom Atomic Energy Authority,United Kingdom Atomic Energy Authority
07/06/2012,CAR HIRE,FUSION,LEASEDRIVE VELO,5100275792,83.12,United Kingdom Atomic Energy Authority,United Kingdom Atomic Energy Authority
18/06/2012,CAR HIRE,FUSION,LEASEDRIVE VELO,5100275996,36.44,United Kingdom Atomic Energy Authority,United Kingdom Atomic Energy Authority
18/06/2012,CAR HIRE,FUSION,LEASEDRIVE VELO,5100276004,37.03,United Kingdom Atomic Energy Authority,United Kingdom Atomic Energy Authority
18/06/2012,CAR HIRE,FUSION,LEASEDRIVE VELO,5100276274,72.88,United Kingdom Atomic Energy Authority,United Kingdom Atomic Energy Authority
07/06/2012,CAR HIRE,FUSION,LEASEDRIVE VELO,5100275709,36.44,United Kingdom Atomic Energy Authority,United Kingdom Atomic Energy Authority
07/06/2012,CAR HIRE,FUSION,LEASEDRIVE VELO,5100275817,72.88,United Kingdom Atomic Energy Authority,United Kingdom Atomic Energy Authority
18/06/2012,CAR HIRE,FUSION,LEASEDRIVE VELO,5100275991,72.88,United Kingdom Atomic Energy Authority,United Kingdom Atomic Energy Authority
18/06/2012,CAR HIRE,FUSION,LEASEDRIVE VELO,5100275993,23.56,United Kingdom Atomic Energy Authority,United Kingdom Atomic Energy Authority
18/06/2012,CAR HIRE,FUSION,LEASEDRIVE VELO,5100275999,63.92,United Kingdom Atomic Energy Authority,United Kingdom Atomic Energy Authority
18/06/2012,CAR HIRE,FUSION,LEASEDRIVE VELO,5100276270,69.42,United Kingdom Atomic Energy Authority,United Kingdom Atomic Energy Authority
18/06/2012,CAR HIRE,FUSION,LEASEDRIVE VELO,5100276271,72.88,United Kingdom Atomic Energy Authority,United Kingdom Atomic Energy Authority
25/06/2012,CAR HIRE,FUSION,LEASEDRIVE VELO,5100276527,28.61,United Kingdom Atomic Energy Authority,United Kingdom Atomic Energy Authority
28/05/2012,CAR HIRE,FUSION,LEASEDRIVE VELO,5100275483,36.44,United Kingdom Atomic Energy Authority,United Kingdom Atomic Energy Authority
20/06/2012,CAR HIRE,FUSION,LEASEDRIVE VELO,5100276275,72.88,United Kingdom Atomic Energy Authority,United Kingdom Atomic Energy Authority
27/06/2012,CAR HIRE,FUSION,LEASEDRIVE VELO,5100276496,141.72,United Kingdom Atomic Energy Authority,United Kingdom Atomic Energy Authority
18/06/2012,CAR HIRE,FUSION,LEASEDRIVE VELO,5100275997,36.44,United Kingdom Atomic Energy Authority,United Kingdom Atomic Energy Authority
07/06/2012,PLANT SPARES,FUSION,LEWVAC LLP,5100275785,237.00,United Kingdom Atomic Energy Authority,United Kingdom Atomic Energy Authority
13/06/2012,BOOKS & PUBLICATIONS,SUPPORT SERVICES,LEXIS NEXIS BUTTERWORTHS,5100275895,426.45,United Kingdom Atomic Energy Authority,United Kingdom Atomic Energy Authority
25/06/2012,SOFTWARE,PROPERTY,LIFTSHARE.COM,5100276468,"3,038.77",United Kingdom Atomic Energy Authority,United Kingdom Atomic Energy Authority
13/06/2012,PROFESSIONAL SERVICES,SUPPORT SERVICES,LOGICA CMG UK LTD,5100275317,"9,962.81",United Kingdom Atomic Energy Authority,United Kingdom Atomic Energy Authority
11/06/2012,PROFESSIONAL SERVICES,SUPPORT SERVICES,LOGICA CMG UK LTD,5100275561,"2,635.60",United Kingdom Atomic Energy Authority,United Kingdom Atomic Energy Authority
11/06/2012,PROFESSIONAL SERVICES,SUPPORT SERVICES,LOGICA CMG UK LTD,5100275824,"2,584.59",United Kingdom Atomic Energy Authority,United Kingdom Atomic Energy Authority
28/05/2012,OTHER EXTERNAL COSTS,FUSION,EMPLOYEE EXPENSES,1900056969,100.03,United Kingdom Atomic Energy Authority,United Kingdom Atomic Energy Authority
19/06/2012,OTHER EXTERNAL COSTS,FUSION,EMPLOYEE EXPENSES,1900057071,66.70,United Kingdom Atomic Energy Authority,United Kingdom Atomic Energy Authority
25/06/2012,BUILDING REPAIRS,FUSION,LORNE STEWART PLC,5100276167,"6,360.75",United Kingdom Atomic Energy Authority,United Kingdom Atomic Energy Authority
25/06/2012,BUILDING REPAIRS,FUSION,LORNE STEWART PLC,5100276161,"19,426.93",United Kingdom Atomic Energy Authority,United Kingdom Atomic Energy Authority
25/06/2012,BUILDING REPAIRS,FUSION,LORNE STEWART PLC,5100276168,"1,411.73",United Kingdom Atomic Energy Authority,United Kingdom Atomic Energy Authority
25/06/2012,BUILDING REPAIRS,FUSION,LORNE STEWART PLC,5100276173,"18,991.90",United Kingdom Atomic Energy Authority,United Kingdom Atomic Energy Authority
25/06/2012,BUILDING REPAIRS,FUSION,LORNE STEWART PLC,5100276169,24.60,United Kingdom Atomic Energy Authority,United Kingdom Atomic Energy Authority
25/06/2012,BUILDING REPAIRS,FUSION,LORNE STEWART PLC,5100276170,214.10,United Kingdom Atomic Energy Authority,United Kingdom Atomic Energy Authority
25/06/2012,BUILDING REPAIRS,PROPERTY,LORNE STEWART PLC,5100276162,"24,707.71",United Kingdom Atomic Energy Authority,United Kingdom Atomic Energy Authority
25/06/2012,BUILDING REPAIRS,PROPERTY,LORNE STEWART PLC,5100276175,"13,474.42",United Kingdom Atomic Energy Authority,United Kingdom Atomic Energy Authority
25/06/2012,BUILDING REPAIRS,PROPERTY,LORNE STEWART PLC,5100276163,"1,142.24",United Kingdom Atomic Energy Authority,United Kingdom Atomic Energy Authority
25/06/2012,BUILDING REPAIRS,PROPERTY,LORNE STEWART PLC,5100276174,"3,536.69",United Kingdom Atomic Energy Authority,United Kingdom Atomic Energy Authority
25/06/2012,BUILDING REPAIRS,PROPERTY,LORNE STEWART PLC,5100276165,282.08,United Kingdom Atomic Energy Authority,United Kingdom Atomic Energy Authority
25/06/2012,BUILDING REPAIRS,PROPERTY,LORNE STEWART PLC,5100276166,401.07,United Kingdom Atomic Energy Authority,United Kingdom Atomic Energy Authority
25/06/2012,BUILDING REPAIRS,PROPERTY,LORNE STEWART PLC,5100276172,579.36,United Kingdom Atomic Energy Authority,United Kingdom Atomic Energy Authority
25/06/2012,BUILDING REPAIRS,SUPPORT SERVICES,LORNE STEWART PLC,5100276164,164.48,United Kingdom Atomic Energy Authority,United Kingdom Atomic Energy Authority
25/06/2012,BUILDING REPAIRS,SUPPORT SERVICES,LORNE STEWART PLC,5100276171,"3,994.21",United Kingdom Atomic Energy Authority,United Kingdom Atomic Energy Authority
11/06/2012,PLANT & EQUIPMENT,FUSION,LSW SUPPLIES,5100275897,109.50,United Kingdom Atomic Energy Authority,United Kingdom Atomic Energy Authority
07/06/2012,STATIONERY,SUPPORT SERVICES,LYRECO UK LIMITED,5100275748,21.99,United Kingdom Atomic Energy Authority,United Kingdom Atomic Energy Authority
28/05/2012,STATIONERY,SUPPORT SERVICES,LYRECO UK LIMITED,5100275554,74.33,United Kingdom Atomic Energy Authority,United Kingdom Atomic Energy Authority
25/06/2012,STATIONERY,SUPPORT SERVICES,LYRECO UK LIMITED,5100276467,328.69,United Kingdom Atomic Energy Authority,United Kingdom Atomic Energy Authority
07/06/2012,STATIONERY,FUSION,LYRECO UK LIMITED,5100275793,45.30,United Kingdom Atomic Energy Authority,United Kingdom Atomic Energy Authority
28/05/2012,STATIONERY,FUSION,LYRECO UK LIMITED,5100275549,57.84,United Kingdom Atomic Energy Authority,United Kingdom Atomic Energy Authority
28/05/2012,STATIONERY,FUSION,LYRECO UK LIMITED,5100275551,82.95,United Kingdom Atomic Energy Authority,United Kingdom Atomic Energy Authority
28/05/2012,STATIONERY,FUSION,LYRECO UK LIMITED,5100275553,407.94,United Kingdom Atomic Energy Authority,United Kingdom Atomic Energy Authority
07/06/2012,STATIONERY,FUSION,LYRECO UK LIMITED,5100275746,634.00,United Kingdom Atomic Energy Authority,United Kingdom Atomic Energy Authority
07/06/2012,STATIONERY,FUSION,LYRECO UK LIMITED,5100275747,75.49,United Kingdom Atomic Energy Authority,United Kingdom Atomic Energy Authority
18/06/2012,STATIONERY,FUSION,LYRECO UK LIMITED,5100275973,267.95,United Kingdom Atomic Energy Authority,United Kingdom Atomic Energy Authority
18/06/2012,STATIONERY,FUSION,LYRECO UK LIMITED,5100275977,313.15,United Kingdom Atomic Energy Authority,United Kingdom Atomic Energy Authority
18/06/2012,STATIONERY,FUSION,LYRECO UK LIMITED,5100275978,755.24,United Kingdom Atomic Energy Authority,United Kingdom Atomic Energy Authority
25/06/2012,STATIONERY,FUSION,LYRECO UK LIMITED,5100276465,314.06,United Kingdom Atomic Energy Authority,United Kingdom Atomic Energy Authority
25/06/2012,STATIONERY,FUSION,LYRECO UK LIMITED,5100276466,301.15,United Kingdom Atomic Energy Authority,United Kingdom Atomic Energy Authority
28/05/2012,PROFESSIONAL SERVICES,FUSION,M&D ELECTRONICS LTD,5100275500,135.00,United Kingdom Atomic Energy Authority,United Kingdom Atomic Energy Authority
07/06/2012,PROFESSIONAL SERVICES,FUSION,M&D ELECTRONICS LTD,5100275751,75.00,United Kingdom Atomic Energy Authority,United Kingdom Atomic Energy Authority
13/06/2012,RENT OF VEHICLE & EQUIPMENT,FUSION,M.J.C SERVICES,5100274860,346.66,United Kingdom Atomic Energy Authority,United Kingdom Atomic Energy Authority
11/06/2012,RENT OF VEHICLE & EQUIPMENT,FUSION,M.J.C SERVICES,5100275885,346.66,United Kingdom Atomic Energy Authority,United Kingdom Atomic Energy Authority
18/06/2012,IT EQUIPMENT NON CAPITAL,SUPPORT SERVICES,MAAINTECH,5100276284,"1,573.00",United Kingdom Atomic Energy Authority,United Kingdom Atomic Energy Authority
07/06/2012,IT EQUIPMENT NON CAPITAL,FUSION,MAAINTECH,5100275735,"4,364.00",United Kingdom Atomic Energy Authority,United Kingdom Atomic Energy Authority
22/06/2012,BUSINESS ENTERTAINMENT,FUSION,Macdonalds Randolph Hotel,1900057107,"1,220.35",United Kingdom Atomic Energy Authority,United Kingdom Atomic Energy Authority
25/06/2012,MATERIALS & SPARES,FUSION,MAPLIN ELECTRONICS LTD,5100276390,80.78,United Kingdom Atomic Energy Authority,United Kingdom Atomic Energy Authority
29/05/2012,STUDENT SPONSORSHIPS,FUSION,Marie Allouard,1900056973,600.00,United Kingdom Atomic Energy Authority,United Kingdom Atomic Energy Authority
29/05/2012,STUDENT SPONSORSHIPS,FUSION,Marion Fouchere,1900056975,600.00,United Kingdom Atomic Energy Authority,United Kingdom Atomic Energy Authority
28/05/2012,MATERIALS & SPARES,FUSION,MARK 5,5100275515,26.50,United Kingdom Atomic Energy Authority,United Kingdom Atomic Energy Authority
11/06/2012,INSURANCE,SUPPORT SERVICES,MARSH UK LIMITED,5100275917,"8,750.00",United Kingdom Atomic Energy Authority,United Kingdom Atomic Energy Authority
25/06/2012,INSURANCE,SUPPORT SERVICES,MARSH UK LIMITED,5100276560,"8,750.00",United Kingdom Atomic Energy Authority,United Kingdom Atomic Energy Authority
11/06/2012,PROFESSIONAL SERVICES,FUSION,MATERIAL MEASUREMENTS LTD.,5100275636,98.27,United Kingdom Atomic Energy Authority,United Kingdom Atomic Energy Authority
11/06/2012,PROFESSIONAL SERVICES,FUSION,MATERIAL MEASUREMENTS LTD.,5100275637,104.31,United Kingdom Atomic Energy Authority,United Kingdom Atomic Energy Authority
18/06/2012,PROFESSIONAL SERVICES,FUSION,MATERIAL MEASUREMENTS LTD.,5100275889,848.00,United Kingdom Atomic Energy Authority,United Kingdom Atomic Energy Authority
30/05/2012,MATERIALS & SPARES,FUSION,MATERION PRECISION OPTICS AND,5100275024,"3,834.99",United Kingdom Atomic Energy Authority,United Kingdom Atomic Energy Authority
07/06/2012,MATERIALS & SPARES,FUSION,MECHANICAL CLEANSING SERVICES LIMITED,5100275522,"14,700.00",United Kingdom Atomic Energy Authority,United Kingdom Atomic Energy Authority
18/06/2012,MATERIALS & SPARES,FUSION,MECHANICAL CLEANSING SERVICES LIMITED,5100276160,338.79,United Kingdom Atomic Energy Authority,United Kingdom Atomic Energy Authority
13/06/2012,IT EQUIPMENT NON CAPITAL,FUSION,MEDIA RESOURCES,5100275965,"7,000.00",United Kingdom Atomic Energy Authority,United Kingdom Atomic Energy Authority
13/06/2012,INSURANCE,SUPPORT SERVICES,Mellerups (General Insurances) Ltd,1900057054,151.31,United Kingdom Atomic Energy Authority,United Kingdom Atomic Energy Authority
25/06/2012,TRAINING COURSE FEES,SUPPORT SERVICES,MENTOR FLT TRAINING LTD,5100276408,189.00,United Kingdom Atomic Energy Authority,United Kingdom Atomic Energy Authority
07/06/2012,MATERIALS & SPARES,FUSION,METALFAST (A DIVISION OF,5100275818,64.00,United Kingdom Atomic Energy Authority,United Kingdom Atomic Energy Authority
25/06/2012,MATERIALS & SPARES,FUSION,METALFAST (A DIVISION OF,5100276368,87.60,United Kingdom Atomic Energy Authority,United Kingdom Atomic Energy Authority
18/06/2012,PROFESSIONAL SERVICES,FUSION,METRO ENGINEERING AND PLATING WORKS,5100276203,200.00,United Kingdom Atomic Energy Authority,United Kingdom Atomic Energy Authority
18/06/2012,PLANT & EQUIPMENT,FUSION,MILLHILL TOOLS LTD,5100276091,69.84,United Kingdom Atomic Energy Authority,United Kingdom Atomic Energy Authority
18/06/2012,PLANT & EQUIPMENT,FUSION,MILLHILL TOOLS LTD,5100276093,137.29,United Kingdom Atomic Energy Authority,United Kingdom Atomic Energy Authority
18/06/2012,PLANT & EQUIPMENT,FUSION,MILLHILL TOOLS LTD,5100276094,61.74,United Kingdom Atomic Energy Authority,United Kingdom Atomic Energy Authority
27/06/2012,REPAIRS & MAINTENANCE,FUSION,MIMER INFORMATION TECHNOLOGY AB,5100276122,"4,264.00",United Kingdom Atomic Energy Authority,United Kingdom Atomic Energy Authority
28/05/2012,MATERIALS & SPARES,FUSION,MINI-CIRCUITS EUROPE,5100275514,534.40,United Kingdom Atomic Energy Authority,United Kingdom Atomic Energy Authority
13/06/2012,MATERIALS & SPARES,FUSION,MINI-CIRCUITS EUROPE,5100276016,90.98,United Kingdom Atomic Energy Authority,United Kingdom Atomic Energy Authority
18/06/2012,MATERIALS & SPARES,FUSION,MINI-CIRCUITS EUROPE,5100276115,168.51,United Kingdom Atomic Energy Authority,United Kingdom Atomic Energy Authority
18/06/2012,LEGAL FEES,PROPERTY,MORGAN COLE,5100276060,991.00,United Kingdom Atomic Energy Authority,United Kingdom Atomic Energy Authority
18/06/2012,LEGAL FEES,PROPERTY,MORGAN COLE,5100276056,994.00,United Kingdom Atomic Energy Authority,United Kingdom Atomic Energy Authority
18/06/2012,LEGAL FEES,PROPERTY,MORGAN COLE,5100276058,"1,250.00",United Kingdom Atomic Energy Authority,United Kingdom Atomic Energy Authority
18/06/2012,LEGAL FEES,PROPERTY,MORGAN COLE,5100276061,800.00,United Kingdom Atomic Energy Authority,United Kingdom Atomic Energy Authority
18/06/2012,HIRED STAFF,FUSION,MORSON INTERNATIONAL,5100275954,"3,472.38",United Kingdom Atomic Energy Authority,United Kingdom Atomic Energy Authority
13/06/2012,HIRED STAFF,FUSION,MORSON INTERNATIONAL,5100276047,"260,168.33",United Kingdom Atomic Energy Authority,United Kingdom Atomic Energy Authority
25/06/2012,STATIONERY,FUSION,MPS SERVICES LTD,5100276339,926.00,United Kingdom Atomic Energy Authority,United Kingdom Atomic Energy Authority
07/06/2012,ELECTRICITY,FUSION,NATIONAL GRID TRANSCO,5100275703,"3,412.84",United Kingdom Atomic Energy Authority,United Kingdom Atomic Energy Authority
30/05/2012,ELECTRICITY,FUSION,NATIONAL GRID TRANSCO,5100275658,"3,620.41",United Kingdom Atomic Energy Authority,United Kingdom Atomic Energy Authority
28/05/2012,PLANT & EQUIPMENT,FUSION,NATIONAL INSTRUMENTS LTD,5100275548,"1,621.69",United Kingdom Atomic Energy Authority,United Kingdom Atomic Energy Authority
18/06/2012,PROFESSIONAL SERVICES,FUSION,NDA,5100275813,"2,000.00",United Kingdom Atomic Energy Authority,United Kingdom Atomic Energy Authority
07/06/2012,PLANT & EQUIPMENT,FUSION,NEW PIG LTD,5100274664,837.50,United Kingdom Atomic Energy Authority,United Kingdom Atomic Energy Authority
25/06/2012,PLANT & EQUIPMENT,FUSION,NEW PIG LTD,5100276424,195.17,United Kingdom Atomic Energy Authority,United Kingdom Atomic Energy Authority
25/06/2012,MATERIALS & SPARES,FUSION,NEWBURY ELECTRONICS,5100276423,236.20,United Kingdom Atomic Energy Authority,United Kingdom Atomic Energy Authority
25/06/2012,MATERIALS & SPARES,FUSION,NEWBURY ELECTRONICS,5100276422,337.44,United Kingdom Atomic Energy Authority,United Kingdom Atomic Energy Authority
30/05/2012,MATERIALS & SPARES,FUSION,NEWBURY ELECTRONICS,5100275585,69.54,United Kingdom Atomic Energy Authority,United Kingdom Atomic Energy Authority
31/05/2012,OTHER EXTERNAL COSTS,FUSION,VISITOR EXPENSES,1900056989,173.94,United Kingdom Atomic Energy Authority,United Kingdom Atomic Energy Authority
18/06/2012,PROFESSIONAL SERVICES,PROPERTY,NOVUS ENVIRONMENTAL,5100275953,18.50,United Kingdom Atomic Energy Authority,United Kingdom Atomic Energy Authority
11/06/2012,PROFESSIONAL SERVICES,PROPERTY,NSR MANAGEMENT,5100275872,"3,450.00",United Kingdom Atomic Energy Authority,United Kingdom Atomic Energy Authority
30/05/2012,PROFESSIONAL SERVICES,SUPPORT SERVICES,NUCLEAR MANAGEMENT CONSULTANCE LTD,5100274897,800.00,United Kingdom Atomic Energy Authority,United Kingdom Atomic Energy Authority
11/06/2012,HEALTH PHYSICS,FUSION,NUVIA LIMITED,5100275846,"22,133.28",United Kingdom Atomic Energy Authority,United Kingdom Atomic Energy Authority
27/06/2012,CLEANING,FUSION,OCS CLEANING & SUPPORT SERVICES,5100274898,180.00,United Kingdom Atomic Energy Authority,United Kingdom Atomic Energy Authority
27/06/2012,CLEANING,FUSION,OCS CLEANING & SUPPORT SERVICES,5100274899,"2,802.24",United Kingdom Atomic Energy Authority,United Kingdom Atomic Energy Authority
07/06/2012,CLEANING,FUSION,OCS CLEANING & SUPPORT SERVICES,5100275795,"2,422.77",United Kingdom Atomic Energy Authority,United Kingdom Atomic Energy Authority
25/06/2012,CLEANING,FUSION,OCS CLEANING & SUPPORT SERVICES,5100276434,"2,802.24",United Kingdom Atomic Energy Authority,United Kingdom Atomic Energy Authority
28/05/2012,CLEANING,FUSION,OCS CLEANING & SUPPORT SERVICES,5100275406,9.08,United Kingdom Atomic Energy Authority,United Kingdom Atomic Energy Authority
25/06/2012,CLEANING,FUSION,OCS CLEANING & SUPPORT SERVICES,5100276435,9.08,United Kingdom Atomic Energy Authority,United Kingdom Atomic Energy Authority
28/05/2012,CLEANING,FUSION,OCS CLEANING & SUPPORT SERVICES,5100275405,9.52,United Kingdom Atomic Energy Authority,United Kingdom Atomic Energy Authority
25/06/2012,CLEANING,FUSION,OCS CLEANING & SUPPORT SERVICES,5100276436,9.52,United Kingdom Atomic Energy Authority,United Kingdom Atomic Energy Authority
28/05/2012,CLEANING,FUSION,OCS CLEANING & SUPPORT SERVICES,5100275408,616.54,United Kingdom Atomic Energy Authority,United Kingdom Atomic Energy Authority
28/05/2012,CLEANING,PROPERTY,OCS CLEANING & SUPPORT SERVICES,5100275407,"27,785.25",United Kingdom Atomic Energy Authority,United Kingdom Atomic Energy Authority
28/05/2012,CLEANING,PROPERTY,OCS CLEANING & SUPPORT SERVICES,5100275640,780.00,United Kingdom Atomic Energy Authority,United Kingdom Atomic Energy Authority
25/06/2012,CLEANING,PROPERTY,OCS CLEANING & SUPPORT SERVICES,5100276469,"1,658.29",United Kingdom Atomic Energy Authority,United Kingdom Atomic Energy Authority
07/06/2012,MATERIALS & SPARES,FUSION,OERLIKON LEYBOLD VACUUM UK LTD,5100275205,764.64,United Kingdom Atomic Energy Authority,United Kingdom Atomic Energy Authority
07/06/2012,MATERIALS & SPARES,FUSION,OERLIKON LEYBOLD VACUUM UK LTD,5100275206,"3,564.09",United Kingdom Atomic Energy Authority,United Kingdom Atomic Energy Authority
07/06/2012,MATERIALS & SPARES,FUSION,OERLIKON LEYBOLD VACUUM UK LTD,5100275207,780.48,United Kingdom Atomic Energy Authority,United Kingdom Atomic Energy Authority
07/06/2012,MATERIALS & SPARES,FUSION,OERLIKON LEYBOLD VACUUM UK LTD,5100275208,764.64,United Kingdom Atomic Energy Authority,United Kingdom Atomic Energy Authority
07/06/2012,MATERIALS & SPARES,FUSION,OERLIKON LEYBOLD VACUUM UK LTD,5100275209,"1,140.57",United Kingdom Atomic Energy Authority,United Kingdom Atomic Energy Authority
07/06/2012,MATERIALS & SPARES,FUSION,OERLIKON LEYBOLD VACUUM UK LTD,5100275351,473.70,United Kingdom Atomic Energy Authority,United Kingdom Atomic Energy Authority
18/06/2012,MATERIALS & SPARES,FUSION,OERLIKON LEYBOLD VACUUM UK LTD,5100275864,"4,444.90",United Kingdom Atomic Energy Authority,United Kingdom Atomic Energy Authority
28/05/2012,MATERIALS & SPARES,FUSION,OLSON ELECTRONICS LTD,5100275617,433.80,United Kingdom Atomic Energy Authority,United Kingdom Atomic Energy Authority
11/06/2012,MATERIALS & SPARES,FUSION,OPENXTRA LIMITED,5100275891,278.13,United Kingdom Atomic Energy Authority,United Kingdom Atomic Energy Authority
13/06/2012,COMPUTER REPAIRS,FUSION,ORACLE CORPORATION UK LTD,5100275840,304.36,United Kingdom Atomic Energy Authority,United Kingdom Atomic Energy Authority
28/05/2012,MATERIALS & SPARES,FUSION,OXFORD BOLTS & BEARINGS,5100275411,540.00,United Kingdom Atomic Energy Authority,United Kingdom Atomic Energy Authority
18/06/2012,MATERIALS & SPARES,FUSION,OXFORD BOLTS & BEARINGS,5100276179,175.74,United Kingdom Atomic Energy Authority,United Kingdom Atomic Energy Authority
07/06/2012,MATERIALS & SPARES,FUSION,OXFORD BOLTS & BEARINGS,5100275605,14.00,United Kingdom Atomic Energy Authority,United Kingdom Atomic Energy Authority
25/06/2012,MATERIALS & SPARES,FUSION,OXFORD BOLTS & BEARINGS,5100276531,107.90,United Kingdom Atomic Energy Authority,United Kingdom Atomic Energy Authority
28/05/2012,MATERIALS & SPARES,FUSION,OXFORD BOLTS & BEARINGS,5100275481,181.52,United Kingdom Atomic Energy Authority,United Kingdom Atomic Energy Authority
28/05/2012,MATERIALS & SPARES,FUSION,OXFORD BOLTS & BEARINGS,5100275603,237.30,United Kingdom Atomic Energy Authority,United Kingdom Atomic Energy Authority
18/06/2012,MATERIALS & SPARES,FUSION,OXFORD BOLTS & BEARINGS,5100276277,44.68,United Kingdom Atomic Energy Authority,United Kingdom Atomic Energy Authority
28/05/2012,MATERIALS & SPARES,FUSION,OXFORD BOLTS & BEARINGS,5100275604,45.50,United Kingdom Atomic Energy Authority,United Kingdom Atomic Energy Authority
18/06/2012,MATERIALS & SPARES,FUSION,OXFORD BOLTS & BEARINGS,5100275787,40.50,United Kingdom Atomic Energy Authority,United Kingdom Atomic Energy Authority
13/06/2012,MATERIALS & SPARES,FUSION,OXFORD BOLTS & BEARINGS,5100275791,32.15,United Kingdom Atomic Energy Authority,United Kingdom Atomic Energy Authority
07/06/2012,MATERIALS & SPARES,FUSION,OXFORD BOLTS & BEARINGS,5100275786,56.30,United Kingdom Atomic Energy Authority,United Kingdom Atomic Energy Authority
13/06/2012,TRAINING COURSE FEES,FUSION,OXFORD COLLEGE OF FURTHER EDUCATION,5100275894,514.69,United Kingdom Atomic Energy Authority,United Kingdom Atomic Energy Authority
20/06/2012,PROFESSIONAL SERVICES,FUSION,OXFORD TECHNOLOGIES LTD,5100275859,433.36,United Kingdom Atomic Energy Authority,United Kingdom Atomic Energy Authority
20/06/2012,PROFESSIONAL SERVICES,FUSION,OXFORD TECHNOLOGIES LTD,5100275861,81.26,United Kingdom Atomic Energy Authority,United Kingdom Atomic Energy Authority
13/06/2012,PROFESSIONAL SERVICES,FUSION,OXFORD TECHNOLOGIES LTD (CB),5100275853,"4,167.45",United Kingdom Atomic Energy Authority,United Kingdom Atomic Energy Authority
13/06/2012,PROFESSIONAL SERVICES,FUSION,OXFORD TECHNOLOGIES LTD (CB),5100275854,323.33,United Kingdom Atomic Energy Authority,United Kingdom Atomic Energy Authority
18/06/2012,PROFESSIONAL SERVICES,FUSION,OXFORD TECHNOLOGIES LTD (CB),5100275855,"6,641.25",United Kingdom Atomic Energy Authority,United Kingdom Atomic Energy Authority
13/06/2012,PROFESSIONAL SERVICES,FUSION,OXFORD TECHNOLOGIES LTD (CB),5100275856,"3,492.97",United Kingdom Atomic Energy Authority,United Kingdom Atomic Energy Authority
13/06/2012,PROFESSIONAL SERVICES,FUSION,OXFORD TECHNOLOGIES LTD (CB),5100275857,"1,352.25",United Kingdom Atomic Energy Authority,United Kingdom Atomic Energy Authority
13/06/2012,PROFESSIONAL SERVICES,FUSION,OXFORD TECHNOLOGIES LTD (CB),5100275858,"5,690.48",United Kingdom Atomic Energy Authority,United Kingdom Atomic Energy Authority
13/06/2012,PROFESSIONAL SERVICES,FUSION,OXFORD TECHNOLOGIES LTD (CB),5100275860,"4,821.08",United Kingdom Atomic Energy Authority,United Kingdom Atomic Energy Authority
28/05/2012,PLANT & EQUIPMENT,FUSION,PEAK SENSORS LTD,5100275401,225.20,United Kingdom Atomic Energy Authority,United Kingdom Atomic Energy Authority
28/05/2012,OTHER EXTERNAL COSTS,FUSION,EMPLOYEE EXPENSES,1900056967,365.00,United Kingdom Atomic Energy Authority,United Kingdom Atomic Energy Authority
25/06/2012,HIRED STAFF,FUSION,PELICAN SOFTWARE LTD,5100276437,87.52,United Kingdom Atomic Energy Authority,United Kingdom Atomic Energy Authority
25/06/2012,HIRED STAFF,FUSION,PELICAN SOFTWARE LTD,5100276438,"6,585.80",United Kingdom Atomic Energy Authority,United Kingdom Atomic Energy Authority
25/06/2012,HIRED STAFF,FUSION,PELICAN SOFTWARE LTD,5100276439,"6,243.45",United Kingdom Atomic Energy Authority,United Kingdom Atomic Energy Authority
25/06/2012,HIRED STAFF,FUSION,PELICAN SOFTWARE LTD,5100276440,"7,953.20",United Kingdom Atomic Energy Authority,United Kingdom Atomic Energy Authority
25/06/2012,HIRED STAFF,FUSION,PELICAN SOFTWARE LTD,5100276441,"7,164.42",United Kingdom Atomic Energy Authority,United Kingdom Atomic Energy Authority
13/06/2012,PROFESSIONAL SERVICES,FUSION,PERKIN ELMER LAS UK LTD,5100274659,221.00,United Kingdom Atomic Energy Authority,United Kingdom Atomic Energy Authority
07/06/2012,PROFESSIONAL SERVICES,FUSION,PERKIN ELMER LAS UK LTD,5100275114,479.00,United Kingdom Atomic Energy Authority,United Kingdom Atomic Energy Authority
18/06/2012,PROFESSIONAL SERVICES,FUSION,PERKIN ELMER LAS UK LTD,5100275841,479.00,United Kingdom Atomic Energy Authority,United Kingdom Atomic Energy Authority
18/06/2012,PROFESSIONAL SERVICES,FUSION,PERKIN ELMER LAS UK LTD,5100275961,"1,536.56",United Kingdom Atomic Energy Authority,United Kingdom Atomic Energy Authority
01/06/2012,COMPENSATION,SUPPORT SERVICES,COMPENSATION CLAIMANT,1900056998,"2,366.40",United Kingdom Atomic Energy Authority,United Kingdom Atomic Energy Authority
11/06/2012,MILEAGE ALLOWANCE,FUSION,Peter Flewitt,1900057023,56.00,United Kingdom Atomic Energy Authority,United Kingdom Atomic Energy Authority
13/06/2012,TRAINING COURSE FEES,SUPPORT SERVICES,PETER METCALF MANAGEMENT COACH,5100275839,"1,100.00",United Kingdom Atomic Energy Authority,United Kingdom Atomic Energy Authority
28/05/2012,PLANT & EQUIPMENT,FUSION,PFEIFFER VACUUM UK,5100275221,433.64,United Kingdom Atomic Energy Authority,United Kingdom Atomic Energy Authority
25/06/2012,PLANT & EQUIPMENT,FUSION,PFEIFFER VACUUM UK,5100275979,276.00,United Kingdom Atomic Energy Authority,United Kingdom Atomic Energy Authority
13/06/2012,PLANT & EQUIPMENT,FUSION,PHS GROUP PLC,5100275749,31.06,United Kingdom Atomic Energy Authority,United Kingdom Atomic Energy Authority
11/06/2012,CONFERENCES/MEETINGS,FUSION,Piero Caldirola,1900057011,970.41,United Kingdom Atomic Energy Authority,United Kingdom Atomic Energy Authority
28/05/2012,MATERIALS & SPARES,FUSION,PI-KEM LTD,5100275545,658.50,United Kingdom Atomic Energy Authority,United Kingdom Atomic Energy Authority
18/06/2012,MATERIALS & SPARES,FUSION,PI-KEM LTD,5100275983,"1,510.20",United Kingdom Atomic Energy Authority,United Kingdom Atomic Energy Authority
13/06/2012,MATERIALS & SPARES,FUSION,PMD (UK) LTD,5100275737,59.90,United Kingdom Atomic Energy Authority,United Kingdom Atomic Energy Authority
07/06/2012,PLANT & EQUIPMENT,FUSION,POWELL & CO,5100275789,872.95,United Kingdom Atomic Energy Authority,United Kingdom Atomic Energy Authority
28/05/2012,PLANT & EQUIPMENT,FUSION,POWELL & CO,5100275437,130.90,United Kingdom Atomic Energy Authority,United Kingdom Atomic Energy Authority
11/06/2012,PLANT & EQUIPMENT,FUSION,POWELL & CO,5100275893,578.00,United Kingdom Atomic Energy Authority,United Kingdom Atomic Energy Authority
18/06/2012,PLANT & EQUIPMENT,FUSION,POWELL & CO,5100276180,285.60,United Kingdom Atomic Energy Authority,United Kingdom Atomic Energy Authority
20/06/2012,MATERIALS & SPARES,FUSION,POWERSYSTEMS UK LTD,5100276329,"3,200.00",United Kingdom Atomic Energy Authority,United Kingdom Atomic Energy Authority
25/06/2012,CONSUMABLES,FUSION,PRITCHARD SHEET METAL,5100276427,137.37,United Kingdom Atomic Energy Authority,United Kingdom Atomic Energy Authority
07/06/2012,PLANT & EQUIPMENT,FUSION,PROCESS ANALYSER SYSTEMS LTD,5100275659,406.00,United Kingdom Atomic Energy Authority,United Kingdom Atomic Energy Authority
25/06/2012,CONSUMABLES,FUSION,PROFESSIONAL PROTECTION SYSTEMS,5100275822,"20,225.00",United Kingdom Atomic Energy Authority,United Kingdom Atomic Energy Authority
18/06/2012,PROFESSIONAL SERVICES,FUSION,PROFESSOR M HAINES,5100275865,"1,000.00",United Kingdom Atomic Energy Authority,United Kingdom Atomic Energy Authority
11/06/2012,TAXIS,FUSION,PRYORS TAXIS,5100275852,"7,075.23",United Kingdom Atomic Energy Authority,United Kingdom Atomic Energy Authority
28/05/2012,PLANT & EQUIPMENT,FUSION,PULSE POWER AND MEASUREMENT LTD,5100275587,572.00,United Kingdom Atomic Energy Authority,United Kingdom Atomic Energy Authority
25/06/2012,MATERIALS & SPARES,FUSION,QUALITY CONTRACTS LTD,5100276433,"1,248.00",United Kingdom Atomic Energy Authority,United Kingdom Atomic Energy Authority
11/06/2012,PLANT & EQUIPMENT,FUSION,QUARTZELEC LTD,5100275794,"69,120.00",United Kingdom Atomic Energy Authority,United Kingdom Atomic Energy Authority
13/06/2012,PLANT & EQUIPMENT,FUSION,QUARTZELEC LTD,5100275849,"29,000.00",United Kingdom Atomic Energy Authority,United Kingdom Atomic Energy Authority
25/06/2012,PLANT & EQUIPMENT,FUSION,QUARTZELEC LTD,5100276498,"69,120.00",United Kingdom Atomic Energy Authority,United Kingdom Atomic Energy Authority
20/06/2012,PROFESSIONAL SERVICES,FUSION,QUEENS UNIVERSITY BELFAST,5100275189,"21,587.64",United Kingdom Atomic Energy Authority,United Kingdom Atomic Energy Authority
20/06/2012,REPAIRS & MAINTENANCE,FUSION,R & H TESTING SERVICES LTD,5100276327,425.00,United Kingdom Atomic Energy Authority,United Kingdom Atomic Energy Authority
29/06/2012,ENTERTAINMENT - STAFF,SUPPORT SERVICES,R Gates,1900057146,500.00,United Kingdom Atomic Energy Authority,United Kingdom Atomic Energy Authority
25/06/2012,PROFESSIONAL SERVICES,FUSION,RADIOCARBON DATING,5100275966,"3,752.00",United Kingdom Atomic Energy Authority,United Kingdom Atomic Energy Authority
20/06/2012,PROFESSIONAL SERVICES,FUSION,RADIOCARBON DATING,5100275968,"19,251.50",United Kingdom Atomic Energy Authority,United Kingdom Atomic Energy Authority
13/06/2012,CONSUMABLES,FUSION,RAJAPACK LTD,5100275812,125.23,United Kingdom Atomic Energy Authority,United Kingdom Atomic Energy Authority
28/05/2012,PROFESSIONAL SERVICES,FUSION,RBH OPTICS,5100275422,990.00,United Kingdom Atomic Energy Authority,United Kingdom Atomic Energy Authority
11/06/2012,PLANT & EQUIPMENT,FUSION,REECE SAFETY PRODUCTS LTD,5100275847,132.30,United Kingdom Atomic Energy Authority,United Kingdom Atomic Energy Authority
28/05/2012,PLANT & EQUIPMENT,FUSION,REECE SAFETY PRODUCTS LTD,5100275606,158.40,United Kingdom Atomic Energy Authority,United Kingdom Atomic Energy Authority
11/06/2012,PLANT & EQUIPMENT,FUSION,REECE SAFETY PRODUCTS LTD,5100275788,215.00,United Kingdom Atomic Energy Authority,United Kingdom Atomic Energy Authority
07/06/2012,ADVERTISING STAFF,FUSION,ROWLAND WISE,5100275717,320.00,United Kingdom Atomic Energy Authority,United Kingdom Atomic Energy Authority
07/06/2012,PLANT SPARES,FUSION,RS COMPONENTS CALIBRATION SERVICES,5100275671,19.06,United Kingdom Atomic Energy Authority,United Kingdom Atomic Energy Authority
28/05/2012,MATERIALS & SPARES,FUSION,RS COMPONENTS LTD,5100275574,60.75,United Kingdom Atomic Energy Authority,United Kingdom Atomic Energy Authority
18/06/2012,MATERIALS & SPARES,FUSION,RS COMPONENTS LTD,5100276066,89.15,United Kingdom Atomic Energy Authority,United Kingdom Atomic Energy Authority
25/06/2012,MATERIALS & SPARES,FUSION,RS COMPONENTS LTD,5100276482,31.07,United Kingdom Atomic Energy Authority,United Kingdom Atomic Energy Authority
25/06/2012,MATERIALS & SPARES,FUSION,RS COMPONENTS LTD,5100276488,94.39,United Kingdom Atomic Energy Authority,United Kingdom Atomic Energy Authority
25/06/2012,MATERIALS & SPARES,FUSION,RS COMPONENTS LTD,5100276493,128.80,United Kingdom Atomic Energy Authority,United Kingdom Atomic Energy Authority
28/05/2012,MATERIALS & SPARES,FUSION,RS COMPONENTS LTD,5100275584,148.50,United Kingdom Atomic Energy Authority,United Kingdom Atomic Energy Authority
07/06/2012,MATERIALS & SPARES,FUSION,RS COMPONENTS LTD,5100275674,290.71,United Kingdom Atomic Energy Authority,United Kingdom Atomic Energy Authority
07/06/2012,MATERIALS & SPARES,FUSION,RS COMPONENTS LTD,5100275760,37.28,United Kingdom Atomic Energy Authority,United Kingdom Atomic Energy Authority
07/06/2012,MATERIALS & SPARES,FUSION,RS COMPONENTS LTD,5100275768,181.26,United Kingdom Atomic Energy Authority,United Kingdom Atomic Energy Authority
07/06/2012,MATERIALS & SPARES,FUSION,RS COMPONENTS LTD,5100275774,20.86,United Kingdom Atomic Energy Authority,United Kingdom Atomic Energy Authority
11/06/2012,MATERIALS & SPARES,FUSION,RS COMPONENTS LTD,5100275828,30.96,United Kingdom Atomic Energy Authority,United Kingdom Atomic Energy Authority
18/06/2012,MATERIALS & SPARES,FUSION,RS COMPONENTS LTD,5100276036,46.16,United Kingdom Atomic Energy Authority,United Kingdom Atomic Energy Authority
18/06/2012,MATERIALS & SPARES,FUSION,RS COMPONENTS LTD,5100276242,316.57,United Kingdom Atomic Energy Authority,United Kingdom Atomic Energy Authority
28/05/2012,MATERIALS & SPARES,FUSION,RS COMPONENTS LTD,5100274870,217.26,United Kingdom Atomic Energy Authority,United Kingdom Atomic Energy Authority
28/05/2012,MATERIALS & SPARES,FUSION,RS COMPONENTS LTD,5100275644,369.80,United Kingdom Atomic Energy Authority,United Kingdom Atomic Energy Authority
07/06/2012,MATERIALS & SPARES,FUSION,RS COMPONENTS LTD,5100275687,608.94,United Kingdom Atomic Energy Authority,United Kingdom Atomic Energy Authority
11/06/2012,MATERIALS & SPARES,FUSION,RS COMPONENTS LTD,5100275829,130.54,United Kingdom Atomic Energy Authority,United Kingdom Atomic Energy Authority
18/06/2012,MATERIALS & SPARES,FUSION,RS COMPONENTS LTD,5100275918,37.54,United Kingdom Atomic Energy Authority,United Kingdom Atomic Energy Authority
18/06/2012,MATERIALS & SPARES,FUSION,RS COMPONENTS LTD,5100276194,-41.21,United Kingdom Atomic Energy Authority,United Kingdom Atomic Energy Authority
18/06/2012,MATERIALS & SPARES,FUSION,RS COMPONENTS LTD,5100276230,103.51,United Kingdom Atomic Energy Authority,United Kingdom Atomic Energy Authority
28/05/2012,MATERIALS & SPARES,FUSION,RS COMPONENTS LTD,5100275583,107.52,United Kingdom Atomic Energy Authority,United Kingdom Atomic Energy Authority
30/05/2012,MATERIALS & SPARES,FUSION,RS COMPONENTS LTD,5100275654,165.56,United Kingdom Atomic Energy Authority,United Kingdom Atomic Energy Authority
07/06/2012,MATERIALS & SPARES,FUSION,RS COMPONENTS LTD,5100275759,107.52,United Kingdom Atomic Energy Authority,United Kingdom Atomic Energy Authority
07/06/2012,MATERIALS & SPARES,FUSION,RS COMPONENTS LTD,5100275809,79.45,United Kingdom Atomic Energy Authority,United Kingdom Atomic Energy Authority
11/06/2012,MATERIALS & SPARES,FUSION,RS COMPONENTS LTD,5100275826,122.60,United Kingdom Atomic Energy Authority,United Kingdom Atomic Energy Authority
18/06/2012,MATERIALS & SPARES,FUSION,RS COMPONENTS LTD,5100275922,29.75,United Kingdom Atomic Energy Authority,United Kingdom Atomic Energy Authority
18/06/2012,MATERIALS & SPARES,FUSION,RS COMPONENTS LTD,5100275929,658.11,United Kingdom Atomic Energy Authority,United Kingdom Atomic Energy Authority
18/06/2012,MATERIALS & SPARES,FUSION,RS COMPONENTS LTD,5100275949,138.90,United Kingdom Atomic Energy Authority,United Kingdom Atomic Energy Authority
18/06/2012,MATERIALS & SPARES,FUSION,RS COMPONENTS LTD,5100276028,23.15,United Kingdom Atomic Energy Authority,United Kingdom Atomic Energy Authority
18/06/2012,MATERIALS & SPARES,FUSION,RS COMPONENTS LTD,5100276031,4.23,United Kingdom Atomic Energy Authority,United Kingdom Atomic Energy Authority
11/06/2012,MATERIALS & SPARES,FUSION,RS COMPONENTS LTD,5100275780,98.16,United Kingdom Atomic Energy Authority,United Kingdom Atomic Energy Authority
11/06/2012,MATERIALS & SPARES,FUSION,RS COMPONENTS LTD,5100275782,18.06,United Kingdom Atomic Energy Authority,United Kingdom Atomic Energy Authority
07/06/2012,MATERIALS & SPARES,FUSION,RS COMPONENTS LTD,5100275808,2.41,United Kingdom Atomic Energy Authority,United Kingdom Atomic Energy Authority
11/06/2012,MATERIALS & SPARES,FUSION,RS COMPONENTS LTD,5100275836,12.29,United Kingdom Atomic Energy Authority,United Kingdom Atomic Energy Authority
18/06/2012,MATERIALS & SPARES,FUSION,RS COMPONENTS LTD,5100275926,95.60,United Kingdom Atomic Energy Authority,United Kingdom Atomic Energy Authority
